{"text_format":"1","workbook":"xlsx","n_sheets":4,"sheets":["Part 1 - Beat-up Survey Form","Part 2 - Restocking information","Part 3 - NC intervention","Part 4 - Declaration"],"not_rendered":{"charts":0,"images":2,"macros":1,"external_links":0,"defined_names":10,"comments":0,"pivot_tables":0},"unopened":[],"bounds":{"document_bytes":16777216,"sheet_cells":100000,"rows_first":2000,"rows_last":500,"rows_between":2000,"halvings":0,"cell_chars":16384,"cell_head_chars":4096},"cells_cut":0,"cells_raw":0,"read":"whole","date_system":"1900"}

{"sheet":"Part 1 - Beat-up Survey Form","index":0,"n_rows":45,"n_cols":26,"rows_kept":45,"cut":false,"hidden":false,"merged":[[3,2,3,18],[2,0,2,18],[7,4,7,5],[8,4,8,5],[10,4,10,5],[7,1,7,3],[8,1,8,3],[9,1,9,3],[10,1,10,3]]}
[]
[]
[]
[]
[]
[]
[]
[null,"Lead Local Authority Name"]
[null,"LATF ref"]
[null,"Trees planted in (agreement year/financial year)"]
[null,"Date survey completed"]
[]
[null,"Local Authority Name (Lead LA or delivery partner if applicable)","Site Name","Planting or NC site","Central Site Grid Reference  ","Site Size (Ha)","Number of LATF funded whips planted","Number of LATF funded feathers planted","Number of LATF standards planted","(HIDE) Sum of LATF trees planted","Number of Whips Lost","Whip Survival Percentage:","Whip Loss Estimate","Number of Feathers Lost","Number of Standards Lost","(HIDE) SUM of LATF Trees Loss","Maintenance activities ","Frequency of Maintenance","Natural Colonisation: Number of trees established","Photographic Evidence has been Provided to show level of tree or NC establishment","Photograph Name and Description ","Trees planted: Site survival rate (%)","(HIDE) Number of trees needed to restock to reach 75%","Site requires restocking (if <75% survival rate) - planting sites only","Site requires inspection to determine remedial work to allow NC","(HIDE) Whips lost"]
[null,"e.g  Welwyn Hatfield Borough Council\t","e.g Planting site 1 - Brook road park ","Planting","AB 1234 5678","0.2ha",140,70,30,{"$f":"SUM(Table5[[#This Row],[Number of LATF funded whips planted]:[Number of LATF standards planted]])","v":240},40,"*Required if a group is planted with more than 50 trees, as an estimated percentage of trees surviving is more practical",{"$f":"INT(IF(AND(Table5[[#This Row],[Number of Whips Lost]]=0,Table5[[#This Row],[Whip Survival Percentage:]]=0),0,(IF(K14=0, G14*(1-L14), \"0\"))))","v":0},20,10,{"$f":"SUM(K14,M14,N14,O14)","v":70},"Watering, weeding","Watered - 5 visits, \nWeeded - 2 visits, ",0,"Y","Brook Road Park -  LATF Planting",{"$f":"IF(K14=0, IFERROR((1-SUM(M14,N14,O14)/SUM(Table5[[#This Row],[Number of LATF funded whips planted]:[Number of LATF standards planted]])), \"AUTO\"),\nIFERROR((1-SUM(K14,N14,O14)/SUM(Table5[[#This Row],[Number of LATF funded whips planted]:[Number of LATF standards planted]])), \"AUTO\"))","v":0.70833333333333326},{"$f":"ROUNDUP((Table5[[#This Row],[(HIDE) Sum of LATF trees planted]]*0.75)-(Table5[[#This Row],[(HIDE) Sum of LATF trees planted]]*Table5[[#This Row],[Trees planted: Site survival rate (%)]]),0)","v":10},{"$f":"IF(V14=\"AUTO\", \"AUTO\", IF(V14>0.75, \"N\", \"Y\"))","v":"Y"},"N/A",{"$f":"IF(K14=0,M14,K14)","v":40}]
[null,"e.g  Welwyn Hatfield Borough Council\t","e.g NC site 1 - Brook Farm ","NC","AB 1234 5678","0.3ha",0,0,0,{"$f":"SUM(Table5[[#This Row],[Number of LATF funded whips planted]:[Number of LATF standards planted]])","v":0},0,null,{"$f":"INT(IF(AND(Table5[[#This Row],[Number of Whips Lost]]=0,Table5[[#This Row],[Whip Survival Percentage:]]=0),0,(IF(K15=0, G15*(1-L15), \"0\"))))","v":0},0,0,0,"N/A","N/A",2,"Y","Brook Farm - NC establishment",{"$f":"IF(K15=0, IFERROR((1-SUM(M15,N15,O15)/SUM(Table5[[#This Row],[Number of LATF funded whips planted]:[Number of LATF standards planted]])), \"AUTO\"),\nIFERROR((1-SUM(K15,N15,O15)/SUM(Table5[[#This Row],[Number of LATF funded whips planted]:[Number of LATF standards planted]])), \"AUTO\"))","v":"AUTO"},{"$f":"ROUNDUP((Table5[[#This Row],[(HIDE) Sum of LATF trees planted]]*0.75)-(Table5[[#This Row],[(HIDE) Sum of LATF trees planted]]*Table5[[#This Row],[Trees planted: Site survival rate (%)]]),0)","v":{"$error":"#VALUE!"}},"AUTO","Y",0]
[null,null,null,null,null,null,null,null,null,{"$f":"SUM(Table5[[#This Row],[Number of LATF funded whips planted]:[Number of LATF standards planted]])","v":0},null,null,{"$f":"INT(IF(AND(Table5[[#This Row],[Number of Whips Lost]]=0,Table5[[#This Row],[Whip Survival Percentage:]]=0),0,(IF(K16=0, G16*(1-L16), \"0\"))))","v":0},null,null,0,null,null,null,null,null,{"$f":"IF(K16=0, IFERROR((1-SUM(M16,N16,O16)/SUM(Table5[[#This Row],[Number of LATF funded whips planted]:[Number of LATF standards planted]])), \"AUTO\"),\nIFERROR((1-SUM(K16,N16,O16)/SUM(Table5[[#This Row],[Number of LATF funded whips planted]:[Number of LATF standards planted]])), \"AUTO\"))","v":"AUTO"},{"$f":"ROUNDUP((Table5[[#This Row],[(HIDE) Sum of LATF trees planted]]*0.75)-(Table5[[#This Row],[(HIDE) Sum of LATF trees planted]]*Table5[[#This Row],[Trees planted: Site survival rate (%)]]),0)","v":{"$error":"#VALUE!"}},"AUTO",null,0]
[null,null,null,null,null,null,null,null,null,{"$f":"SUM(Table5[[#This Row],[Number of LATF funded whips planted]:[Number of LATF standards planted]])","v":0},null,null,{"$f":"INT(IF(AND(Table5[[#This Row],[Number of Whips Lost]]=0,Table5[[#This Row],[Whip Survival Percentage:]]=0),0,(IF(K17=0, G17*(1-L17), \"0\"))))","v":0},null,null,0,null,null,null,null,null,{"$f":"IF(K17=0, IFERROR((1-SUM(M17,N17,O17)/SUM(Table5[[#This Row],[Number of LATF funded whips planted]:[Number of LATF standards planted]])), \"AUTO\"),\nIFERROR((1-SUM(K17,N17,O17)/SUM(Table5[[#This Row],[Number of LATF funded whips planted]:[Number of LATF standards planted]])), \"AUTO\"))","v":"AUTO"},{"$f":"ROUNDUP((Table5[[#This Row],[(HIDE) Sum of LATF trees planted]]*0.75)-(Table5[[#This Row],[(HIDE) Sum of LATF trees planted]]*Table5[[#This Row],[Trees planted: Site survival rate (%)]]),0)","v":{"$error":"#VALUE!"}},{"$f":"IF(V17=\"AUTO\", \"AUTO\", IF(V17>0.75, \"N\", \"Y\"))","v":"AUTO"},"Y",0]
[null,null,null,null,null,null,null,null,null,{"$f":"SUM(Table5[[#This Row],[Number of LATF funded whips planted]:[Number of LATF standards planted]])","v":0},null,null,{"$f":"INT(IF(AND(Table5[[#This Row],[Number of Whips Lost]]=0,Table5[[#This Row],[Whip Survival Percentage:]]=0),0,(IF(K18=0, G18*(1-L18), \"0\"))))","v":0},null,null,0,null,null,null,null,null,{"$f":"IF(K18=0, IFERROR((1-SUM(M18,N18,O18)/SUM(Table5[[#This Row],[Number of LATF funded whips planted]:[Number of LATF standards planted]])), \"AUTO\"),\nIFERROR((1-SUM(K18,N18,O18)/SUM(Table5[[#This Row],[Number of LATF funded whips planted]:[Number of LATF standards planted]])), \"AUTO\"))","v":"AUTO"},{"$f":"ROUNDUP((Table5[[#This Row],[(HIDE) Sum of LATF trees planted]]*0.75)-(Table5[[#This Row],[(HIDE) Sum of LATF trees planted]]*Table5[[#This Row],[Trees planted: Site survival rate (%)]]),0)","v":{"$error":"#VALUE!"}},"AUTO",null,0]
[null,null,null,null,null,null,null,null,null,{"$f":"SUM(Table5[[#This Row],[Number of LATF funded whips planted]:[Number of LATF standards planted]])","v":0},null,null,{"$f":"INT(IF(AND(Table5[[#This Row],[Number of Whips Lost]]=0,Table5[[#This Row],[Whip Survival Percentage:]]=0),0,(IF(K19=0, G19*(1-L19), \"0\"))))","v":0},null,null,0,null,null,null,null,null,{"$f":"IF(K19=0, IFERROR((1-SUM(M19,N19,O19)/SUM(Table5[[#This Row],[Number of LATF funded whips planted]:[Number of LATF standards planted]])), \"AUTO\"),\nIFERROR((1-SUM(K19,N19,O19)/SUM(Table5[[#This Row],[Number of LATF funded whips planted]:[Number of LATF standards planted]])), \"AUTO\"))","v":"AUTO"},{"$f":"ROUNDUP((Table5[[#This Row],[(HIDE) Sum of LATF trees planted]]*0.75)-(Table5[[#This Row],[(HIDE) Sum of LATF trees planted]]*Table5[[#This Row],[Trees planted: Site survival rate (%)]]),0)","v":{"$error":"#VALUE!"}},"AUTO",null,0]
[null,null,null,null,null,null,null,null,null,{"$f":"SUM(Table5[[#This Row],[Number of LATF funded whips planted]:[Number of LATF standards planted]])","v":0},null,null,{"$f":"INT(IF(AND(Table5[[#This Row],[Number of Whips Lost]]=0,Table5[[#This Row],[Whip Survival Percentage:]]=0),0,(IF(K20=0, G20*(1-L20), \"0\"))))","v":0},null,null,0,null,null,null,null,null,{"$f":"IF(K20=0, IFERROR((1-SUM(M20,N20,O20)/SUM(Table5[[#This Row],[Number of LATF funded whips planted]:[Number of LATF standards planted]])), \"AUTO\"),\nIFERROR((1-SUM(K20,N20,O20)/SUM(Table5[[#This Row],[Number of LATF funded whips planted]:[Number of LATF standards planted]])), \"AUTO\"))","v":"AUTO"},{"$f":"ROUNDUP((Table5[[#This Row],[(HIDE) Sum of LATF trees planted]]*0.75)-(Table5[[#This Row],[(HIDE) Sum of LATF trees planted]]*Table5[[#This Row],[Trees planted: Site survival rate (%)]]),0)","v":{"$error":"#VALUE!"}},"AUTO",null,0]
[null,null,null,null,null,null,null,null,null,{"$f":"SUM(Table5[[#This Row],[Number of LATF funded whips planted]:[Number of LATF standards planted]])","v":0},null,null,{"$f":"INT(IF(AND(Table5[[#This Row],[Number of Whips Lost]]=0,Table5[[#This Row],[Whip Survival Percentage:]]=0),0,(IF(K21=0, G21*(1-L21), \"0\"))))","v":0},null,null,0,null,null,null,null,null,{"$f":"IF(K21=0, IFERROR((1-SUM(M21,N21,O21)/SUM(Table5[[#This Row],[Number of LATF funded whips planted]:[Number of LATF standards planted]])), \"AUTO\"),\nIFERROR((1-SUM(K21,N21,O21)/SUM(Table5[[#This Row],[Number of LATF funded whips planted]:[Number of LATF standards planted]])), \"AUTO\"))","v":"AUTO"},{"$f":"ROUNDUP((Table5[[#This Row],[(HIDE) Sum of LATF trees planted]]*0.75)-(Table5[[#This Row],[(HIDE) Sum of LATF trees planted]]*Table5[[#This Row],[Trees planted: Site survival rate (%)]]),0)","v":{"$error":"#VALUE!"}},"AUTO",null,0]
[null,null,null,null,null,null,null,null,null,{"$f":"SUM(Table5[[#This Row],[Number of LATF funded whips planted]:[Number of LATF standards planted]])","v":0},null,null,{"$f":"INT(IF(AND(Table5[[#This Row],[Number of Whips Lost]]=0,Table5[[#This Row],[Whip Survival Percentage:]]=0),0,(IF(K22=0, G22*(1-L22), \"0\"))))","v":0},null,null,0,null,null,null,null,null,{"$f":"IF(K22=0, IFERROR((1-SUM(M22,N22,O22)/SUM(Table5[[#This Row],[Number of LATF funded whips planted]:[Number of LATF standards planted]])), \"AUTO\"),\nIFERROR((1-SUM(K22,N22,O22)/SUM(Table5[[#This Row],[Number of LATF funded whips planted]:[Number of LATF standards planted]])), \"AUTO\"))","v":"AUTO"},{"$f":"ROUNDUP((Table5[[#This Row],[(HIDE) Sum of LATF trees planted]]*0.75)-(Table5[[#This Row],[(HIDE) Sum of LATF trees planted]]*Table5[[#This Row],[Trees planted: Site survival rate (%)]]),0)","v":{"$error":"#VALUE!"}},"AUTO",null,0]
[null,null,null,null,null,null,null,null,null,{"$f":"SUM(Table5[[#This Row],[Number of LATF funded whips planted]:[Number of LATF standards planted]])","v":0},null,null,{"$f":"INT(IF(AND(Table5[[#This Row],[Number of Whips Lost]]=0,Table5[[#This Row],[Whip Survival Percentage:]]=0),0,(IF(K23=0, G23*(1-L23), \"0\"))))","v":0},null,null,0,null,null,null,null,null,{"$f":"IF(K23=0, IFERROR((1-SUM(M23,N23,O23)/SUM(Table5[[#This Row],[Number of LATF funded whips planted]:[Number of LATF standards planted]])), \"AUTO\"),\nIFERROR((1-SUM(K23,N23,O23)/SUM(Table5[[#This Row],[Number of LATF funded whips planted]:[Number of LATF standards planted]])), \"AUTO\"))","v":"AUTO"},{"$f":"ROUNDUP((Table5[[#This Row],[(HIDE) Sum of LATF trees planted]]*0.75)-(Table5[[#This Row],[(HIDE) Sum of LATF trees planted]]*Table5[[#This Row],[Trees planted: Site survival rate (%)]]),0)","v":{"$error":"#VALUE!"}},"AUTO",null,0]
[null,null,null,null,null,null,null,null,null,{"$f":"SUM(Table5[[#This Row],[Number of LATF funded whips planted]:[Number of LATF standards planted]])","v":0},null,null,{"$f":"INT(IF(AND(Table5[[#This Row],[Number of Whips Lost]]=0,Table5[[#This Row],[Whip Survival Percentage:]]=0),0,(IF(K24=0, G24*(1-L24), \"0\"))))","v":0},null,null,0,null,null,null,null,null,{"$f":"IF(K24=0, IFERROR((1-SUM(M24,N24,O24)/SUM(Table5[[#This Row],[Number of LATF funded whips planted]:[Number of LATF standards planted]])), \"AUTO\"),\nIFERROR((1-SUM(K24,N24,O24)/SUM(Table5[[#This Row],[Number of LATF funded whips planted]:[Number of LATF standards planted]])), \"AUTO\"))","v":"AUTO"},{"$f":"ROUNDUP((Table5[[#This Row],[(HIDE) Sum of LATF trees planted]]*0.75)-(Table5[[#This Row],[(HIDE) Sum of LATF trees planted]]*Table5[[#This Row],[Trees planted: Site survival rate (%)]]),0)","v":{"$error":"#VALUE!"}},"AUTO",null,0]
[null,null,null,null,null,null,null,null,null,{"$f":"SUM(Table5[[#This Row],[Number of LATF funded whips planted]:[Number of LATF standards planted]])","v":0},null,null,{"$f":"INT(IF(AND(Table5[[#This Row],[Number of Whips Lost]]=0,Table5[[#This Row],[Whip Survival Percentage:]]=0),0,(IF(K25=0, G25*(1-L25), \"0\"))))","v":0},null,null,0,null,null,null,null,null,{"$f":"IF(K25=0, IFERROR((1-SUM(M25,N25,O25)/SUM(Table5[[#This Row],[Number of LATF funded whips planted]:[Number of LATF standards planted]])), \"AUTO\"),\nIFERROR((1-SUM(K25,N25,O25)/SUM(Table5[[#This Row],[Number of LATF funded whips planted]:[Number of LATF standards planted]])), \"AUTO\"))","v":"AUTO"},{"$f":"ROUNDUP((Table5[[#This Row],[(HIDE) Sum of LATF trees planted]]*0.75)-(Table5[[#This Row],[(HIDE) Sum of LATF trees planted]]*Table5[[#This Row],[Trees planted: Site survival rate (%)]]),0)","v":{"$error":"#VALUE!"}},"AUTO",null,0]
[null,null,null,null,null,null,null,null,null,{"$f":"SUM(Table5[[#This Row],[Number of LATF funded whips planted]:[Number of LATF standards planted]])","v":0},null,null,{"$f":"INT(IF(AND(Table5[[#This Row],[Number of Whips Lost]]=0,Table5[[#This Row],[Whip Survival Percentage:]]=0),0,(IF(K26=0, G26*(1-L26), \"0\"))))","v":0},null,null,0,null,null,null,null,null,{"$f":"IF(K26=0, IFERROR((1-SUM(M26,N26,O26)/SUM(Table5[[#This Row],[Number of LATF funded whips planted]:[Number of LATF standards planted]])), \"AUTO\"),\nIFERROR((1-SUM(K26,N26,O26)/SUM(Table5[[#This Row],[Number of LATF funded whips planted]:[Number of LATF standards planted]])), \"AUTO\"))","v":"AUTO"},{"$f":"ROUNDUP((Table5[[#This Row],[(HIDE) Sum of LATF trees planted]]*0.75)-(Table5[[#This Row],[(HIDE) Sum of LATF trees planted]]*Table5[[#This Row],[Trees planted: Site survival rate (%)]]),0)","v":{"$error":"#VALUE!"}},"AUTO",null,0]
[null,null,null,null,null,null,null,null,null,{"$f":"SUM(Table5[[#This Row],[Number of LATF funded whips planted]:[Number of LATF standards planted]])","v":0},null,null,{"$f":"INT(IF(AND(Table5[[#This Row],[Number of Whips Lost]]=0,Table5[[#This Row],[Whip Survival Percentage:]]=0),0,(IF(K27=0, G27*(1-L27), \"0\"))))","v":0},null,null,0,null,null,null,null,null,{"$f":"IF(K27=0, IFERROR((1-SUM(M27,N27,O27)/SUM(Table5[[#This Row],[Number of LATF funded whips planted]:[Number of LATF standards planted]])), \"AUTO\"),\nIFERROR((1-SUM(K27,N27,O27)/SUM(Table5[[#This Row],[Number of LATF funded whips planted]:[Number of LATF standards planted]])), \"AUTO\"))","v":"AUTO"},{"$f":"ROUNDUP((Table5[[#This Row],[(HIDE) Sum of LATF trees planted]]*0.75)-(Table5[[#This Row],[(HIDE) Sum of LATF trees planted]]*Table5[[#This Row],[Trees planted: Site survival rate (%)]]),0)","v":{"$error":"#VALUE!"}},"AUTO",null,0]
[null,null,null,null,null,null,null,null,null,{"$f":"SUM(Table5[[#This Row],[Number of LATF funded whips planted]:[Number of LATF standards planted]])","v":0},null,null,{"$f":"INT(IF(AND(Table5[[#This Row],[Number of Whips Lost]]=0,Table5[[#This Row],[Whip Survival Percentage:]]=0),0,(IF(K28=0, G28*(1-L28), \"0\"))))","v":0},null,null,0,null,null,null,null,null,{"$f":"IF(K28=0, IFERROR((1-SUM(M28,N28,O28)/SUM(Table5[[#This Row],[Number of LATF funded whips planted]:[Number of LATF standards planted]])), \"AUTO\"),\nIFERROR((1-SUM(K28,N28,O28)/SUM(Table5[[#This Row],[Number of LATF funded whips planted]:[Number of LATF standards planted]])), \"AUTO\"))","v":"AUTO"},{"$f":"ROUNDUP((Table5[[#This Row],[(HIDE) Sum of LATF trees planted]]*0.75)-(Table5[[#This Row],[(HIDE) Sum of LATF trees planted]]*Table5[[#This Row],[Trees planted: Site survival rate (%)]]),0)","v":{"$error":"#VALUE!"}},"AUTO",null,0]
[null,null,null,null,null,null,null,null,null,{"$f":"SUM(Table5[[#This Row],[Number of LATF funded whips planted]:[Number of LATF standards planted]])","v":0},null,null,{"$f":"INT(IF(AND(Table5[[#This Row],[Number of Whips Lost]]=0,Table5[[#This Row],[Whip Survival Percentage:]]=0),0,(IF(K29=0, G29*(1-L29), \"0\"))))","v":0},null,null,0,null,null,null,null,null,{"$f":"IF(K29=0, IFERROR((1-SUM(M29,N29,O29)/SUM(Table5[[#This Row],[Number of LATF funded whips planted]:[Number of LATF standards planted]])), \"AUTO\"),\nIFERROR((1-SUM(K29,N29,O29)/SUM(Table5[[#This Row],[Number of LATF funded whips planted]:[Number of LATF standards planted]])), \"AUTO\"))","v":"AUTO"},{"$f":"ROUNDUP((Table5[[#This Row],[(HIDE) Sum of LATF trees planted]]*0.75)-(Table5[[#This Row],[(HIDE) Sum of LATF trees planted]]*Table5[[#This Row],[Trees planted: Site survival rate (%)]]),0)","v":{"$error":"#VALUE!"}},"AUTO",null,0]
[null,null,null,null,null,null,null,null,null,{"$f":"SUM(Table5[[#This Row],[Number of LATF funded whips planted]:[Number of LATF standards planted]])","v":0},null,null,{"$f":"INT(IF(AND(Table5[[#This Row],[Number of Whips Lost]]=0,Table5[[#This Row],[Whip Survival Percentage:]]=0),0,(IF(K30=0, G30*(1-L30), \"0\"))))","v":0},null,null,0,null,null,null,null,null,{"$f":"IF(K30=0, IFERROR((1-SUM(M30,N30,O30)/SUM(Table5[[#This Row],[Number of LATF funded whips planted]:[Number of LATF standards planted]])), \"AUTO\"),\nIFERROR((1-SUM(K30,N30,O30)/SUM(Table5[[#This Row],[Number of LATF funded whips planted]:[Number of LATF standards planted]])), \"AUTO\"))","v":"AUTO"},{"$f":"ROUNDUP((Table5[[#This Row],[(HIDE) Sum of LATF trees planted]]*0.75)-(Table5[[#This Row],[(HIDE) Sum of LATF trees planted]]*Table5[[#This Row],[Trees planted: Site survival rate (%)]]),0)","v":{"$error":"#VALUE!"}},"AUTO",null,0]
[null,null,null,null,null,null,null,null,null,{"$f":"SUM(Table5[[#This Row],[Number of LATF funded whips planted]:[Number of LATF standards planted]])","v":0},null,null,{"$f":"INT(IF(AND(Table5[[#This Row],[Number of Whips Lost]]=0,Table5[[#This Row],[Whip Survival Percentage:]]=0),0,(IF(K31=0, G31*(1-L31), \"0\"))))","v":0},null,null,0,null,null,null,null,null,{"$f":"IF(K31=0, IFERROR((1-SUM(M31,N31,O31)/SUM(Table5[[#This Row],[Number of LATF funded whips planted]:[Number of LATF standards planted]])), \"AUTO\"),\nIFERROR((1-SUM(K31,N31,O31)/SUM(Table5[[#This Row],[Number of LATF funded whips planted]:[Number of LATF standards planted]])), \"AUTO\"))","v":"AUTO"},{"$f":"ROUNDUP((Table5[[#This Row],[(HIDE) Sum of LATF trees planted]]*0.75)-(Table5[[#This Row],[(HIDE) Sum of LATF trees planted]]*Table5[[#This Row],[Trees planted: Site survival rate (%)]]),0)","v":{"$error":"#VALUE!"}},"AUTO",null,0]
[null,null,null,null,null,null,null,null,null,{"$f":"SUM(Table5[[#This Row],[Number of LATF funded whips planted]:[Number of LATF standards planted]])","v":0},null,null,{"$f":"INT(IF(AND(Table5[[#This Row],[Number of Whips Lost]]=0,Table5[[#This Row],[Whip Survival Percentage:]]=0),0,(IF(K32=0, G32*(1-L32), \"0\"))))","v":0},null,null,0,null,null,null,null,null,{"$f":"IF(K32=0, IFERROR((1-SUM(M32,N32,O32)/SUM(Table5[[#This Row],[Number of LATF funded whips planted]:[Number of LATF standards planted]])), \"AUTO\"),\nIFERROR((1-SUM(K32,N32,O32)/SUM(Table5[[#This Row],[Number of LATF funded whips planted]:[Number of LATF standards planted]])), \"AUTO\"))","v":"AUTO"},{"$f":"ROUNDUP((Table5[[#This Row],[(HIDE) Sum of LATF trees planted]]*0.75)-(Table5[[#This Row],[(HIDE) Sum of LATF trees planted]]*Table5[[#This Row],[Trees planted: Site survival rate (%)]]),0)","v":{"$error":"#VALUE!"}},"AUTO",null,0]
[null,null,null,null,null,null,null,null,null,{"$f":"SUM(Table5[[#This Row],[Number of LATF funded whips planted]:[Number of LATF standards planted]])","v":0},null,null,{"$f":"INT(IF(AND(Table5[[#This Row],[Number of Whips Lost]]=0,Table5[[#This Row],[Whip Survival Percentage:]]=0),0,(IF(K33=0, G33*(1-L33), \"0\"))))","v":0},null,null,0,null,null,null,null,null,{"$f":"IF(K33=0, IFERROR((1-SUM(M33,N33,O33)/SUM(Table5[[#This Row],[Number of LATF funded whips planted]:[Number of LATF standards planted]])), \"AUTO\"),\nIFERROR((1-SUM(K33,N33,O33)/SUM(Table5[[#This Row],[Number of LATF funded whips planted]:[Number of LATF standards planted]])), \"AUTO\"))","v":"AUTO"},{"$f":"ROUNDUP((Table5[[#This Row],[(HIDE) Sum of LATF trees planted]]*0.75)-(Table5[[#This Row],[(HIDE) Sum of LATF trees planted]]*Table5[[#This Row],[Trees planted: Site survival rate (%)]]),0)","v":{"$error":"#VALUE!"}},"AUTO",null,0]
[null,null,null,null,null,null,null,null,null,{"$f":"SUM(Table5[[#This Row],[Number of LATF funded whips planted]:[Number of LATF standards planted]])","v":0},null,null,{"$f":"INT(IF(AND(Table5[[#This Row],[Number of Whips Lost]]=0,Table5[[#This Row],[Whip Survival Percentage:]]=0),0,(IF(K34=0, G34*(1-L34), \"0\"))))","v":0},null,null,0,null,null,null,null,null,{"$f":"IF(K34=0, IFERROR((1-SUM(M34,N34,O34)/SUM(Table5[[#This Row],[Number of LATF funded whips planted]:[Number of LATF standards planted]])), \"AUTO\"),\nIFERROR((1-SUM(K34,N34,O34)/SUM(Table5[[#This Row],[Number of LATF funded whips planted]:[Number of LATF standards planted]])), \"AUTO\"))","v":"AUTO"},{"$f":"ROUNDUP((Table5[[#This Row],[(HIDE) Sum of LATF trees planted]]*0.75)-(Table5[[#This Row],[(HIDE) Sum of LATF trees planted]]*Table5[[#This Row],[Trees planted: Site survival rate (%)]]),0)","v":{"$error":"#VALUE!"}},"AUTO",null,0]
[null,null,null,null,null,null,null,null,null,{"$f":"SUM(Table5[[#This Row],[Number of LATF funded whips planted]:[Number of LATF standards planted]])","v":0},null,null,{"$f":"INT(IF(AND(Table5[[#This Row],[Number of Whips Lost]]=0,Table5[[#This Row],[Whip Survival Percentage:]]=0),0,(IF(K35=0, G35*(1-L35), \"0\"))))","v":0},null,null,0,null,null,null,null,null,{"$f":"IF(K35=0, IFERROR((1-SUM(M35,N35,O35)/SUM(Table5[[#This Row],[Number of LATF funded whips planted]:[Number of LATF standards planted]])), \"AUTO\"),\nIFERROR((1-SUM(K35,N35,O35)/SUM(Table5[[#This Row],[Number of LATF funded whips planted]:[Number of LATF standards planted]])), \"AUTO\"))","v":"AUTO"},{"$f":"ROUNDUP((Table5[[#This Row],[(HIDE) Sum of LATF trees planted]]*0.75)-(Table5[[#This Row],[(HIDE) Sum of LATF trees planted]]*Table5[[#This Row],[Trees planted: Site survival rate (%)]]),0)","v":{"$error":"#VALUE!"}},"AUTO",null,0]
[null,null,null,null,null,null,null,null,null,{"$f":"SUM(Table5[[#This Row],[Number of LATF funded whips planted]:[Number of LATF standards planted]])","v":0},null,null,{"$f":"INT(IF(AND(Table5[[#This Row],[Number of Whips Lost]]=0,Table5[[#This Row],[Whip Survival Percentage:]]=0),0,(IF(K36=0, G36*(1-L36), \"0\"))))","v":0},null,null,0,null,null,null,null,null,{"$f":"IF(K36=0, IFERROR((1-SUM(M36,N36,O36)/SUM(Table5[[#This Row],[Number of LATF funded whips planted]:[Number of LATF standards planted]])), \"AUTO\"),\nIFERROR((1-SUM(K36,N36,O36)/SUM(Table5[[#This Row],[Number of LATF funded whips planted]:[Number of LATF standards planted]])), \"AUTO\"))","v":"AUTO"},{"$f":"ROUNDUP((Table5[[#This Row],[(HIDE) Sum of LATF trees planted]]*0.75)-(Table5[[#This Row],[(HIDE) Sum of LATF trees planted]]*Table5[[#This Row],[Trees planted: Site survival rate (%)]]),0)","v":{"$error":"#VALUE!"}},"AUTO",null,0]
[null,null,null,null,null,null,null,null,null,{"$f":"SUM(Table5[[#This Row],[Number of LATF funded whips planted]:[Number of LATF standards planted]])","v":0},null,null,{"$f":"INT(IF(AND(Table5[[#This Row],[Number of Whips Lost]]=0,Table5[[#This Row],[Whip Survival Percentage:]]=0),0,(IF(K37=0, G37*(1-L37), \"0\"))))","v":0},null,null,0,null,null,null,null,null,{"$f":"IF(K37=0, IFERROR((1-SUM(M37,N37,O37)/SUM(Table5[[#This Row],[Number of LATF funded whips planted]:[Number of LATF standards planted]])), \"AUTO\"),\nIFERROR((1-SUM(K37,N37,O37)/SUM(Table5[[#This Row],[Number of LATF funded whips planted]:[Number of LATF standards planted]])), \"AUTO\"))","v":"AUTO"},{"$f":"ROUNDUP((Table5[[#This Row],[(HIDE) Sum of LATF trees planted]]*0.75)-(Table5[[#This Row],[(HIDE) Sum of LATF trees planted]]*Table5[[#This Row],[Trees planted: Site survival rate (%)]]),0)","v":{"$error":"#VALUE!"}},"AUTO",null,0]
[null,null,null,null,null,null,null,null,null,{"$f":"SUM(Table5[[#This Row],[Number of LATF funded whips planted]:[Number of LATF standards planted]])","v":0},null,null,{"$f":"INT(IF(AND(Table5[[#This Row],[Number of Whips Lost]]=0,Table5[[#This Row],[Whip Survival Percentage:]]=0),0,(IF(K38=0, G38*(1-L38), \"0\"))))","v":0},null,null,0,null,null,null,null,null,{"$f":"IF(K38=0, IFERROR((1-SUM(M38,N38,O38)/SUM(Table5[[#This Row],[Number of LATF funded whips planted]:[Number of LATF standards planted]])), \"AUTO\"),\nIFERROR((1-SUM(K38,N38,O38)/SUM(Table5[[#This Row],[Number of LATF funded whips planted]:[Number of LATF standards planted]])), \"AUTO\"))","v":"AUTO"},{"$f":"ROUNDUP((Table5[[#This Row],[(HIDE) Sum of LATF trees planted]]*0.75)-(Table5[[#This Row],[(HIDE) Sum of LATF trees planted]]*Table5[[#This Row],[Trees planted: Site survival rate (%)]]),0)","v":{"$error":"#VALUE!"}},"AUTO",null,0]
[null,null,null,null,null,null,null,null,null,{"$f":"SUM(Table5[[#This Row],[Number of LATF funded whips planted]:[Number of LATF standards planted]])","v":0},null,null,{"$f":"INT(IF(AND(Table5[[#This Row],[Number of Whips Lost]]=0,Table5[[#This Row],[Whip Survival Percentage:]]=0),0,(IF(K39=0, G39*(1-L39), \"0\"))))","v":0},null,null,0,null,null,null,null,null,{"$f":"IF(K39=0, IFERROR((1-SUM(M39,N39,O39)/SUM(Table5[[#This Row],[Number of LATF funded whips planted]:[Number of LATF standards planted]])), \"AUTO\"),\nIFERROR((1-SUM(K39,N39,O39)/SUM(Table5[[#This Row],[Number of LATF funded whips planted]:[Number of LATF standards planted]])), \"AUTO\"))","v":"AUTO"},{"$f":"ROUNDUP((Table5[[#This Row],[(HIDE) Sum of LATF trees planted]]*0.75)-(Table5[[#This Row],[(HIDE) Sum of LATF trees planted]]*Table5[[#This Row],[Trees planted: Site survival rate (%)]]),0)","v":{"$error":"#VALUE!"}},"AUTO",null,0]
[null,null,null,null,null,null,null,null,null,{"$f":"SUM(Table5[[#This Row],[Number of LATF funded whips planted]:[Number of LATF standards planted]])","v":0},null,null,{"$f":"INT(IF(AND(Table5[[#This Row],[Number of Whips Lost]]=0,Table5[[#This Row],[Whip Survival Percentage:]]=0),0,(IF(K40=0, G40*(1-L40), \"0\"))))","v":0},null,null,0,null,null,null,null,null,{"$f":"IF(K40=0, IFERROR((1-SUM(M40,N40,O40)/SUM(Table5[[#This Row],[Number of LATF funded whips planted]:[Number of LATF standards planted]])), \"AUTO\"),\nIFERROR((1-SUM(K40,N40,O40)/SUM(Table5[[#This Row],[Number of LATF funded whips planted]:[Number of LATF standards planted]])), \"AUTO\"))","v":"AUTO"},{"$f":"ROUNDUP((Table5[[#This Row],[(HIDE) Sum of LATF trees planted]]*0.75)-(Table5[[#This Row],[(HIDE) Sum of LATF trees planted]]*Table5[[#This Row],[Trees planted: Site survival rate (%)]]),0)","v":{"$error":"#VALUE!"}},"AUTO",null,0]
[null,null,null,null,null,null,null,null,null,{"$f":"SUM(Table5[[#This Row],[Number of LATF funded whips planted]:[Number of LATF standards planted]])","v":0},null,null,{"$f":"INT(IF(AND(Table5[[#This Row],[Number of Whips Lost]]=0,Table5[[#This Row],[Whip Survival Percentage:]]=0),0,(IF(K41=0, G41*(1-L41), \"0\"))))","v":0},null,null,0,null,null,null,null,null,{"$f":"IF(K41=0, IFERROR((1-SUM(M41,N41,O41)/SUM(Table5[[#This Row],[Number of LATF funded whips planted]:[Number of LATF standards planted]])), \"AUTO\"),\nIFERROR((1-SUM(K41,N41,O41)/SUM(Table5[[#This Row],[Number of LATF funded whips planted]:[Number of LATF standards planted]])), \"AUTO\"))","v":"AUTO"},{"$f":"ROUNDUP((Table5[[#This Row],[(HIDE) Sum of LATF trees planted]]*0.75)-(Table5[[#This Row],[(HIDE) Sum of LATF trees planted]]*Table5[[#This Row],[Trees planted: Site survival rate (%)]]),0)","v":{"$error":"#VALUE!"}},"AUTO",null,0]
[null,null,null,null,null,null,null,null,null,{"$f":"SUM(Table5[[#This Row],[Number of LATF funded whips planted]:[Number of LATF standards planted]])","v":0},null,null,{"$f":"INT(IF(AND(Table5[[#This Row],[Number of Whips Lost]]=0,Table5[[#This Row],[Whip Survival Percentage:]]=0),0,(IF(K42=0, G42*(1-L42), \"0\"))))","v":0},null,null,0,null,null,null,null,null,{"$f":"IF(K42=0, IFERROR((1-SUM(M42,N42,O42)/SUM(Table5[[#This Row],[Number of LATF funded whips planted]:[Number of LATF standards planted]])), \"AUTO\"),\nIFERROR((1-SUM(K42,N42,O42)/SUM(Table5[[#This Row],[Number of LATF funded whips planted]:[Number of LATF standards planted]])), \"AUTO\"))","v":"AUTO"},{"$f":"ROUNDUP((Table5[[#This Row],[(HIDE) Sum of LATF trees planted]]*0.75)-(Table5[[#This Row],[(HIDE) Sum of LATF trees planted]]*Table5[[#This Row],[Trees planted: Site survival rate (%)]]),0)","v":{"$error":"#VALUE!"}},"AUTO",null,0]
[null,null,null,null,null,null,null,null,null,{"$f":"SUM(Table5[[#This Row],[Number of LATF funded whips planted]:[Number of LATF standards planted]])","v":0},null,null,{"$f":"INT(IF(AND(Table5[[#This Row],[Number of Whips Lost]]=0,Table5[[#This Row],[Whip Survival Percentage:]]=0),0,(IF(K43=0, G43*(1-L43), \"0\"))))","v":0},null,null,0,null,null,null,null,null,{"$f":"IF(K43=0, IFERROR((1-SUM(M43,N43,O43)/SUM(Table5[[#This Row],[Number of LATF funded whips planted]:[Number of LATF standards planted]])), \"AUTO\"),\nIFERROR((1-SUM(K43,N43,O43)/SUM(Table5[[#This Row],[Number of LATF funded whips planted]:[Number of LATF standards planted]])), \"AUTO\"))","v":"AUTO"},{"$f":"ROUNDUP((Table5[[#This Row],[(HIDE) Sum of LATF trees planted]]*0.75)-(Table5[[#This Row],[(HIDE) Sum of LATF trees planted]]*Table5[[#This Row],[Trees planted: Site survival rate (%)]]),0)","v":{"$error":"#VALUE!"}},"AUTO",null,0]
[null,null,null,null,null,null,null,null,null,{"$f":"SUM(Table5[[#This Row],[Number of LATF funded whips planted]:[Number of LATF standards planted]])","v":0},null,null,{"$f":"INT(IF(AND(Table5[[#This Row],[Number of Whips Lost]]=0,Table5[[#This Row],[Whip Survival Percentage:]]=0),0,(IF(K44=0, G44*(1-L44), \"0\"))))","v":0},null,null,0,null,null,null,null,null,{"$f":"IF(K44=0, IFERROR((1-SUM(M44,N44,O44)/SUM(Table5[[#This Row],[Number of LATF funded whips planted]:[Number of LATF standards planted]])), \"AUTO\"),\nIFERROR((1-SUM(K44,N44,O44)/SUM(Table5[[#This Row],[Number of LATF funded whips planted]:[Number of LATF standards planted]])), \"AUTO\"))","v":"AUTO"},{"$f":"ROUNDUP((Table5[[#This Row],[(HIDE) Sum of LATF trees planted]]*0.75)-(Table5[[#This Row],[(HIDE) Sum of LATF trees planted]]*Table5[[#This Row],[Trees planted: Site survival rate (%)]]),0)","v":{"$error":"#VALUE!"}},"AUTO",null,0]
[null,null,null,null,null,null,null,null,null,{"$f":"SUM(Table5[[#This Row],[Number of LATF funded whips planted]:[Number of LATF standards planted]])","v":0},null,null,{"$f":"INT(IF(AND(Table5[[#This Row],[Number of Whips Lost]]=0,Table5[[#This Row],[Whip Survival Percentage:]]=0),0,(IF(K45=0, G45*(1-L45), \"0\"))))","v":0},null,null,0,null,null,null,null,null,{"$f":"IF(K45=0, IFERROR((1-SUM(M45,N45,O45)/SUM(Table5[[#This Row],[Number of LATF funded whips planted]:[Number of LATF standards planted]])), \"AUTO\"),\nIFERROR((1-SUM(K45,N45,O45)/SUM(Table5[[#This Row],[Number of LATF funded whips planted]:[Number of LATF standards planted]])), \"AUTO\"))","v":"AUTO"},{"$f":"ROUNDUP((Table5[[#This Row],[(HIDE) Sum of LATF trees planted]]*0.75)-(Table5[[#This Row],[(HIDE) Sum of LATF trees planted]]*Table5[[#This Row],[Trees planted: Site survival rate (%)]]),0)","v":{"$error":"#VALUE!"}},"AUTO",null,0]

{"sheet":"Part 2 - Restocking information","index":1,"n_rows":200,"n_cols":29,"rows_kept":200,"cut":false,"hidden":false,"merged":[[0,2,0,17],[5,1,5,14],[5,15,5,19],[2,1,2,18],[3,2,3,7]]}
[null,null,null,null,null,null,null,null,null,null,null,null,null,null,null,null,null,null,null,null,null,null,null,null,null,null,null,null,"Filter BY:"]
[null,null,null,null,null,null,null,null,null,null,null,null,null,null,null,null,null,null,null,null,null,null,null,null,null,null,null,null,"Y"]
[]
[null,"FY in which re-stocking will take place (must align with when your final maintenance payment is due for either Year 1 or Year 2 trees)"]
[]
[null,"Complete by 1st October",null,null,null,null,null,null,null,null,null,null,null,null,null,"Complete and return by 31st March"]
[null,"Local Authority Name","Site Name","Number of trees needed to restock to reach 75%","Whip max restock","Feather max restock","Standards max restock","Number of whips to restock ","Number of feathers to restock","Number of standards to restock","Total number of trees to be restocked - lost trees should be replaced like for like.  For example, standards lost must be replaced with standards","(HIDE) Number of trees planted","(HIDE) Number of trees Lost","Number of trees (all sizes)  surviving","Number of trees originally planted","Restocking completed","Updated survival rate (%)","Photographic evidence has been provided to show the restocking work","Photograph Name and Description ","Map provided (name of map) if planting locations differ"]
[null,{"$f":"_xlfn.CHOOSECOLS(_xlfn._xlws.FILTER(Table5[], Table5[Site requires restocking (if <75% survival rate) - planting sites only] ='Part 2 - Restocking information'!AC2,\"\"),1,2)","v":"e.g  Welwyn Hatfield Borough Council\t"},"e.g Planting site 1 - Brook road park ",{"$f":"IFERROR(VLOOKUP(C8,Table5[[Site Name]:[Site requires restocking (if <75% survival rate) - planting sites only]],21,FALSE),\"\")","v":10},null,null,null,40,20,10,{"$f":"IF(SUM('Part 2 - Restocking information'!$H8:$J8)=0,\"\",SUM('Part 2 - Restocking information'!$H8:$J8))","v":70},{"$f":"IFERROR(VLOOKUP(C8,Table5[[Site Name]:[(HIDE) Sum of LATF trees planted]],8,FALSE),\"\")","v":240},{"$f":"IFERROR(VLOOKUP(C8,Table5[[Site Name]:[(HIDE) SUM of LATF Trees Loss]],14,FALSE),\"\")","v":70},{"$f":"IFERROR(IF(L8 - M8 = 0, \"\", L8-M8),\"\")","v":170},{"$f":"IFERROR(IF(VLOOKUP(C8,Table5[[Site Name]:[(HIDE) Sum of LATF trees planted]],8,FALSE)=0, \"\", VLOOKUP(C8,Table5[[Site Name]:[(HIDE) Sum of LATF trees planted]],8,FALSE)),\"\")","v":240},"Y",{"$f":"IFERROR(('Part 2 - Restocking information'!$K8+'Part 2 - Restocking information'!$N8)/'Part 2 - Restocking information'!$O8*100, \"\")","v":100},"Y","Brook Road Park - Restocking Photo","Brook Road Park - Restocking Map"]
[null,null,null,{"$f":"IFERROR(VLOOKUP(C9,Table5[[Site Name]:[Site requires restocking (if <75% survival rate) - planting sites only]],21,FALSE),\"\")","v":""},{"$f":"VLOOKUP($C9,Table5[[Site Name]:[(HIDE) Whips lost]],24,FALSE)","v":{"$error":"#N/A"}},{"$f":"VLOOKUP($C9,Table5[[Site Name]:[(HIDE) Whips lost]],12,FALSE)","v":{"$error":"#N/A"}},{"$f":"VLOOKUP($C9,Table5[[Site Name]:[(HIDE) Whips lost]],13,FALSE)","v":{"$error":"#N/A"}},null,null,null,{"$f":"IF(SUM('Part 2 - Restocking information'!$H9:$J9)=0,\"\",SUM('Part 2 - Restocking information'!$H9:$J9))","v":""},{"$f":"IFERROR(VLOOKUP(C9,Table5[[Site Name]:[(HIDE) Sum of LATF trees planted]],8,FALSE),\"\")","v":""},{"$f":"IFERROR(VLOOKUP(C9,Table5[[Site Name]:[(HIDE) SUM of LATF Trees Loss]],14,FALSE),\"\")","v":""},"",{"$f":"IFERROR(IF(VLOOKUP(C9,Table5[[Site Name]:[(HIDE) Sum of LATF trees planted]],8,FALSE)=0, \"\", VLOOKUP(C9,Table5[[Site Name]:[(HIDE) Sum of LATF trees planted]],8,FALSE)),\"\")","v":""},null,{"$f":"IFERROR(('Part 2 - Restocking information'!$K9+'Part 2 - Restocking information'!$N9)/'Part 2 - Restocking information'!$O9*100, \"\")","v":""}]
[null,null,null,{"$f":"IFERROR(VLOOKUP(C10,Table5[[Site Name]:[Site requires restocking (if <75% survival rate) - planting sites only]],21,FALSE),\"\")","v":""},{"$f":"VLOOKUP($C10,Table5[[Site Name]:[(HIDE) Whips lost]],24,FALSE)","v":{"$error":"#N/A"}},{"$f":"VLOOKUP($C10,Table5[[Site Name]:[(HIDE) Whips lost]],12,FALSE)","v":{"$error":"#N/A"}},{"$f":"VLOOKUP($C10,Table5[[Site Name]:[(HIDE) Whips lost]],13,FALSE)","v":{"$error":"#N/A"}},null,null,null,{"$f":"IF(SUM('Part 2 - Restocking information'!$H10:$J10)=0,\"\",SUM('Part 2 - Restocking information'!$H10:$J10))","v":""},{"$f":"IFERROR(VLOOKUP(C10,Table5[[Site Name]:[(HIDE) Sum of LATF trees planted]],8,FALSE),\"\")","v":""},{"$f":"IFERROR(VLOOKUP(C10,Table5[[Site Name]:[(HIDE) SUM of LATF Trees Loss]],14,FALSE),\"\")","v":""},"",{"$f":"IFERROR(IF(VLOOKUP(C10,Table5[[Site Name]:[(HIDE) Sum of LATF trees planted]],8,FALSE)=0, \"\", VLOOKUP(C10,Table5[[Site Name]:[(HIDE) Sum of LATF trees planted]],8,FALSE)),\"\")","v":""},null,{"$f":"IFERROR(('Part 2 - Restocking information'!$K10+'Part 2 - Restocking information'!$N10)/'Part 2 - Restocking information'!$O10*100, \"\")","v":""}]
[null,null,null,{"$f":"IFERROR(VLOOKUP(C11,Table5[[Site Name]:[Site requires restocking (if <75% survival rate) - planting sites only]],21,FALSE),\"\")","v":""},{"$f":"VLOOKUP($C11,Table5[[Site Name]:[(HIDE) Whips lost]],24,FALSE)","v":{"$error":"#N/A"}},{"$f":"VLOOKUP($C11,Table5[[Site Name]:[(HIDE) Whips lost]],12,FALSE)","v":{"$error":"#N/A"}},{"$f":"VLOOKUP($C11,Table5[[Site Name]:[(HIDE) Whips lost]],13,FALSE)","v":{"$error":"#N/A"}},null,null,null,{"$f":"IF(SUM('Part 2 - Restocking information'!$H11:$J11)=0,\"\",SUM('Part 2 - Restocking information'!$H11:$J11))","v":""},{"$f":"IFERROR(VLOOKUP(C11,Table5[[Site Name]:[(HIDE) Sum of LATF trees planted]],8,FALSE),\"\")","v":""},{"$f":"IFERROR(VLOOKUP(C11,Table5[[Site Name]:[(HIDE) SUM of LATF Trees Loss]],14,FALSE),\"\")","v":""},"",{"$f":"IFERROR(IF(VLOOKUP(C11,Table5[[Site Name]:[(HIDE) Sum of LATF trees planted]],8,FALSE)=0, \"\", VLOOKUP(C11,Table5[[Site Name]:[(HIDE) Sum of LATF trees planted]],8,FALSE)),\"\")","v":""},null,{"$f":"IFERROR(('Part 2 - Restocking information'!$K11+'Part 2 - Restocking information'!$N11)/'Part 2 - Restocking information'!$O11*100, \"\")","v":""}]
[null,null,null,{"$f":"IFERROR(VLOOKUP(C12,Table5[[Site Name]:[Site requires restocking (if <75% survival rate) - planting sites only]],21,FALSE),\"\")","v":""},{"$f":"VLOOKUP($C12,Table5[[Site Name]:[(HIDE) Whips lost]],24,FALSE)","v":{"$error":"#N/A"}},{"$f":"VLOOKUP($C12,Table5[[Site Name]:[(HIDE) Whips lost]],12,FALSE)","v":{"$error":"#N/A"}},{"$f":"VLOOKUP($C12,Table5[[Site Name]:[(HIDE) Whips lost]],13,FALSE)","v":{"$error":"#N/A"}},null,null,null,{"$f":"IF(SUM('Part 2 - Restocking information'!$H12:$J12)=0,\"\",SUM('Part 2 - Restocking information'!$H12:$J12))","v":""},{"$f":"IFERROR(VLOOKUP(C12,Table5[[Site Name]:[(HIDE) Sum of LATF trees planted]],8,FALSE),\"\")","v":""},{"$f":"IFERROR(VLOOKUP(C12,Table5[[Site Name]:[(HIDE) SUM of LATF Trees Loss]],14,FALSE),\"\")","v":""},"",{"$f":"IFERROR(IF(VLOOKUP(C12,Table5[[Site Name]:[(HIDE) Sum of LATF trees planted]],8,FALSE)=0, \"\", VLOOKUP(C12,Table5[[Site Name]:[(HIDE) Sum of LATF trees planted]],8,FALSE)),\"\")","v":""},null,{"$f":"IFERROR(('Part 2 - Restocking information'!$K12+'Part 2 - Restocking information'!$N12)/'Part 2 - Restocking information'!$O12*100, \"\")","v":""}]
[null,null,null,{"$f":"IFERROR(VLOOKUP(C13,Table5[[Site Name]:[Site requires restocking (if <75% survival rate) - planting sites only]],21,FALSE),\"\")","v":""},{"$f":"VLOOKUP($C13,Table5[[Site Name]:[(HIDE) Whips lost]],24,FALSE)","v":{"$error":"#N/A"}},{"$f":"VLOOKUP($C13,Table5[[Site Name]:[(HIDE) Whips lost]],12,FALSE)","v":{"$error":"#N/A"}},{"$f":"VLOOKUP($C13,Table5[[Site Name]:[(HIDE) Whips lost]],13,FALSE)","v":{"$error":"#N/A"}},null,null,null,{"$f":"IF(SUM('Part 2 - Restocking information'!$H13:$J13)=0,\"\",SUM('Part 2 - Restocking information'!$H13:$J13))","v":""},{"$f":"IFERROR(VLOOKUP(C13,Table5[[Site Name]:[(HIDE) Sum of LATF trees planted]],8,FALSE),\"\")","v":""},{"$f":"IFERROR(VLOOKUP(C13,Table5[[Site Name]:[(HIDE) SUM of LATF Trees Loss]],14,FALSE),\"\")","v":""},"",{"$f":"IFERROR(IF(VLOOKUP(C13,Table5[[Site Name]:[(HIDE) Sum of LATF trees planted]],8,FALSE)=0, \"\", VLOOKUP(C13,Table5[[Site Name]:[(HIDE) Sum of LATF trees planted]],8,FALSE)),\"\")","v":""},null,{"$f":"IFERROR(('Part 2 - Restocking information'!$K13+'Part 2 - Restocking information'!$N13)/'Part 2 - Restocking information'!$O13*100, \"\")","v":""}]
[null,null,null,{"$f":"IFERROR(VLOOKUP(C14,Table5[[Site Name]:[Site requires restocking (if <75% survival rate) - planting sites only]],21,FALSE),\"\")","v":""},{"$f":"VLOOKUP($C14,Table5[[Site Name]:[(HIDE) Whips lost]],24,FALSE)","v":{"$error":"#N/A"}},{"$f":"VLOOKUP($C14,Table5[[Site Name]:[(HIDE) Whips lost]],12,FALSE)","v":{"$error":"#N/A"}},{"$f":"VLOOKUP($C14,Table5[[Site Name]:[(HIDE) Whips lost]],13,FALSE)","v":{"$error":"#N/A"}},null,null,null,{"$f":"IF(SUM('Part 2 - Restocking information'!$H14:$J14)=0,\"\",SUM('Part 2 - Restocking information'!$H14:$J14))","v":""},{"$f":"IFERROR(VLOOKUP(C14,Table5[[Site Name]:[(HIDE) Sum of LATF trees planted]],8,FALSE),\"\")","v":""},{"$f":"IFERROR(VLOOKUP(C14,Table5[[Site Name]:[(HIDE) SUM of LATF Trees Loss]],14,FALSE),\"\")","v":""},"",{"$f":"IFERROR(IF(VLOOKUP(C14,Table5[[Site Name]:[(HIDE) Sum of LATF trees planted]],8,FALSE)=0, \"\", VLOOKUP(C14,Table5[[Site Name]:[(HIDE) Sum of LATF trees planted]],8,FALSE)),\"\")","v":""},null,{"$f":"IFERROR(('Part 2 - Restocking information'!$K14+'Part 2 - Restocking information'!$N14)/'Part 2 - Restocking information'!$O14*100, \"\")","v":""}]
[null,null,null,{"$f":"IFERROR(VLOOKUP(C15,Table5[[Site Name]:[Site requires restocking (if <75% survival rate) - planting sites only]],21,FALSE),\"\")","v":""},{"$f":"VLOOKUP($C15,Table5[[Site Name]:[(HIDE) Whips lost]],24,FALSE)","v":{"$error":"#N/A"}},{"$f":"VLOOKUP($C15,Table5[[Site Name]:[(HIDE) Whips lost]],12,FALSE)","v":{"$error":"#N/A"}},{"$f":"VLOOKUP($C15,Table5[[Site Name]:[(HIDE) Whips lost]],13,FALSE)","v":{"$error":"#N/A"}},null,null,null,{"$f":"IF(SUM('Part 2 - Restocking information'!$H15:$J15)=0,\"\",SUM('Part 2 - Restocking information'!$H15:$J15))","v":""},{"$f":"IFERROR(VLOOKUP(C15,Table5[[Site Name]:[(HIDE) Sum of LATF trees planted]],8,FALSE),\"\")","v":""},{"$f":"IFERROR(VLOOKUP(C15,Table5[[Site Name]:[(HIDE) SUM of LATF Trees Loss]],14,FALSE),\"\")","v":""},"",{"$f":"IFERROR(IF(VLOOKUP(C15,Table5[[Site Name]:[(HIDE) Sum of LATF trees planted]],8,FALSE)=0, \"\", VLOOKUP(C15,Table5[[Site Name]:[(HIDE) Sum of LATF trees planted]],8,FALSE)),\"\")","v":""},null,{"$f":"IFERROR(('Part 2 - Restocking information'!$K15+'Part 2 - Restocking information'!$N15)/'Part 2 - Restocking information'!$O15*100, \"\")","v":""}]
[null,null,null,{"$f":"IFERROR(VLOOKUP(C16,Table5[[Site Name]:[Site requires restocking (if <75% survival rate) - planting sites only]],21,FALSE),\"\")","v":""},{"$f":"VLOOKUP($C16,Table5[[Site Name]:[(HIDE) Whips lost]],24,FALSE)","v":{"$error":"#N/A"}},{"$f":"VLOOKUP($C16,Table5[[Site Name]:[(HIDE) Whips lost]],12,FALSE)","v":{"$error":"#N/A"}},{"$f":"VLOOKUP($C16,Table5[[Site Name]:[(HIDE) Whips lost]],13,FALSE)","v":{"$error":"#N/A"}},null,null,null,{"$f":"IF(SUM('Part 2 - Restocking information'!$H16:$J16)=0,\"\",SUM('Part 2 - Restocking information'!$H16:$J16))","v":""},{"$f":"IFERROR(VLOOKUP(C16,Table5[[Site Name]:[(HIDE) Sum of LATF trees planted]],8,FALSE),\"\")","v":""},{"$f":"IFERROR(VLOOKUP(C16,Table5[[Site Name]:[(HIDE) SUM of LATF Trees Loss]],14,FALSE),\"\")","v":""},"",{"$f":"IFERROR(IF(VLOOKUP(C16,Table5[[Site Name]:[(HIDE) Sum of LATF trees planted]],8,FALSE)=0, \"\", VLOOKUP(C16,Table5[[Site Name]:[(HIDE) Sum of LATF trees planted]],8,FALSE)),\"\")","v":""},null,{"$f":"IFERROR(('Part 2 - Restocking information'!$K16+'Part 2 - Restocking information'!$N16)/'Part 2 - Restocking information'!$O16*100, \"\")","v":""}]
[null,null,null,{"$f":"IFERROR(VLOOKUP(C17,Table5[[Site Name]:[Site requires restocking (if <75% survival rate) - planting sites only]],21,FALSE),\"\")","v":""},{"$f":"VLOOKUP($C17,Table5[[Site Name]:[(HIDE) Whips lost]],24,FALSE)","v":{"$error":"#N/A"}},{"$f":"VLOOKUP($C17,Table5[[Site Name]:[(HIDE) Whips lost]],12,FALSE)","v":{"$error":"#N/A"}},{"$f":"VLOOKUP($C17,Table5[[Site Name]:[(HIDE) Whips lost]],13,FALSE)","v":{"$error":"#N/A"}},null,null,null,{"$f":"IF(SUM('Part 2 - Restocking information'!$H17:$J17)=0,\"\",SUM('Part 2 - Restocking information'!$H17:$J17))","v":""},{"$f":"IFERROR(VLOOKUP(C17,Table5[[Site Name]:[(HIDE) Sum of LATF trees planted]],8,FALSE),\"\")","v":""},{"$f":"IFERROR(VLOOKUP(C17,Table5[[Site Name]:[(HIDE) SUM of LATF Trees Loss]],14,FALSE),\"\")","v":""},"",{"$f":"IFERROR(IF(VLOOKUP(C17,Table5[[Site Name]:[(HIDE) Sum of LATF trees planted]],8,FALSE)=0, \"\", VLOOKUP(C17,Table5[[Site Name]:[(HIDE) Sum of LATF trees planted]],8,FALSE)),\"\")","v":""},null,{"$f":"IFERROR(('Part 2 - Restocking information'!$K17+'Part 2 - Restocking information'!$N17)/'Part 2 - Restocking information'!$O17*100, \"\")","v":""}]
[null,null,null,{"$f":"IFERROR(VLOOKUP(C18,Table5[[Site Name]:[Site requires restocking (if <75% survival rate) - planting sites only]],21,FALSE),\"\")","v":""},{"$f":"VLOOKUP($C18,Table5[[Site Name]:[(HIDE) Whips lost]],24,FALSE)","v":{"$error":"#N/A"}},{"$f":"VLOOKUP($C18,Table5[[Site Name]:[(HIDE) Whips lost]],12,FALSE)","v":{"$error":"#N/A"}},{"$f":"VLOOKUP($C18,Table5[[Site Name]:[(HIDE) Whips lost]],13,FALSE)","v":{"$error":"#N/A"}},null,null,null,{"$f":"IF(SUM('Part 2 - Restocking information'!$H18:$J18)=0,\"\",SUM('Part 2 - Restocking information'!$H18:$J18))","v":""},{"$f":"IFERROR(VLOOKUP(C18,Table5[[Site Name]:[(HIDE) Sum of LATF trees planted]],8,FALSE),\"\")","v":""},{"$f":"IFERROR(VLOOKUP(C18,Table5[[Site Name]:[(HIDE) SUM of LATF Trees Loss]],14,FALSE),\"\")","v":""},"",{"$f":"IFERROR(IF(VLOOKUP(C18,Table5[[Site Name]:[(HIDE) Sum of LATF trees planted]],8,FALSE)=0, \"\", VLOOKUP(C18,Table5[[Site Name]:[(HIDE) Sum of LATF trees planted]],8,FALSE)),\"\")","v":""},null,{"$f":"IFERROR(('Part 2 - Restocking information'!$K18+'Part 2 - Restocking information'!$N18)/'Part 2 - Restocking information'!$O18*100, \"\")","v":""}]
[null,null,null,{"$f":"IFERROR(VLOOKUP(C19,Table5[[Site Name]:[Site requires restocking (if <75% survival rate) - planting sites only]],21,FALSE),\"\")","v":""},{"$f":"VLOOKUP($C19,Table5[[Site Name]:[(HIDE) Whips lost]],24,FALSE)","v":{"$error":"#N/A"}},{"$f":"VLOOKUP($C19,Table5[[Site Name]:[(HIDE) Whips lost]],12,FALSE)","v":{"$error":"#N/A"}},{"$f":"VLOOKUP($C19,Table5[[Site Name]:[(HIDE) Whips lost]],13,FALSE)","v":{"$error":"#N/A"}},null,null,null,{"$f":"IF(SUM('Part 2 - Restocking information'!$H19:$J19)=0,\"\",SUM('Part 2 - Restocking information'!$H19:$J19))","v":""},{"$f":"IFERROR(VLOOKUP(C19,Table5[[Site Name]:[(HIDE) Sum of LATF trees planted]],8,FALSE),\"\")","v":""},{"$f":"IFERROR(VLOOKUP(C19,Table5[[Site Name]:[(HIDE) SUM of LATF Trees Loss]],14,FALSE),\"\")","v":""},"",{"$f":"IFERROR(IF(VLOOKUP(C19,Table5[[Site Name]:[(HIDE) Sum of LATF trees planted]],8,FALSE)=0, \"\", VLOOKUP(C19,Table5[[Site Name]:[(HIDE) Sum of LATF trees planted]],8,FALSE)),\"\")","v":""},null,{"$f":"IFERROR(('Part 2 - Restocking information'!$K19+'Part 2 - Restocking information'!$N19)/'Part 2 - Restocking information'!$O19*100, \"\")","v":""}]
[null,null,null,{"$f":"IFERROR(VLOOKUP(C20,Table5[[Site Name]:[Site requires restocking (if <75% survival rate) - planting sites only]],21,FALSE),\"\")","v":""},{"$f":"VLOOKUP($C20,Table5[[Site Name]:[(HIDE) Whips lost]],24,FALSE)","v":{"$error":"#N/A"}},{"$f":"VLOOKUP($C20,Table5[[Site Name]:[(HIDE) Whips lost]],12,FALSE)","v":{"$error":"#N/A"}},{"$f":"VLOOKUP($C20,Table5[[Site Name]:[(HIDE) Whips lost]],13,FALSE)","v":{"$error":"#N/A"}},null,null,null,{"$f":"IF(SUM('Part 2 - Restocking information'!$H20:$J20)=0,\"\",SUM('Part 2 - Restocking information'!$H20:$J20))","v":""},{"$f":"IFERROR(VLOOKUP(C20,Table5[[Site Name]:[(HIDE) Sum of LATF trees planted]],8,FALSE),\"\")","v":""},{"$f":"IFERROR(VLOOKUP(C20,Table5[[Site Name]:[(HIDE) SUM of LATF Trees Loss]],14,FALSE),\"\")","v":""},"",{"$f":"IFERROR(IF(VLOOKUP(C20,Table5[[Site Name]:[(HIDE) Sum of LATF trees planted]],8,FALSE)=0, \"\", VLOOKUP(C20,Table5[[Site Name]:[(HIDE) Sum of LATF trees planted]],8,FALSE)),\"\")","v":""},null,{"$f":"IFERROR(('Part 2 - Restocking information'!$K20+'Part 2 - Restocking information'!$N20)/'Part 2 - Restocking information'!$O20*100, \"\")","v":""}]
[null,null,null,{"$f":"IFERROR(VLOOKUP(C21,Table5[[Site Name]:[Site requires restocking (if <75% survival rate) - planting sites only]],21,FALSE),\"\")","v":""},{"$f":"VLOOKUP($C21,Table5[[Site Name]:[(HIDE) Whips lost]],24,FALSE)","v":{"$error":"#N/A"}},{"$f":"VLOOKUP($C21,Table5[[Site Name]:[(HIDE) Whips lost]],12,FALSE)","v":{"$error":"#N/A"}},{"$f":"VLOOKUP($C21,Table5[[Site Name]:[(HIDE) Whips lost]],13,FALSE)","v":{"$error":"#N/A"}},null,null,null,{"$f":"IF(SUM('Part 2 - Restocking information'!$H21:$J21)=0,\"\",SUM('Part 2 - Restocking information'!$H21:$J21))","v":""},{"$f":"IFERROR(VLOOKUP(C21,Table5[[Site Name]:[(HIDE) Sum of LATF trees planted]],8,FALSE),\"\")","v":""},{"$f":"IFERROR(VLOOKUP(C21,Table5[[Site Name]:[(HIDE) SUM of LATF Trees Loss]],14,FALSE),\"\")","v":""},"",{"$f":"IFERROR(IF(VLOOKUP(C21,Table5[[Site Name]:[(HIDE) Sum of LATF trees planted]],8,FALSE)=0, \"\", VLOOKUP(C21,Table5[[Site Name]:[(HIDE) Sum of LATF trees planted]],8,FALSE)),\"\")","v":""},null,{"$f":"IFERROR(('Part 2 - Restocking information'!$K21+'Part 2 - Restocking information'!$N21)/'Part 2 - Restocking information'!$O21*100, \"\")","v":""}]
[null,null,null,{"$f":"IFERROR(VLOOKUP(C22,Table5[[Site Name]:[Site requires restocking (if <75% survival rate) - planting sites only]],21,FALSE),\"\")","v":""},{"$f":"VLOOKUP($C22,Table5[[Site Name]:[(HIDE) Whips lost]],24,FALSE)","v":{"$error":"#N/A"}},{"$f":"VLOOKUP($C22,Table5[[Site Name]:[(HIDE) Whips lost]],12,FALSE)","v":{"$error":"#N/A"}},{"$f":"VLOOKUP($C22,Table5[[Site Name]:[(HIDE) Whips lost]],13,FALSE)","v":{"$error":"#N/A"}},null,null,null,{"$f":"IF(SUM('Part 2 - Restocking information'!$H22:$J22)=0,\"\",SUM('Part 2 - Restocking information'!$H22:$J22))","v":""},{"$f":"IFERROR(VLOOKUP(C22,Table5[[Site Name]:[(HIDE) Sum of LATF trees planted]],8,FALSE),\"\")","v":""},{"$f":"IFERROR(VLOOKUP(C22,Table5[[Site Name]:[(HIDE) SUM of LATF Trees Loss]],14,FALSE),\"\")","v":""},"",{"$f":"IFERROR(IF(VLOOKUP(C22,Table5[[Site Name]:[(HIDE) Sum of LATF trees planted]],8,FALSE)=0, \"\", VLOOKUP(C22,Table5[[Site Name]:[(HIDE) Sum of LATF trees planted]],8,FALSE)),\"\")","v":""},null,{"$f":"IFERROR(('Part 2 - Restocking information'!$K22+'Part 2 - Restocking information'!$N22)/'Part 2 - Restocking information'!$O22*100, \"\")","v":""}]
[null,null,null,{"$f":"IFERROR(VLOOKUP(C23,Table5[[Site Name]:[Site requires restocking (if <75% survival rate) - planting sites only]],21,FALSE),\"\")","v":""},{"$f":"VLOOKUP($C23,Table5[[Site Name]:[(HIDE) Whips lost]],24,FALSE)","v":{"$error":"#N/A"}},{"$f":"VLOOKUP($C23,Table5[[Site Name]:[(HIDE) Whips lost]],12,FALSE)","v":{"$error":"#N/A"}},{"$f":"VLOOKUP($C23,Table5[[Site Name]:[(HIDE) Whips lost]],13,FALSE)","v":{"$error":"#N/A"}},null,null,null,{"$f":"IF(SUM('Part 2 - Restocking information'!$H23:$J23)=0,\"\",SUM('Part 2 - Restocking information'!$H23:$J23))","v":""},{"$f":"IFERROR(VLOOKUP(C23,Table5[[Site Name]:[(HIDE) Sum of LATF trees planted]],8,FALSE),\"\")","v":""},{"$f":"IFERROR(VLOOKUP(C23,Table5[[Site Name]:[(HIDE) SUM of LATF Trees Loss]],14,FALSE),\"\")","v":""},"",{"$f":"IFERROR(IF(VLOOKUP(C23,Table5[[Site Name]:[(HIDE) Sum of LATF trees planted]],8,FALSE)=0, \"\", VLOOKUP(C23,Table5[[Site Name]:[(HIDE) Sum of LATF trees planted]],8,FALSE)),\"\")","v":""},null,{"$f":"IFERROR(('Part 2 - Restocking information'!$K23+'Part 2 - Restocking information'!$N23)/'Part 2 - Restocking information'!$O23*100, \"\")","v":""}]
[null,null,null,{"$f":"IFERROR(VLOOKUP(C24,Table5[[Site Name]:[Site requires restocking (if <75% survival rate) - planting sites only]],21,FALSE),\"\")","v":""},{"$f":"VLOOKUP($C24,Table5[[Site Name]:[(HIDE) Whips lost]],24,FALSE)","v":{"$error":"#N/A"}},{"$f":"VLOOKUP($C24,Table5[[Site Name]:[(HIDE) Whips lost]],12,FALSE)","v":{"$error":"#N/A"}},{"$f":"VLOOKUP($C24,Table5[[Site Name]:[(HIDE) Whips lost]],13,FALSE)","v":{"$error":"#N/A"}},null,null,null,{"$f":"IF(SUM('Part 2 - Restocking information'!$H24:$J24)=0,\"\",SUM('Part 2 - Restocking information'!$H24:$J24))","v":""},{"$f":"IFERROR(VLOOKUP(C24,Table5[[Site Name]:[(HIDE) Sum of LATF trees planted]],8,FALSE),\"\")","v":""},{"$f":"IFERROR(VLOOKUP(C24,Table5[[Site Name]:[(HIDE) SUM of LATF Trees Loss]],14,FALSE),\"\")","v":""},"",{"$f":"IFERROR(IF(VLOOKUP(C24,Table5[[Site Name]:[(HIDE) Sum of LATF trees planted]],8,FALSE)=0, \"\", VLOOKUP(C24,Table5[[Site Name]:[(HIDE) Sum of LATF trees planted]],8,FALSE)),\"\")","v":""},null,{"$f":"IFERROR(('Part 2 - Restocking information'!$K24+'Part 2 - Restocking information'!$N24)/'Part 2 - Restocking information'!$O24*100, \"\")","v":""}]
[null,null,null,{"$f":"IFERROR(VLOOKUP(C25,Table5[[Site Name]:[Site requires restocking (if <75% survival rate) - planting sites only]],21,FALSE),\"\")","v":""},{"$f":"VLOOKUP($C25,Table5[[Site Name]:[(HIDE) Whips lost]],24,FALSE)","v":{"$error":"#N/A"}},{"$f":"VLOOKUP($C25,Table5[[Site Name]:[(HIDE) Whips lost]],12,FALSE)","v":{"$error":"#N/A"}},{"$f":"VLOOKUP($C25,Table5[[Site Name]:[(HIDE) Whips lost]],13,FALSE)","v":{"$error":"#N/A"}},null,null,null,{"$f":"IF(SUM('Part 2 - Restocking information'!$H25:$J25)=0,\"\",SUM('Part 2 - Restocking information'!$H25:$J25))","v":""},{"$f":"IFERROR(VLOOKUP(C25,Table5[[Site Name]:[(HIDE) Sum of LATF trees planted]],8,FALSE),\"\")","v":""},{"$f":"IFERROR(VLOOKUP(C25,Table5[[Site Name]:[(HIDE) SUM of LATF Trees Loss]],14,FALSE),\"\")","v":""},"",{"$f":"IFERROR(IF(VLOOKUP(C25,Table5[[Site Name]:[(HIDE) Sum of LATF trees planted]],8,FALSE)=0, \"\", VLOOKUP(C25,Table5[[Site Name]:[(HIDE) Sum of LATF trees planted]],8,FALSE)),\"\")","v":""},null,{"$f":"IFERROR(('Part 2 - Restocking information'!$K25+'Part 2 - Restocking information'!$N25)/'Part 2 - Restocking information'!$O25*100, \"\")","v":""}]
[null,null,null,{"$f":"IFERROR(VLOOKUP(C26,Table5[[Site Name]:[Site requires restocking (if <75% survival rate) - planting sites only]],21,FALSE),\"\")","v":""},{"$f":"VLOOKUP($C26,Table5[[Site Name]:[(HIDE) Whips lost]],24,FALSE)","v":{"$error":"#N/A"}},{"$f":"VLOOKUP($C26,Table5[[Site Name]:[(HIDE) Whips lost]],12,FALSE)","v":{"$error":"#N/A"}},{"$f":"VLOOKUP($C26,Table5[[Site Name]:[(HIDE) Whips lost]],13,FALSE)","v":{"$error":"#N/A"}},null,null,null,{"$f":"IF(SUM('Part 2 - Restocking information'!$H26:$J26)=0,\"\",SUM('Part 2 - Restocking information'!$H26:$J26))","v":""},{"$f":"IFERROR(VLOOKUP(C26,Table5[[Site Name]:[(HIDE) Sum of LATF trees planted]],8,FALSE),\"\")","v":""},{"$f":"IFERROR(VLOOKUP(C26,Table5[[Site Name]:[(HIDE) SUM of LATF Trees Loss]],14,FALSE),\"\")","v":""},"",{"$f":"IFERROR(IF(VLOOKUP(C26,Table5[[Site Name]:[(HIDE) Sum of LATF trees planted]],8,FALSE)=0, \"\", VLOOKUP(C26,Table5[[Site Name]:[(HIDE) Sum of LATF trees planted]],8,FALSE)),\"\")","v":""},null,{"$f":"IFERROR(('Part 2 - Restocking information'!$K26+'Part 2 - Restocking information'!$N26)/'Part 2 - Restocking information'!$O26*100, \"\")","v":""}]
[null,null,null,{"$f":"IFERROR(VLOOKUP(C27,Table5[[Site Name]:[Site requires restocking (if <75% survival rate) - planting sites only]],21,FALSE),\"\")","v":""},{"$f":"VLOOKUP($C27,Table5[[Site Name]:[(HIDE) Whips lost]],24,FALSE)","v":{"$error":"#N/A"}},{"$f":"VLOOKUP($C27,Table5[[Site Name]:[(HIDE) Whips lost]],12,FALSE)","v":{"$error":"#N/A"}},{"$f":"VLOOKUP($C27,Table5[[Site Name]:[(HIDE) Whips lost]],13,FALSE)","v":{"$error":"#N/A"}},null,null,null,{"$f":"IF(SUM('Part 2 - Restocking information'!$H27:$J27)=0,\"\",SUM('Part 2 - Restocking information'!$H27:$J27))","v":""},{"$f":"IFERROR(VLOOKUP(C27,Table5[[Site Name]:[(HIDE) Sum of LATF trees planted]],8,FALSE),\"\")","v":""},{"$f":"IFERROR(VLOOKUP(C27,Table5[[Site Name]:[(HIDE) SUM of LATF Trees Loss]],14,FALSE),\"\")","v":""},"",{"$f":"IFERROR(IF(VLOOKUP(C27,Table5[[Site Name]:[(HIDE) Sum of LATF trees planted]],8,FALSE)=0, \"\", VLOOKUP(C27,Table5[[Site Name]:[(HIDE) Sum of LATF trees planted]],8,FALSE)),\"\")","v":""},null,{"$f":"IFERROR(('Part 2 - Restocking information'!$K27+'Part 2 - Restocking information'!$N27)/'Part 2 - Restocking information'!$O27*100, \"\")","v":""}]
[null,null,null,{"$f":"IFERROR(VLOOKUP(C28,Table5[[Site Name]:[Site requires restocking (if <75% survival rate) - planting sites only]],21,FALSE),\"\")","v":""},{"$f":"VLOOKUP($C28,Table5[[Site Name]:[(HIDE) Whips lost]],24,FALSE)","v":{"$error":"#N/A"}},{"$f":"VLOOKUP($C28,Table5[[Site Name]:[(HIDE) Whips lost]],12,FALSE)","v":{"$error":"#N/A"}},{"$f":"VLOOKUP($C28,Table5[[Site Name]:[(HIDE) Whips lost]],13,FALSE)","v":{"$error":"#N/A"}},null,null,null,{"$f":"IF(SUM('Part 2 - Restocking information'!$H28:$J28)=0,\"\",SUM('Part 2 - Restocking information'!$H28:$J28))","v":""},{"$f":"IFERROR(VLOOKUP(C28,Table5[[Site Name]:[(HIDE) Sum of LATF trees planted]],8,FALSE),\"\")","v":""},{"$f":"IFERROR(VLOOKUP(C28,Table5[[Site Name]:[(HIDE) SUM of LATF Trees Loss]],14,FALSE),\"\")","v":""},"",{"$f":"IFERROR(IF(VLOOKUP(C28,Table5[[Site Name]:[(HIDE) Sum of LATF trees planted]],8,FALSE)=0, \"\", VLOOKUP(C28,Table5[[Site Name]:[(HIDE) Sum of LATF trees planted]],8,FALSE)),\"\")","v":""},null,{"$f":"IFERROR(('Part 2 - Restocking information'!$K28+'Part 2 - Restocking information'!$N28)/'Part 2 - Restocking information'!$O28*100, \"\")","v":""}]
[null,null,null,{"$f":"IFERROR(VLOOKUP(C29,Table5[[Site Name]:[Site requires restocking (if <75% survival rate) - planting sites only]],21,FALSE),\"\")","v":""},{"$f":"VLOOKUP($C29,Table5[[Site Name]:[(HIDE) Whips lost]],24,FALSE)","v":{"$error":"#N/A"}},{"$f":"VLOOKUP($C29,Table5[[Site Name]:[(HIDE) Whips lost]],12,FALSE)","v":{"$error":"#N/A"}},{"$f":"VLOOKUP($C29,Table5[[Site Name]:[(HIDE) Whips lost]],13,FALSE)","v":{"$error":"#N/A"}},null,null,null,{"$f":"IF(SUM('Part 2 - Restocking information'!$H29:$J29)=0,\"\",SUM('Part 2 - Restocking information'!$H29:$J29))","v":""},{"$f":"IFERROR(VLOOKUP(C29,Table5[[Site Name]:[(HIDE) Sum of LATF trees planted]],8,FALSE),\"\")","v":""},{"$f":"IFERROR(VLOOKUP(C29,Table5[[Site Name]:[(HIDE) SUM of LATF Trees Loss]],14,FALSE),\"\")","v":""},"",{"$f":"IFERROR(IF(VLOOKUP(C29,Table5[[Site Name]:[(HIDE) Sum of LATF trees planted]],8,FALSE)=0, \"\", VLOOKUP(C29,Table5[[Site Name]:[(HIDE) Sum of LATF trees planted]],8,FALSE)),\"\")","v":""},null,{"$f":"IFERROR(('Part 2 - Restocking information'!$K29+'Part 2 - Restocking information'!$N29)/'Part 2 - Restocking information'!$O29*100, \"\")","v":""}]
[null,null,null,{"$f":"IFERROR(VLOOKUP(C30,Table5[[Site Name]:[Site requires restocking (if <75% survival rate) - planting sites only]],21,FALSE),\"\")","v":""},{"$f":"VLOOKUP($C30,Table5[[Site Name]:[(HIDE) Whips lost]],24,FALSE)","v":{"$error":"#N/A"}},{"$f":"VLOOKUP($C30,Table5[[Site Name]:[(HIDE) Whips lost]],12,FALSE)","v":{"$error":"#N/A"}},{"$f":"VLOOKUP($C30,Table5[[Site Name]:[(HIDE) Whips lost]],13,FALSE)","v":{"$error":"#N/A"}},null,null,null,{"$f":"IF(SUM('Part 2 - Restocking information'!$H30:$J30)=0,\"\",SUM('Part 2 - Restocking information'!$H30:$J30))","v":""},{"$f":"IFERROR(VLOOKUP(C30,Table5[[Site Name]:[(HIDE) Sum of LATF trees planted]],8,FALSE),\"\")","v":""},{"$f":"IFERROR(VLOOKUP(C30,Table5[[Site Name]:[(HIDE) SUM of LATF Trees Loss]],14,FALSE),\"\")","v":""},"",{"$f":"IFERROR(IF(VLOOKUP(C30,Table5[[Site Name]:[(HIDE) Sum of LATF trees planted]],8,FALSE)=0, \"\", VLOOKUP(C30,Table5[[Site Name]:[(HIDE) Sum of LATF trees planted]],8,FALSE)),\"\")","v":""},null,{"$f":"IFERROR(('Part 2 - Restocking information'!$K30+'Part 2 - Restocking information'!$N30)/'Part 2 - Restocking information'!$O30*100, \"\")","v":""}]
[null,null,null,{"$f":"IFERROR(VLOOKUP(C31,Table5[[Site Name]:[Site requires restocking (if <75% survival rate) - planting sites only]],21,FALSE),\"\")","v":""},{"$f":"VLOOKUP($C31,Table5[[Site Name]:[(HIDE) Whips lost]],24,FALSE)","v":{"$error":"#N/A"}},{"$f":"VLOOKUP($C31,Table5[[Site Name]:[(HIDE) Whips lost]],12,FALSE)","v":{"$error":"#N/A"}},{"$f":"VLOOKUP($C31,Table5[[Site Name]:[(HIDE) Whips lost]],13,FALSE)","v":{"$error":"#N/A"}},null,null,null,{"$f":"IF(SUM('Part 2 - Restocking information'!$H31:$J31)=0,\"\",SUM('Part 2 - Restocking information'!$H31:$J31))","v":""},{"$f":"IFERROR(VLOOKUP(C31,Table5[[Site Name]:[(HIDE) Sum of LATF trees planted]],8,FALSE),\"\")","v":""},{"$f":"IFERROR(VLOOKUP(C31,Table5[[Site Name]:[(HIDE) SUM of LATF Trees Loss]],14,FALSE),\"\")","v":""},"",{"$f":"IFERROR(IF(VLOOKUP(C31,Table5[[Site Name]:[(HIDE) Sum of LATF trees planted]],8,FALSE)=0, \"\", VLOOKUP(C31,Table5[[Site Name]:[(HIDE) Sum of LATF trees planted]],8,FALSE)),\"\")","v":""},null,{"$f":"IFERROR(('Part 2 - Restocking information'!$K31+'Part 2 - Restocking information'!$N31)/'Part 2 - Restocking information'!$O31*100, \"\")","v":""}]
[null,null,null,{"$f":"IFERROR(VLOOKUP(C32,Table5[[Site Name]:[Site requires restocking (if <75% survival rate) - planting sites only]],21,FALSE),\"\")","v":""},{"$f":"VLOOKUP($C32,Table5[[Site Name]:[(HIDE) Whips lost]],24,FALSE)","v":{"$error":"#N/A"}},{"$f":"VLOOKUP($C32,Table5[[Site Name]:[(HIDE) Whips lost]],12,FALSE)","v":{"$error":"#N/A"}},{"$f":"VLOOKUP($C32,Table5[[Site Name]:[(HIDE) Whips lost]],13,FALSE)","v":{"$error":"#N/A"}},null,null,null,{"$f":"IF(SUM('Part 2 - Restocking information'!$H32:$J32)=0,\"\",SUM('Part 2 - Restocking information'!$H32:$J32))","v":""},{"$f":"IFERROR(VLOOKUP(C32,Table5[[Site Name]:[(HIDE) Sum of LATF trees planted]],8,FALSE),\"\")","v":""},{"$f":"IFERROR(VLOOKUP(C32,Table5[[Site Name]:[(HIDE) SUM of LATF Trees Loss]],14,FALSE),\"\")","v":""},{"$f":"IFERROR(IF(L32 - M32 = 0, \"\", L32-M32),\"\")","v":""},{"$f":"IFERROR(IF(VLOOKUP(C32,Table5[[Site Name]:[(HIDE) Sum of LATF trees planted]],8,FALSE)=0, \"\", VLOOKUP(C32,Table5[[Site Name]:[(HIDE) Sum of LATF trees planted]],8,FALSE)),\"\")","v":""},null,{"$f":"IFERROR(('Part 2 - Restocking information'!$K32+'Part 2 - Restocking information'!$N32)/'Part 2 - Restocking information'!$O32*100, \"\")","v":""}]
[null,null,null,{"$f":"IFERROR(VLOOKUP(C33,Table5[[Site Name]:[Site requires restocking (if <75% survival rate) - planting sites only]],21,FALSE),\"\")","v":""},{"$f":"VLOOKUP($C33,Table5[[Site Name]:[(HIDE) Whips lost]],24,FALSE)","v":{"$error":"#N/A"}},{"$f":"VLOOKUP($C33,Table5[[Site Name]:[(HIDE) Whips lost]],12,FALSE)","v":{"$error":"#N/A"}},{"$f":"VLOOKUP($C33,Table5[[Site Name]:[(HIDE) Whips lost]],13,FALSE)","v":{"$error":"#N/A"}},null,null,null,{"$f":"IF(SUM('Part 2 - Restocking information'!$H33:$J33)=0,\"\",SUM('Part 2 - Restocking information'!$H33:$J33))","v":""},{"$f":"IFERROR(VLOOKUP(C33,Table5[[Site Name]:[(HIDE) Sum of LATF trees planted]],8,FALSE),\"\")","v":""},{"$f":"IFERROR(VLOOKUP(C33,Table5[[Site Name]:[(HIDE) SUM of LATF Trees Loss]],14,FALSE),\"\")","v":""},{"$f":"IFERROR(IF(L33 - M33 = 0, \"\", L33-M33),\"\")","v":""},{"$f":"IFERROR(IF(VLOOKUP(C33,Table5[[Site Name]:[(HIDE) Sum of LATF trees planted]],8,FALSE)=0, \"\", VLOOKUP(C33,Table5[[Site Name]:[(HIDE) Sum of LATF trees planted]],8,FALSE)),\"\")","v":""},null,{"$f":"IFERROR(('Part 2 - Restocking information'!$K33+'Part 2 - Restocking information'!$N33)/'Part 2 - Restocking information'!$O33*100, \"\")","v":""}]
[null,null,null,{"$f":"IFERROR(VLOOKUP(C34,Table5[[Site Name]:[Site requires restocking (if <75% survival rate) - planting sites only]],21,FALSE),\"\")","v":""},{"$f":"VLOOKUP($C34,Table5[[Site Name]:[(HIDE) Whips lost]],24,FALSE)","v":{"$error":"#N/A"}},{"$f":"VLOOKUP($C34,Table5[[Site Name]:[(HIDE) Whips lost]],12,FALSE)","v":{"$error":"#N/A"}},{"$f":"VLOOKUP($C34,Table5[[Site Name]:[(HIDE) Whips lost]],13,FALSE)","v":{"$error":"#N/A"}},null,null,null,{"$f":"IF(SUM('Part 2 - Restocking information'!$H34:$J34)=0,\"\",SUM('Part 2 - Restocking information'!$H34:$J34))","v":""},{"$f":"IFERROR(VLOOKUP(C34,Table5[[Site Name]:[(HIDE) Sum of LATF trees planted]],8,FALSE),\"\")","v":""},{"$f":"IFERROR(VLOOKUP(C34,Table5[[Site Name]:[(HIDE) SUM of LATF Trees Loss]],14,FALSE),\"\")","v":""},{"$f":"IFERROR(IF(L34 - M34 = 0, \"\", L34-M34),\"\")","v":""},{"$f":"IFERROR(IF(VLOOKUP(C34,Table5[[Site Name]:[(HIDE) Sum of LATF trees planted]],8,FALSE)=0, \"\", VLOOKUP(C34,Table5[[Site Name]:[(HIDE) Sum of LATF trees planted]],8,FALSE)),\"\")","v":""},null,{"$f":"IFERROR(('Part 2 - Restocking information'!$K34+'Part 2 - Restocking information'!$N34)/'Part 2 - Restocking information'!$O34*100, \"\")","v":""}]
[null,null,null,{"$f":"IFERROR(VLOOKUP(C35,Table5[[Site Name]:[Site requires restocking (if <75% survival rate) - planting sites only]],21,FALSE),\"\")","v":""},{"$f":"VLOOKUP($C35,Table5[[Site Name]:[(HIDE) Whips lost]],24,FALSE)","v":{"$error":"#N/A"}},{"$f":"VLOOKUP($C35,Table5[[Site Name]:[(HIDE) Whips lost]],12,FALSE)","v":{"$error":"#N/A"}},{"$f":"VLOOKUP($C35,Table5[[Site Name]:[(HIDE) Whips lost]],13,FALSE)","v":{"$error":"#N/A"}},null,null,null,{"$f":"IF(SUM('Part 2 - Restocking information'!$H35:$J35)=0,\"\",SUM('Part 2 - Restocking information'!$H35:$J35))","v":""},{"$f":"IFERROR(VLOOKUP(C35,Table5[[Site Name]:[(HIDE) Sum of LATF trees planted]],8,FALSE),\"\")","v":""},{"$f":"IFERROR(VLOOKUP(C35,Table5[[Site Name]:[(HIDE) SUM of LATF Trees Loss]],14,FALSE),\"\")","v":""},"",{"$f":"IFERROR(IF(VLOOKUP(C35,Table5[[Site Name]:[(HIDE) Sum of LATF trees planted]],8,FALSE)=0, \"\", VLOOKUP(C35,Table5[[Site Name]:[(HIDE) Sum of LATF trees planted]],8,FALSE)),\"\")","v":""},null,{"$f":"IFERROR(('Part 2 - Restocking information'!$K35+'Part 2 - Restocking information'!$N35)/'Part 2 - Restocking information'!$O35*100, \"\")","v":""}]
[null,null,null,{"$f":"IFERROR(VLOOKUP(C36,Table5[[Site Name]:[Site requires restocking (if <75% survival rate) - planting sites only]],21,FALSE),\"\")","v":""},{"$f":"VLOOKUP($C36,Table5[[Site Name]:[(HIDE) Whips lost]],24,FALSE)","v":{"$error":"#N/A"}},{"$f":"VLOOKUP($C36,Table5[[Site Name]:[(HIDE) Whips lost]],12,FALSE)","v":{"$error":"#N/A"}},{"$f":"VLOOKUP($C36,Table5[[Site Name]:[(HIDE) Whips lost]],13,FALSE)","v":{"$error":"#N/A"}},null,null,null,{"$f":"IF(SUM('Part 2 - Restocking information'!$H36:$J36)=0,\"\",SUM('Part 2 - Restocking information'!$H36:$J36))","v":""},{"$f":"IFERROR(VLOOKUP(C36,Table5[[Site Name]:[(HIDE) Sum of LATF trees planted]],8,FALSE),\"\")","v":""},{"$f":"IFERROR(VLOOKUP(C36,Table5[[Site Name]:[(HIDE) SUM of LATF Trees Loss]],14,FALSE),\"\")","v":""},"",{"$f":"IFERROR(IF(VLOOKUP(C36,Table5[[Site Name]:[(HIDE) Sum of LATF trees planted]],8,FALSE)=0, \"\", VLOOKUP(C36,Table5[[Site Name]:[(HIDE) Sum of LATF trees planted]],8,FALSE)),\"\")","v":""},null,{"$f":"IFERROR(('Part 2 - Restocking information'!$K36+'Part 2 - Restocking information'!$N36)/'Part 2 - Restocking information'!$O36*100, \"\")","v":""}]
[null,null,null,{"$f":"IFERROR(VLOOKUP(C37,Table5[[Site Name]:[Site requires restocking (if <75% survival rate) - planting sites only]],21,FALSE),\"\")","v":""},{"$f":"VLOOKUP($C37,Table5[[Site Name]:[(HIDE) Whips lost]],24,FALSE)","v":{"$error":"#N/A"}},{"$f":"VLOOKUP($C37,Table5[[Site Name]:[(HIDE) Whips lost]],12,FALSE)","v":{"$error":"#N/A"}},{"$f":"VLOOKUP($C37,Table5[[Site Name]:[(HIDE) Whips lost]],13,FALSE)","v":{"$error":"#N/A"}},null,null,null,{"$f":"IF(SUM('Part 2 - Restocking information'!$H37:$J37)=0,\"\",SUM('Part 2 - Restocking information'!$H37:$J37))","v":""},{"$f":"IFERROR(VLOOKUP(C37,Table5[[Site Name]:[(HIDE) Sum of LATF trees planted]],8,FALSE),\"\")","v":""},{"$f":"IFERROR(VLOOKUP(C37,Table5[[Site Name]:[(HIDE) SUM of LATF Trees Loss]],14,FALSE),\"\")","v":""},"",{"$f":"IFERROR(IF(VLOOKUP(C37,Table5[[Site Name]:[(HIDE) Sum of LATF trees planted]],8,FALSE)=0, \"\", VLOOKUP(C37,Table5[[Site Name]:[(HIDE) Sum of LATF trees planted]],8,FALSE)),\"\")","v":""},null,{"$f":"IFERROR(('Part 2 - Restocking information'!$K37+'Part 2 - Restocking information'!$N37)/'Part 2 - Restocking information'!$O37*100, \"\")","v":""}]
[null,null,null,{"$f":"IFERROR(VLOOKUP(C38,Table5[[Site Name]:[Site requires restocking (if <75% survival rate) - planting sites only]],21,FALSE),\"\")","v":""},{"$f":"VLOOKUP($C38,Table5[[Site Name]:[(HIDE) Whips lost]],24,FALSE)","v":{"$error":"#N/A"}},{"$f":"VLOOKUP($C38,Table5[[Site Name]:[(HIDE) Whips lost]],12,FALSE)","v":{"$error":"#N/A"}},{"$f":"VLOOKUP($C38,Table5[[Site Name]:[(HIDE) Whips lost]],13,FALSE)","v":{"$error":"#N/A"}},null,null,null,{"$f":"IF(SUM('Part 2 - Restocking information'!$H38:$J38)=0,\"\",SUM('Part 2 - Restocking information'!$H38:$J38))","v":""},{"$f":"IFERROR(VLOOKUP(C38,Table5[[Site Name]:[(HIDE) Sum of LATF trees planted]],8,FALSE),\"\")","v":""},{"$f":"IFERROR(VLOOKUP(C38,Table5[[Site Name]:[(HIDE) SUM of LATF Trees Loss]],14,FALSE),\"\")","v":""},"",{"$f":"IFERROR(IF(VLOOKUP(C38,Table5[[Site Name]:[(HIDE) Sum of LATF trees planted]],8,FALSE)=0, \"\", VLOOKUP(C38,Table5[[Site Name]:[(HIDE) Sum of LATF trees planted]],8,FALSE)),\"\")","v":""},null,{"$f":"IFERROR(('Part 2 - Restocking information'!$K38+'Part 2 - Restocking information'!$N38)/'Part 2 - Restocking information'!$O38*100, \"\")","v":""}]
[null,null,null,{"$f":"IFERROR(VLOOKUP(C39,Table5[[Site Name]:[Site requires restocking (if <75% survival rate) - planting sites only]],21,FALSE),\"\")","v":""},{"$f":"VLOOKUP($C39,Table5[[Site Name]:[(HIDE) Whips lost]],24,FALSE)","v":{"$error":"#N/A"}},{"$f":"VLOOKUP($C39,Table5[[Site Name]:[(HIDE) Whips lost]],12,FALSE)","v":{"$error":"#N/A"}},{"$f":"VLOOKUP($C39,Table5[[Site Name]:[(HIDE) Whips lost]],13,FALSE)","v":{"$error":"#N/A"}},null,null,null,{"$f":"IF(SUM('Part 2 - Restocking information'!$H39:$J39)=0,\"\",SUM('Part 2 - Restocking information'!$H39:$J39))","v":""},{"$f":"IFERROR(VLOOKUP(C39,Table5[[Site Name]:[(HIDE) Sum of LATF trees planted]],8,FALSE),\"\")","v":""},{"$f":"IFERROR(VLOOKUP(C39,Table5[[Site Name]:[(HIDE) SUM of LATF Trees Loss]],14,FALSE),\"\")","v":""},"",{"$f":"IFERROR(IF(VLOOKUP(C39,Table5[[Site Name]:[(HIDE) Sum of LATF trees planted]],8,FALSE)=0, \"\", VLOOKUP(C39,Table5[[Site Name]:[(HIDE) Sum of LATF trees planted]],8,FALSE)),\"\")","v":""},null,{"$f":"IFERROR(('Part 2 - Restocking information'!$K39+'Part 2 - Restocking information'!$N39)/'Part 2 - Restocking information'!$O39*100, \"\")","v":""}]
[null,null,null,{"$f":"IFERROR(VLOOKUP(C40,Table5[[Site Name]:[Site requires restocking (if <75% survival rate) - planting sites only]],21,FALSE),\"\")","v":""},{"$f":"VLOOKUP($C40,Table5[[Site Name]:[(HIDE) Whips lost]],24,FALSE)","v":{"$error":"#N/A"}},{"$f":"VLOOKUP($C40,Table5[[Site Name]:[(HIDE) Whips lost]],12,FALSE)","v":{"$error":"#N/A"}},{"$f":"VLOOKUP($C40,Table5[[Site Name]:[(HIDE) Whips lost]],13,FALSE)","v":{"$error":"#N/A"}},null,null,null,{"$f":"IF(SUM('Part 2 - Restocking information'!$H40:$J40)=0,\"\",SUM('Part 2 - Restocking information'!$H40:$J40))","v":""},{"$f":"IFERROR(VLOOKUP(C40,Table5[[Site Name]:[(HIDE) Sum of LATF trees planted]],8,FALSE),\"\")","v":""},{"$f":"IFERROR(VLOOKUP(C40,Table5[[Site Name]:[(HIDE) SUM of LATF Trees Loss]],14,FALSE),\"\")","v":""},"",{"$f":"IFERROR(IF(VLOOKUP(C40,Table5[[Site Name]:[(HIDE) Sum of LATF trees planted]],8,FALSE)=0, \"\", VLOOKUP(C40,Table5[[Site Name]:[(HIDE) Sum of LATF trees planted]],8,FALSE)),\"\")","v":""},null,{"$f":"IFERROR(('Part 2 - Restocking information'!$K40+'Part 2 - Restocking information'!$N40)/'Part 2 - Restocking information'!$O40*100, \"\")","v":""}]
[null,null,null,{"$f":"IFERROR(VLOOKUP(C41,Table5[[Site Name]:[Site requires restocking (if <75% survival rate) - planting sites only]],21,FALSE),\"\")","v":""},{"$f":"VLOOKUP($C41,Table5[[Site Name]:[(HIDE) Whips lost]],24,FALSE)","v":{"$error":"#N/A"}},{"$f":"VLOOKUP($C41,Table5[[Site Name]:[(HIDE) Whips lost]],12,FALSE)","v":{"$error":"#N/A"}},{"$f":"VLOOKUP($C41,Table5[[Site Name]:[(HIDE) Whips lost]],13,FALSE)","v":{"$error":"#N/A"}},null,null,null,{"$f":"IF(SUM('Part 2 - Restocking information'!$H41:$J41)=0,\"\",SUM('Part 2 - Restocking information'!$H41:$J41))","v":""},{"$f":"IFERROR(VLOOKUP(C41,Table5[[Site Name]:[(HIDE) Sum of LATF trees planted]],8,FALSE),\"\")","v":""},{"$f":"IFERROR(VLOOKUP(C41,Table5[[Site Name]:[(HIDE) SUM of LATF Trees Loss]],14,FALSE),\"\")","v":""},"",{"$f":"IFERROR(IF(VLOOKUP(C41,Table5[[Site Name]:[(HIDE) Sum of LATF trees planted]],8,FALSE)=0, \"\", VLOOKUP(C41,Table5[[Site Name]:[(HIDE) Sum of LATF trees planted]],8,FALSE)),\"\")","v":""},null,{"$f":"IFERROR(('Part 2 - Restocking information'!$K41+'Part 2 - Restocking information'!$N41)/'Part 2 - Restocking information'!$O41*100, \"\")","v":""}]
[null,null,null,{"$f":"IFERROR(VLOOKUP(C42,Table5[[Site Name]:[Site requires restocking (if <75% survival rate) - planting sites only]],21,FALSE),\"\")","v":""},{"$f":"VLOOKUP($C42,Table5[[Site Name]:[(HIDE) Whips lost]],24,FALSE)","v":{"$error":"#N/A"}},{"$f":"VLOOKUP($C42,Table5[[Site Name]:[(HIDE) Whips lost]],12,FALSE)","v":{"$error":"#N/A"}},{"$f":"VLOOKUP($C42,Table5[[Site Name]:[(HIDE) Whips lost]],13,FALSE)","v":{"$error":"#N/A"}},null,null,null,{"$f":"IF(SUM('Part 2 - Restocking information'!$H42:$J42)=0,\"\",SUM('Part 2 - Restocking information'!$H42:$J42))","v":""},{"$f":"IFERROR(VLOOKUP(C42,Table5[[Site Name]:[(HIDE) Sum of LATF trees planted]],8,FALSE),\"\")","v":""},{"$f":"IFERROR(VLOOKUP(C42,Table5[[Site Name]:[(HIDE) SUM of LATF Trees Loss]],14,FALSE),\"\")","v":""},"",{"$f":"IFERROR(IF(VLOOKUP(C42,Table5[[Site Name]:[(HIDE) Sum of LATF trees planted]],8,FALSE)=0, \"\", VLOOKUP(C42,Table5[[Site Name]:[(HIDE) Sum of LATF trees planted]],8,FALSE)),\"\")","v":""},null,{"$f":"IFERROR(('Part 2 - Restocking information'!$K42+'Part 2 - Restocking information'!$N42)/'Part 2 - Restocking information'!$O42*100, \"\")","v":""}]
[null,null,null,{"$f":"IFERROR(VLOOKUP(C43,Table5[[Site Name]:[Site requires restocking (if <75% survival rate) - planting sites only]],21,FALSE),\"\")","v":""},{"$f":"VLOOKUP($C43,Table5[[Site Name]:[(HIDE) Whips lost]],24,FALSE)","v":{"$error":"#N/A"}},{"$f":"VLOOKUP($C43,Table5[[Site Name]:[(HIDE) Whips lost]],12,FALSE)","v":{"$error":"#N/A"}},{"$f":"VLOOKUP($C43,Table5[[Site Name]:[(HIDE) Whips lost]],13,FALSE)","v":{"$error":"#N/A"}},null,null,null,{"$f":"IF(SUM('Part 2 - Restocking information'!$H43:$J43)=0,\"\",SUM('Part 2 - Restocking information'!$H43:$J43))","v":""},{"$f":"IFERROR(VLOOKUP(C43,Table5[[Site Name]:[(HIDE) Sum of LATF trees planted]],8,FALSE),\"\")","v":""},{"$f":"IFERROR(VLOOKUP(C43,Table5[[Site Name]:[(HIDE) SUM of LATF Trees Loss]],14,FALSE),\"\")","v":""},"",{"$f":"IFERROR(IF(VLOOKUP(C43,Table5[[Site Name]:[(HIDE) Sum of LATF trees planted]],8,FALSE)=0, \"\", VLOOKUP(C43,Table5[[Site Name]:[(HIDE) Sum of LATF trees planted]],8,FALSE)),\"\")","v":""},null,{"$f":"IFERROR(('Part 2 - Restocking information'!$K43+'Part 2 - Restocking information'!$N43)/'Part 2 - Restocking information'!$O43*100, \"\")","v":""}]
[null,null,null,{"$f":"IFERROR(VLOOKUP(C44,Table5[[Site Name]:[Site requires restocking (if <75% survival rate) - planting sites only]],21,FALSE),\"\")","v":""},{"$f":"VLOOKUP($C44,Table5[[Site Name]:[(HIDE) Whips lost]],24,FALSE)","v":{"$error":"#N/A"}},{"$f":"VLOOKUP($C44,Table5[[Site Name]:[(HIDE) Whips lost]],12,FALSE)","v":{"$error":"#N/A"}},{"$f":"VLOOKUP($C44,Table5[[Site Name]:[(HIDE) Whips lost]],13,FALSE)","v":{"$error":"#N/A"}},null,null,null,{"$f":"IF(SUM('Part 2 - Restocking information'!$H44:$J44)=0,\"\",SUM('Part 2 - Restocking information'!$H44:$J44))","v":""},{"$f":"IFERROR(VLOOKUP(C44,Table5[[Site Name]:[(HIDE) Sum of LATF trees planted]],8,FALSE),\"\")","v":""},{"$f":"IFERROR(VLOOKUP(C44,Table5[[Site Name]:[(HIDE) SUM of LATF Trees Loss]],14,FALSE),\"\")","v":""},"",{"$f":"IFERROR(IF(VLOOKUP(C44,Table5[[Site Name]:[(HIDE) Sum of LATF trees planted]],8,FALSE)=0, \"\", VLOOKUP(C44,Table5[[Site Name]:[(HIDE) Sum of LATF trees planted]],8,FALSE)),\"\")","v":""},null,{"$f":"IFERROR(('Part 2 - Restocking information'!$K44+'Part 2 - Restocking information'!$N44)/'Part 2 - Restocking information'!$O44*100, \"\")","v":""}]
[null,null,null,{"$f":"IFERROR(VLOOKUP(C45,Table5[[Site Name]:[Site requires restocking (if <75% survival rate) - planting sites only]],21,FALSE),\"\")","v":""},{"$f":"VLOOKUP($C45,Table5[[Site Name]:[(HIDE) Whips lost]],24,FALSE)","v":{"$error":"#N/A"}},{"$f":"VLOOKUP($C45,Table5[[Site Name]:[(HIDE) Whips lost]],12,FALSE)","v":{"$error":"#N/A"}},{"$f":"VLOOKUP($C45,Table5[[Site Name]:[(HIDE) Whips lost]],13,FALSE)","v":{"$error":"#N/A"}},null,null,null,{"$f":"IF(SUM('Part 2 - Restocking information'!$H45:$J45)=0,\"\",SUM('Part 2 - Restocking information'!$H45:$J45))","v":""},{"$f":"IFERROR(VLOOKUP(C45,Table5[[Site Name]:[(HIDE) Sum of LATF trees planted]],8,FALSE),\"\")","v":""},{"$f":"IFERROR(VLOOKUP(C45,Table5[[Site Name]:[(HIDE) SUM of LATF Trees Loss]],14,FALSE),\"\")","v":""},"",{"$f":"IFERROR(IF(VLOOKUP(C45,Table5[[Site Name]:[(HIDE) Sum of LATF trees planted]],8,FALSE)=0, \"\", VLOOKUP(C45,Table5[[Site Name]:[(HIDE) Sum of LATF trees planted]],8,FALSE)),\"\")","v":""},null,{"$f":"IFERROR(('Part 2 - Restocking information'!$K45+'Part 2 - Restocking information'!$N45)/'Part 2 - Restocking information'!$O45*100, \"\")","v":""}]
[null,null,null,{"$f":"IFERROR(VLOOKUP(C46,Table5[[Site Name]:[Site requires restocking (if <75% survival rate) - planting sites only]],21,FALSE),\"\")","v":""},{"$f":"VLOOKUP($C46,Table5[[Site Name]:[(HIDE) Whips lost]],24,FALSE)","v":{"$error":"#N/A"}},{"$f":"VLOOKUP($C46,Table5[[Site Name]:[(HIDE) Whips lost]],12,FALSE)","v":{"$error":"#N/A"}},{"$f":"VLOOKUP($C46,Table5[[Site Name]:[(HIDE) Whips lost]],13,FALSE)","v":{"$error":"#N/A"}},null,null,null,{"$f":"IF(SUM('Part 2 - Restocking information'!$H46:$J46)=0,\"\",SUM('Part 2 - Restocking information'!$H46:$J46))","v":""},{"$f":"IFERROR(VLOOKUP(C46,Table5[[Site Name]:[(HIDE) Sum of LATF trees planted]],8,FALSE),\"\")","v":""},{"$f":"IFERROR(VLOOKUP(C46,Table5[[Site Name]:[(HIDE) SUM of LATF Trees Loss]],14,FALSE),\"\")","v":""},"",{"$f":"IFERROR(IF(VLOOKUP(C46,Table5[[Site Name]:[(HIDE) Sum of LATF trees planted]],8,FALSE)=0, \"\", VLOOKUP(C46,Table5[[Site Name]:[(HIDE) Sum of LATF trees planted]],8,FALSE)),\"\")","v":""},null,{"$f":"IFERROR(('Part 2 - Restocking information'!$K46+'Part 2 - Restocking information'!$N46)/'Part 2 - Restocking information'!$O46*100, \"\")","v":""}]
[null,null,null,{"$f":"IFERROR(VLOOKUP(C47,Table5[[Site Name]:[Site requires restocking (if <75% survival rate) - planting sites only]],21,FALSE),\"\")","v":""},{"$f":"VLOOKUP($C47,Table5[[Site Name]:[(HIDE) Whips lost]],24,FALSE)","v":{"$error":"#N/A"}},{"$f":"VLOOKUP($C47,Table5[[Site Name]:[(HIDE) Whips lost]],12,FALSE)","v":{"$error":"#N/A"}},{"$f":"VLOOKUP($C47,Table5[[Site Name]:[(HIDE) Whips lost]],13,FALSE)","v":{"$error":"#N/A"}},null,null,null,{"$f":"IF(SUM('Part 2 - Restocking information'!$H47:$J47)=0,\"\",SUM('Part 2 - Restocking information'!$H47:$J47))","v":""},{"$f":"IFERROR(VLOOKUP(C47,Table5[[Site Name]:[(HIDE) Sum of LATF trees planted]],8,FALSE),\"\")","v":""},{"$f":"IFERROR(VLOOKUP(C47,Table5[[Site Name]:[(HIDE) SUM of LATF Trees Loss]],14,FALSE),\"\")","v":""},"",{"$f":"IFERROR(IF(VLOOKUP(C47,Table5[[Site Name]:[(HIDE) Sum of LATF trees planted]],8,FALSE)=0, \"\", VLOOKUP(C47,Table5[[Site Name]:[(HIDE) Sum of LATF trees planted]],8,FALSE)),\"\")","v":""},null,{"$f":"IFERROR(('Part 2 - Restocking information'!$K47+'Part 2 - Restocking information'!$N47)/'Part 2 - Restocking information'!$O47*100, \"\")","v":""}]
[null,null,null,{"$f":"IFERROR(VLOOKUP(C48,Table5[[Site Name]:[Site requires restocking (if <75% survival rate) - planting sites only]],21,FALSE),\"\")","v":""},{"$f":"VLOOKUP($C48,Table5[[Site Name]:[(HIDE) Whips lost]],24,FALSE)","v":{"$error":"#N/A"}},{"$f":"VLOOKUP($C48,Table5[[Site Name]:[(HIDE) Whips lost]],12,FALSE)","v":{"$error":"#N/A"}},{"$f":"VLOOKUP($C48,Table5[[Site Name]:[(HIDE) Whips lost]],13,FALSE)","v":{"$error":"#N/A"}},null,null,null,{"$f":"IF(SUM('Part 2 - Restocking information'!$H48:$J48)=0,\"\",SUM('Part 2 - Restocking information'!$H48:$J48))","v":""},{"$f":"IFERROR(VLOOKUP(C48,Table5[[Site Name]:[(HIDE) Sum of LATF trees planted]],8,FALSE),\"\")","v":""},{"$f":"IFERROR(VLOOKUP(C48,Table5[[Site Name]:[(HIDE) SUM of LATF Trees Loss]],14,FALSE),\"\")","v":""},"",{"$f":"IFERROR(IF(VLOOKUP(C48,Table5[[Site Name]:[(HIDE) Sum of LATF trees planted]],8,FALSE)=0, \"\", VLOOKUP(C48,Table5[[Site Name]:[(HIDE) Sum of LATF trees planted]],8,FALSE)),\"\")","v":""},null,{"$f":"IFERROR(('Part 2 - Restocking information'!$K48+'Part 2 - Restocking information'!$N48)/'Part 2 - Restocking information'!$O48*100, \"\")","v":""}]
[null,null,null,{"$f":"IFERROR(VLOOKUP(C49,Table5[[Site Name]:[Site requires restocking (if <75% survival rate) - planting sites only]],21,FALSE),\"\")","v":""},{"$f":"VLOOKUP($C49,Table5[[Site Name]:[(HIDE) Whips lost]],24,FALSE)","v":{"$error":"#N/A"}},{"$f":"VLOOKUP($C49,Table5[[Site Name]:[(HIDE) Whips lost]],12,FALSE)","v":{"$error":"#N/A"}},{"$f":"VLOOKUP($C49,Table5[[Site Name]:[(HIDE) Whips lost]],13,FALSE)","v":{"$error":"#N/A"}},null,null,null,{"$f":"IF(SUM('Part 2 - Restocking information'!$H49:$J49)=0,\"\",SUM('Part 2 - Restocking information'!$H49:$J49))","v":""},{"$f":"IFERROR(VLOOKUP(C49,Table5[[Site Name]:[(HIDE) Sum of LATF trees planted]],8,FALSE),\"\")","v":""},{"$f":"IFERROR(VLOOKUP(C49,Table5[[Site Name]:[(HIDE) SUM of LATF Trees Loss]],14,FALSE),\"\")","v":""},"",{"$f":"IFERROR(IF(VLOOKUP(C49,Table5[[Site Name]:[(HIDE) Sum of LATF trees planted]],8,FALSE)=0, \"\", VLOOKUP(C49,Table5[[Site Name]:[(HIDE) Sum of LATF trees planted]],8,FALSE)),\"\")","v":""},null,{"$f":"IFERROR(('Part 2 - Restocking information'!$K49+'Part 2 - Restocking information'!$N49)/'Part 2 - Restocking information'!$O49*100, \"\")","v":""}]
[null,null,null,{"$f":"IFERROR(VLOOKUP(C50,Table5[[Site Name]:[Site requires restocking (if <75% survival rate) - planting sites only]],21,FALSE),\"\")","v":""},{"$f":"VLOOKUP($C50,Table5[[Site Name]:[(HIDE) Whips lost]],24,FALSE)","v":{"$error":"#N/A"}},{"$f":"VLOOKUP($C50,Table5[[Site Name]:[(HIDE) Whips lost]],12,FALSE)","v":{"$error":"#N/A"}},{"$f":"VLOOKUP($C50,Table5[[Site Name]:[(HIDE) Whips lost]],13,FALSE)","v":{"$error":"#N/A"}},null,null,null,{"$f":"IF(SUM('Part 2 - Restocking information'!$H50:$J50)=0,\"\",SUM('Part 2 - Restocking information'!$H50:$J50))","v":""},{"$f":"IFERROR(VLOOKUP(C50,Table5[[Site Name]:[(HIDE) Sum of LATF trees planted]],8,FALSE),\"\")","v":""},{"$f":"IFERROR(VLOOKUP(C50,Table5[[Site Name]:[(HIDE) SUM of LATF Trees Loss]],14,FALSE),\"\")","v":""},"",{"$f":"IFERROR(IF(VLOOKUP(C50,Table5[[Site Name]:[(HIDE) Sum of LATF trees planted]],8,FALSE)=0, \"\", VLOOKUP(C50,Table5[[Site Name]:[(HIDE) Sum of LATF trees planted]],8,FALSE)),\"\")","v":""},null,{"$f":"IFERROR(('Part 2 - Restocking information'!$K50+'Part 2 - Restocking information'!$N50)/'Part 2 - Restocking information'!$O50*100, \"\")","v":""}]
[null,null,null,{"$f":"IFERROR(VLOOKUP(C51,Table5[[Site Name]:[Site requires restocking (if <75% survival rate) - planting sites only]],21,FALSE),\"\")","v":""},{"$f":"VLOOKUP($C51,Table5[[Site Name]:[(HIDE) Whips lost]],24,FALSE)","v":{"$error":"#N/A"}},{"$f":"VLOOKUP($C51,Table5[[Site Name]:[(HIDE) Whips lost]],12,FALSE)","v":{"$error":"#N/A"}},{"$f":"VLOOKUP($C51,Table5[[Site Name]:[(HIDE) Whips lost]],13,FALSE)","v":{"$error":"#N/A"}},null,null,null,{"$f":"IF(SUM('Part 2 - Restocking information'!$H51:$J51)=0,\"\",SUM('Part 2 - Restocking information'!$H51:$J51))","v":""},{"$f":"IFERROR(VLOOKUP(C51,Table5[[Site Name]:[(HIDE) Sum of LATF trees planted]],8,FALSE),\"\")","v":""},{"$f":"IFERROR(VLOOKUP(C51,Table5[[Site Name]:[(HIDE) SUM of LATF Trees Loss]],14,FALSE),\"\")","v":""},"",{"$f":"IFERROR(IF(VLOOKUP(C51,Table5[[Site Name]:[(HIDE) Sum of LATF trees planted]],8,FALSE)=0, \"\", VLOOKUP(C51,Table5[[Site Name]:[(HIDE) Sum of LATF trees planted]],8,FALSE)),\"\")","v":""},null,{"$f":"IFERROR(('Part 2 - Restocking information'!$K51+'Part 2 - Restocking information'!$N51)/'Part 2 - Restocking information'!$O51*100, \"\")","v":""}]
[null,null,null,{"$f":"IFERROR(VLOOKUP(C52,Table5[[Site Name]:[Site requires restocking (if <75% survival rate) - planting sites only]],21,FALSE),\"\")","v":""},{"$f":"VLOOKUP($C52,Table5[[Site Name]:[(HIDE) Whips lost]],24,FALSE)","v":{"$error":"#N/A"}},{"$f":"VLOOKUP($C52,Table5[[Site Name]:[(HIDE) Whips lost]],12,FALSE)","v":{"$error":"#N/A"}},{"$f":"VLOOKUP($C52,Table5[[Site Name]:[(HIDE) Whips lost]],13,FALSE)","v":{"$error":"#N/A"}},null,null,null,{"$f":"IF(SUM('Part 2 - Restocking information'!$H52:$J52)=0,\"\",SUM('Part 2 - Restocking information'!$H52:$J52))","v":""},{"$f":"IFERROR(VLOOKUP(C52,Table5[[Site Name]:[(HIDE) Sum of LATF trees planted]],8,FALSE),\"\")","v":""},{"$f":"IFERROR(VLOOKUP(C52,Table5[[Site Name]:[(HIDE) SUM of LATF Trees Loss]],14,FALSE),\"\")","v":""},"",{"$f":"IFERROR(IF(VLOOKUP(C52,Table5[[Site Name]:[(HIDE) Sum of LATF trees planted]],8,FALSE)=0, \"\", VLOOKUP(C52,Table5[[Site Name]:[(HIDE) Sum of LATF trees planted]],8,FALSE)),\"\")","v":""},null,{"$f":"IFERROR(('Part 2 - Restocking information'!$K52+'Part 2 - Restocking information'!$N52)/'Part 2 - Restocking information'!$O52*100, \"\")","v":""}]
[null,null,null,{"$f":"IFERROR(VLOOKUP(C53,Table5[[Site Name]:[Site requires restocking (if <75% survival rate) - planting sites only]],21,FALSE),\"\")","v":""},{"$f":"VLOOKUP($C53,Table5[[Site Name]:[(HIDE) Whips lost]],24,FALSE)","v":{"$error":"#N/A"}},{"$f":"VLOOKUP($C53,Table5[[Site Name]:[(HIDE) Whips lost]],12,FALSE)","v":{"$error":"#N/A"}},{"$f":"VLOOKUP($C53,Table5[[Site Name]:[(HIDE) Whips lost]],13,FALSE)","v":{"$error":"#N/A"}},null,null,null,{"$f":"IF(SUM('Part 2 - Restocking information'!$H53:$J53)=0,\"\",SUM('Part 2 - Restocking information'!$H53:$J53))","v":""},{"$f":"IFERROR(VLOOKUP(C53,Table5[[Site Name]:[(HIDE) Sum of LATF trees planted]],8,FALSE),\"\")","v":""},{"$f":"IFERROR(VLOOKUP(C53,Table5[[Site Name]:[(HIDE) SUM of LATF Trees Loss]],14,FALSE),\"\")","v":""},"",{"$f":"IFERROR(IF(VLOOKUP(C53,Table5[[Site Name]:[(HIDE) Sum of LATF trees planted]],8,FALSE)=0, \"\", VLOOKUP(C53,Table5[[Site Name]:[(HIDE) Sum of LATF trees planted]],8,FALSE)),\"\")","v":""},null,{"$f":"IFERROR(('Part 2 - Restocking information'!$K53+'Part 2 - Restocking information'!$N53)/'Part 2 - Restocking information'!$O53*100, \"\")","v":""}]
[null,null,null,{"$f":"IFERROR(VLOOKUP(C54,Table5[[Site Name]:[Site requires restocking (if <75% survival rate) - planting sites only]],21,FALSE),\"\")","v":""},{"$f":"VLOOKUP($C54,Table5[[Site Name]:[(HIDE) Whips lost]],24,FALSE)","v":{"$error":"#N/A"}},{"$f":"VLOOKUP($C54,Table5[[Site Name]:[(HIDE) Whips lost]],12,FALSE)","v":{"$error":"#N/A"}},{"$f":"VLOOKUP($C54,Table5[[Site Name]:[(HIDE) Whips lost]],13,FALSE)","v":{"$error":"#N/A"}},null,null,null,{"$f":"IF(SUM('Part 2 - Restocking information'!$H54:$J54)=0,\"\",SUM('Part 2 - Restocking information'!$H54:$J54))","v":""},{"$f":"IFERROR(VLOOKUP(C54,Table5[[Site Name]:[(HIDE) Sum of LATF trees planted]],8,FALSE),\"\")","v":""},{"$f":"IFERROR(VLOOKUP(C54,Table5[[Site Name]:[(HIDE) SUM of LATF Trees Loss]],14,FALSE),\"\")","v":""},"",{"$f":"IFERROR(IF(VLOOKUP(C54,Table5[[Site Name]:[(HIDE) Sum of LATF trees planted]],8,FALSE)=0, \"\", VLOOKUP(C54,Table5[[Site Name]:[(HIDE) Sum of LATF trees planted]],8,FALSE)),\"\")","v":""},null,{"$f":"IFERROR(('Part 2 - Restocking information'!$K54+'Part 2 - Restocking information'!$N54)/'Part 2 - Restocking information'!$O54*100, \"\")","v":""}]
[null,null,null,{"$f":"IFERROR(VLOOKUP(C55,Table5[[Site Name]:[Site requires restocking (if <75% survival rate) - planting sites only]],21,FALSE),\"\")","v":""},{"$f":"VLOOKUP($C55,Table5[[Site Name]:[(HIDE) Whips lost]],24,FALSE)","v":{"$error":"#N/A"}},{"$f":"VLOOKUP($C55,Table5[[Site Name]:[(HIDE) Whips lost]],12,FALSE)","v":{"$error":"#N/A"}},{"$f":"VLOOKUP($C55,Table5[[Site Name]:[(HIDE) Whips lost]],13,FALSE)","v":{"$error":"#N/A"}},null,null,null,{"$f":"IF(SUM('Part 2 - Restocking information'!$H55:$J55)=0,\"\",SUM('Part 2 - Restocking information'!$H55:$J55))","v":""},{"$f":"IFERROR(VLOOKUP(C55,Table5[[Site Name]:[(HIDE) Sum of LATF trees planted]],8,FALSE),\"\")","v":""},{"$f":"IFERROR(VLOOKUP(C55,Table5[[Site Name]:[(HIDE) SUM of LATF Trees Loss]],14,FALSE),\"\")","v":""},"",{"$f":"IFERROR(IF(VLOOKUP(C55,Table5[[Site Name]:[(HIDE) Sum of LATF trees planted]],8,FALSE)=0, \"\", VLOOKUP(C55,Table5[[Site Name]:[(HIDE) Sum of LATF trees planted]],8,FALSE)),\"\")","v":""},null,{"$f":"IFERROR(('Part 2 - Restocking information'!$K55+'Part 2 - Restocking information'!$N55)/'Part 2 - Restocking information'!$O55*100, \"\")","v":""}]
[null,null,null,{"$f":"IFERROR(VLOOKUP(C56,Table5[[Site Name]:[Site requires restocking (if <75% survival rate) - planting sites only]],21,FALSE),\"\")","v":""},{"$f":"VLOOKUP($C56,Table5[[Site Name]:[(HIDE) Whips lost]],24,FALSE)","v":{"$error":"#N/A"}},{"$f":"VLOOKUP($C56,Table5[[Site Name]:[(HIDE) Whips lost]],12,FALSE)","v":{"$error":"#N/A"}},{"$f":"VLOOKUP($C56,Table5[[Site Name]:[(HIDE) Whips lost]],13,FALSE)","v":{"$error":"#N/A"}},null,null,null,{"$f":"IF(SUM('Part 2 - Restocking information'!$H56:$J56)=0,\"\",SUM('Part 2 - Restocking information'!$H56:$J56))","v":""},{"$f":"IFERROR(VLOOKUP(C56,Table5[[Site Name]:[(HIDE) Sum of LATF trees planted]],8,FALSE),\"\")","v":""},{"$f":"IFERROR(VLOOKUP(C56,Table5[[Site Name]:[(HIDE) SUM of LATF Trees Loss]],14,FALSE),\"\")","v":""},"",{"$f":"IFERROR(IF(VLOOKUP(C56,Table5[[Site Name]:[(HIDE) Sum of LATF trees planted]],8,FALSE)=0, \"\", VLOOKUP(C56,Table5[[Site Name]:[(HIDE) Sum of LATF trees planted]],8,FALSE)),\"\")","v":""},null,{"$f":"IFERROR(('Part 2 - Restocking information'!$K56+'Part 2 - Restocking information'!$N56)/'Part 2 - Restocking information'!$O56*100, \"\")","v":""}]
[null,null,null,{"$f":"IFERROR(VLOOKUP(C57,Table5[[Site Name]:[Site requires restocking (if <75% survival rate) - planting sites only]],21,FALSE),\"\")","v":""},{"$f":"VLOOKUP($C57,Table5[[Site Name]:[(HIDE) Whips lost]],24,FALSE)","v":{"$error":"#N/A"}},{"$f":"VLOOKUP($C57,Table5[[Site Name]:[(HIDE) Whips lost]],12,FALSE)","v":{"$error":"#N/A"}},{"$f":"VLOOKUP($C57,Table5[[Site Name]:[(HIDE) Whips lost]],13,FALSE)","v":{"$error":"#N/A"}},null,null,null,{"$f":"IF(SUM('Part 2 - Restocking information'!$H57:$J57)=0,\"\",SUM('Part 2 - Restocking information'!$H57:$J57))","v":""},{"$f":"IFERROR(VLOOKUP(C57,Table5[[Site Name]:[(HIDE) Sum of LATF trees planted]],8,FALSE),\"\")","v":""},{"$f":"IFERROR(VLOOKUP(C57,Table5[[Site Name]:[(HIDE) SUM of LATF Trees Loss]],14,FALSE),\"\")","v":""},"",{"$f":"IFERROR(IF(VLOOKUP(C57,Table5[[Site Name]:[(HIDE) Sum of LATF trees planted]],8,FALSE)=0, \"\", VLOOKUP(C57,Table5[[Site Name]:[(HIDE) Sum of LATF trees planted]],8,FALSE)),\"\")","v":""},null,{"$f":"IFERROR(('Part 2 - Restocking information'!$K57+'Part 2 - Restocking information'!$N57)/'Part 2 - Restocking information'!$O57*100, \"\")","v":""}]
[null,null,null,{"$f":"IFERROR(VLOOKUP(C58,Table5[[Site Name]:[Site requires restocking (if <75% survival rate) - planting sites only]],21,FALSE),\"\")","v":""},{"$f":"VLOOKUP($C58,Table5[[Site Name]:[(HIDE) Whips lost]],24,FALSE)","v":{"$error":"#N/A"}},{"$f":"VLOOKUP($C58,Table5[[Site Name]:[(HIDE) Whips lost]],12,FALSE)","v":{"$error":"#N/A"}},{"$f":"VLOOKUP($C58,Table5[[Site Name]:[(HIDE) Whips lost]],13,FALSE)","v":{"$error":"#N/A"}},null,null,null,{"$f":"IF(SUM('Part 2 - Restocking information'!$H58:$J58)=0,\"\",SUM('Part 2 - Restocking information'!$H58:$J58))","v":""},{"$f":"IFERROR(VLOOKUP(C58,Table5[[Site Name]:[(HIDE) Sum of LATF trees planted]],8,FALSE),\"\")","v":""},{"$f":"IFERROR(VLOOKUP(C58,Table5[[Site Name]:[(HIDE) SUM of LATF Trees Loss]],14,FALSE),\"\")","v":""},"",{"$f":"IFERROR(IF(VLOOKUP(C58,Table5[[Site Name]:[(HIDE) Sum of LATF trees planted]],8,FALSE)=0, \"\", VLOOKUP(C58,Table5[[Site Name]:[(HIDE) Sum of LATF trees planted]],8,FALSE)),\"\")","v":""},null,{"$f":"IFERROR(('Part 2 - Restocking information'!$K58+'Part 2 - Restocking information'!$N58)/'Part 2 - Restocking information'!$O58*100, \"\")","v":""}]
[null,null,null,{"$f":"IFERROR(VLOOKUP(C59,Table5[[Site Name]:[Site requires restocking (if <75% survival rate) - planting sites only]],21,FALSE),\"\")","v":""},{"$f":"VLOOKUP($C59,Table5[[Site Name]:[(HIDE) Whips lost]],24,FALSE)","v":{"$error":"#N/A"}},{"$f":"VLOOKUP($C59,Table5[[Site Name]:[(HIDE) Whips lost]],12,FALSE)","v":{"$error":"#N/A"}},{"$f":"VLOOKUP($C59,Table5[[Site Name]:[(HIDE) Whips lost]],13,FALSE)","v":{"$error":"#N/A"}},null,null,null,{"$f":"IF(SUM('Part 2 - Restocking information'!$H59:$J59)=0,\"\",SUM('Part 2 - Restocking information'!$H59:$J59))","v":""},{"$f":"IFERROR(VLOOKUP(C59,Table5[[Site Name]:[(HIDE) Sum of LATF trees planted]],8,FALSE),\"\")","v":""},{"$f":"IFERROR(VLOOKUP(C59,Table5[[Site Name]:[(HIDE) SUM of LATF Trees Loss]],14,FALSE),\"\")","v":""},"",{"$f":"IFERROR(IF(VLOOKUP(C59,Table5[[Site Name]:[(HIDE) Sum of LATF trees planted]],8,FALSE)=0, \"\", VLOOKUP(C59,Table5[[Site Name]:[(HIDE) Sum of LATF trees planted]],8,FALSE)),\"\")","v":""},null,{"$f":"IFERROR(('Part 2 - Restocking information'!$K59+'Part 2 - Restocking information'!$N59)/'Part 2 - Restocking information'!$O59*100, \"\")","v":""}]
[null,null,null,{"$f":"IFERROR(VLOOKUP(C60,Table5[[Site Name]:[Site requires restocking (if <75% survival rate) - planting sites only]],21,FALSE),\"\")","v":""},{"$f":"VLOOKUP($C60,Table5[[Site Name]:[(HIDE) Whips lost]],24,FALSE)","v":{"$error":"#N/A"}},{"$f":"VLOOKUP($C60,Table5[[Site Name]:[(HIDE) Whips lost]],12,FALSE)","v":{"$error":"#N/A"}},{"$f":"VLOOKUP($C60,Table5[[Site Name]:[(HIDE) Whips lost]],13,FALSE)","v":{"$error":"#N/A"}},null,null,null,{"$f":"IF(SUM('Part 2 - Restocking information'!$H60:$J60)=0,\"\",SUM('Part 2 - Restocking information'!$H60:$J60))","v":""},{"$f":"IFERROR(VLOOKUP(C60,Table5[[Site Name]:[(HIDE) Sum of LATF trees planted]],8,FALSE),\"\")","v":""},{"$f":"IFERROR(VLOOKUP(C60,Table5[[Site Name]:[(HIDE) SUM of LATF Trees Loss]],14,FALSE),\"\")","v":""},"",{"$f":"IFERROR(IF(VLOOKUP(C60,Table5[[Site Name]:[(HIDE) Sum of LATF trees planted]],8,FALSE)=0, \"\", VLOOKUP(C60,Table5[[Site Name]:[(HIDE) Sum of LATF trees planted]],8,FALSE)),\"\")","v":""},null,{"$f":"IFERROR(('Part 2 - Restocking information'!$K60+'Part 2 - Restocking information'!$N60)/'Part 2 - Restocking information'!$O60*100, \"\")","v":""}]
[null,null,null,{"$f":"IFERROR(VLOOKUP(C61,Table5[[Site Name]:[Site requires restocking (if <75% survival rate) - planting sites only]],21,FALSE),\"\")","v":""},{"$f":"VLOOKUP($C61,Table5[[Site Name]:[(HIDE) Whips lost]],24,FALSE)","v":{"$error":"#N/A"}},{"$f":"VLOOKUP($C61,Table5[[Site Name]:[(HIDE) Whips lost]],12,FALSE)","v":{"$error":"#N/A"}},{"$f":"VLOOKUP($C61,Table5[[Site Name]:[(HIDE) Whips lost]],13,FALSE)","v":{"$error":"#N/A"}},null,null,null,{"$f":"IF(SUM('Part 2 - Restocking information'!$H61:$J61)=0,\"\",SUM('Part 2 - Restocking information'!$H61:$J61))","v":""},{"$f":"IFERROR(VLOOKUP(C61,Table5[[Site Name]:[(HIDE) Sum of LATF trees planted]],8,FALSE),\"\")","v":""},{"$f":"IFERROR(VLOOKUP(C61,Table5[[Site Name]:[(HIDE) SUM of LATF Trees Loss]],14,FALSE),\"\")","v":""},"",{"$f":"IFERROR(IF(VLOOKUP(C61,Table5[[Site Name]:[(HIDE) Sum of LATF trees planted]],8,FALSE)=0, \"\", VLOOKUP(C61,Table5[[Site Name]:[(HIDE) Sum of LATF trees planted]],8,FALSE)),\"\")","v":""},null,{"$f":"IFERROR(('Part 2 - Restocking information'!$K61+'Part 2 - Restocking information'!$N61)/'Part 2 - Restocking information'!$O61*100, \"\")","v":""}]
[null,null,null,{"$f":"IFERROR(VLOOKUP(C62,Table5[[Site Name]:[Site requires restocking (if <75% survival rate) - planting sites only]],21,FALSE),\"\")","v":""},{"$f":"VLOOKUP($C62,Table5[[Site Name]:[(HIDE) Whips lost]],24,FALSE)","v":{"$error":"#N/A"}},{"$f":"VLOOKUP($C62,Table5[[Site Name]:[(HIDE) Whips lost]],12,FALSE)","v":{"$error":"#N/A"}},{"$f":"VLOOKUP($C62,Table5[[Site Name]:[(HIDE) Whips lost]],13,FALSE)","v":{"$error":"#N/A"}},null,null,null,{"$f":"IF(SUM('Part 2 - Restocking information'!$H62:$J62)=0,\"\",SUM('Part 2 - Restocking information'!$H62:$J62))","v":""},{"$f":"IFERROR(VLOOKUP(C62,Table5[[Site Name]:[(HIDE) Sum of LATF trees planted]],8,FALSE),\"\")","v":""},{"$f":"IFERROR(VLOOKUP(C62,Table5[[Site Name]:[(HIDE) SUM of LATF Trees Loss]],14,FALSE),\"\")","v":""},"",{"$f":"IFERROR(IF(VLOOKUP(C62,Table5[[Site Name]:[(HIDE) Sum of LATF trees planted]],8,FALSE)=0, \"\", VLOOKUP(C62,Table5[[Site Name]:[(HIDE) Sum of LATF trees planted]],8,FALSE)),\"\")","v":""},null,{"$f":"IFERROR(('Part 2 - Restocking information'!$K62+'Part 2 - Restocking information'!$N62)/'Part 2 - Restocking information'!$O62*100, \"\")","v":""}]
[null,null,null,{"$f":"IFERROR(VLOOKUP(C63,Table5[[Site Name]:[Site requires restocking (if <75% survival rate) - planting sites only]],21,FALSE),\"\")","v":""},{"$f":"VLOOKUP($C63,Table5[[Site Name]:[(HIDE) Whips lost]],24,FALSE)","v":{"$error":"#N/A"}},{"$f":"VLOOKUP($C63,Table5[[Site Name]:[(HIDE) Whips lost]],12,FALSE)","v":{"$error":"#N/A"}},{"$f":"VLOOKUP($C63,Table5[[Site Name]:[(HIDE) Whips lost]],13,FALSE)","v":{"$error":"#N/A"}},null,null,null,{"$f":"IF(SUM('Part 2 - Restocking information'!$H63:$J63)=0,\"\",SUM('Part 2 - Restocking information'!$H63:$J63))","v":""},{"$f":"IFERROR(VLOOKUP(C63,Table5[[Site Name]:[(HIDE) Sum of LATF trees planted]],8,FALSE),\"\")","v":""},{"$f":"IFERROR(VLOOKUP(C63,Table5[[Site Name]:[(HIDE) SUM of LATF Trees Loss]],14,FALSE),\"\")","v":""},"",{"$f":"IFERROR(IF(VLOOKUP(C63,Table5[[Site Name]:[(HIDE) Sum of LATF trees planted]],8,FALSE)=0, \"\", VLOOKUP(C63,Table5[[Site Name]:[(HIDE) Sum of LATF trees planted]],8,FALSE)),\"\")","v":""},null,{"$f":"IFERROR(('Part 2 - Restocking information'!$K63+'Part 2 - Restocking information'!$N63)/'Part 2 - Restocking information'!$O63*100, \"\")","v":""}]
[null,null,null,{"$f":"IFERROR(VLOOKUP(C64,Table5[[Site Name]:[Site requires restocking (if <75% survival rate) - planting sites only]],21,FALSE),\"\")","v":""},{"$f":"VLOOKUP($C64,Table5[[Site Name]:[(HIDE) Whips lost]],24,FALSE)","v":{"$error":"#N/A"}},{"$f":"VLOOKUP($C64,Table5[[Site Name]:[(HIDE) Whips lost]],12,FALSE)","v":{"$error":"#N/A"}},{"$f":"VLOOKUP($C64,Table5[[Site Name]:[(HIDE) Whips lost]],13,FALSE)","v":{"$error":"#N/A"}},null,null,null,{"$f":"IF(SUM('Part 2 - Restocking information'!$H64:$J64)=0,\"\",SUM('Part 2 - Restocking information'!$H64:$J64))","v":""},{"$f":"IFERROR(VLOOKUP(C64,Table5[[Site Name]:[(HIDE) Sum of LATF trees planted]],8,FALSE),\"\")","v":""},{"$f":"IFERROR(VLOOKUP(C64,Table5[[Site Name]:[(HIDE) SUM of LATF Trees Loss]],14,FALSE),\"\")","v":""},"",{"$f":"IFERROR(IF(VLOOKUP(C64,Table5[[Site Name]:[(HIDE) Sum of LATF trees planted]],8,FALSE)=0, \"\", VLOOKUP(C64,Table5[[Site Name]:[(HIDE) Sum of LATF trees planted]],8,FALSE)),\"\")","v":""},null,{"$f":"IFERROR(('Part 2 - Restocking information'!$K64+'Part 2 - Restocking information'!$N64)/'Part 2 - Restocking information'!$O64*100, \"\")","v":""}]
[null,null,null,{"$f":"IFERROR(VLOOKUP(C65,Table5[[Site Name]:[Site requires restocking (if <75% survival rate) - planting sites only]],21,FALSE),\"\")","v":""},{"$f":"VLOOKUP($C65,Table5[[Site Name]:[(HIDE) Whips lost]],24,FALSE)","v":{"$error":"#N/A"}},{"$f":"VLOOKUP($C65,Table5[[Site Name]:[(HIDE) Whips lost]],12,FALSE)","v":{"$error":"#N/A"}},{"$f":"VLOOKUP($C65,Table5[[Site Name]:[(HIDE) Whips lost]],13,FALSE)","v":{"$error":"#N/A"}},null,null,null,{"$f":"IF(SUM('Part 2 - Restocking information'!$H65:$J65)=0,\"\",SUM('Part 2 - Restocking information'!$H65:$J65))","v":""},{"$f":"IFERROR(VLOOKUP(C65,Table5[[Site Name]:[(HIDE) Sum of LATF trees planted]],8,FALSE),\"\")","v":""},{"$f":"IFERROR(VLOOKUP(C65,Table5[[Site Name]:[(HIDE) SUM of LATF Trees Loss]],14,FALSE),\"\")","v":""},"",{"$f":"IFERROR(IF(VLOOKUP(C65,Table5[[Site Name]:[(HIDE) Sum of LATF trees planted]],8,FALSE)=0, \"\", VLOOKUP(C65,Table5[[Site Name]:[(HIDE) Sum of LATF trees planted]],8,FALSE)),\"\")","v":""},null,{"$f":"IFERROR(('Part 2 - Restocking information'!$K65+'Part 2 - Restocking information'!$N65)/'Part 2 - Restocking information'!$O65*100, \"\")","v":""}]
[null,null,null,{"$f":"IFERROR(VLOOKUP(C66,Table5[[Site Name]:[Site requires restocking (if <75% survival rate) - planting sites only]],21,FALSE),\"\")","v":""},{"$f":"VLOOKUP($C66,Table5[[Site Name]:[(HIDE) Whips lost]],24,FALSE)","v":{"$error":"#N/A"}},{"$f":"VLOOKUP($C66,Table5[[Site Name]:[(HIDE) Whips lost]],12,FALSE)","v":{"$error":"#N/A"}},{"$f":"VLOOKUP($C66,Table5[[Site Name]:[(HIDE) Whips lost]],13,FALSE)","v":{"$error":"#N/A"}},null,null,null,{"$f":"IF(SUM('Part 2 - Restocking information'!$H66:$J66)=0,\"\",SUM('Part 2 - Restocking information'!$H66:$J66))","v":""},{"$f":"IFERROR(VLOOKUP(C66,Table5[[Site Name]:[(HIDE) Sum of LATF trees planted]],8,FALSE),\"\")","v":""},{"$f":"IFERROR(VLOOKUP(C66,Table5[[Site Name]:[(HIDE) SUM of LATF Trees Loss]],14,FALSE),\"\")","v":""},"",{"$f":"IFERROR(IF(VLOOKUP(C66,Table5[[Site Name]:[(HIDE) Sum of LATF trees planted]],8,FALSE)=0, \"\", VLOOKUP(C66,Table5[[Site Name]:[(HIDE) Sum of LATF trees planted]],8,FALSE)),\"\")","v":""},null,{"$f":"IFERROR(('Part 2 - Restocking information'!$K66+'Part 2 - Restocking information'!$N66)/'Part 2 - Restocking information'!$O66*100, \"\")","v":""}]
[null,null,null,{"$f":"IFERROR(VLOOKUP(C67,Table5[[Site Name]:[Site requires restocking (if <75% survival rate) - planting sites only]],21,FALSE),\"\")","v":""},{"$f":"VLOOKUP($C67,Table5[[Site Name]:[(HIDE) Whips lost]],24,FALSE)","v":{"$error":"#N/A"}},{"$f":"VLOOKUP($C67,Table5[[Site Name]:[(HIDE) Whips lost]],12,FALSE)","v":{"$error":"#N/A"}},{"$f":"VLOOKUP($C67,Table5[[Site Name]:[(HIDE) Whips lost]],13,FALSE)","v":{"$error":"#N/A"}},null,null,null,{"$f":"IF(SUM('Part 2 - Restocking information'!$H67:$J67)=0,\"\",SUM('Part 2 - Restocking information'!$H67:$J67))","v":""},{"$f":"IFERROR(VLOOKUP(C67,Table5[[Site Name]:[(HIDE) Sum of LATF trees planted]],8,FALSE),\"\")","v":""},{"$f":"IFERROR(VLOOKUP(C67,Table5[[Site Name]:[(HIDE) SUM of LATF Trees Loss]],14,FALSE),\"\")","v":""},"",{"$f":"IFERROR(IF(VLOOKUP(C67,Table5[[Site Name]:[(HIDE) Sum of LATF trees planted]],8,FALSE)=0, \"\", VLOOKUP(C67,Table5[[Site Name]:[(HIDE) Sum of LATF trees planted]],8,FALSE)),\"\")","v":""},null,{"$f":"IFERROR(('Part 2 - Restocking information'!$K67+'Part 2 - Restocking information'!$N67)/'Part 2 - Restocking information'!$O67*100, \"\")","v":""}]
[null,null,null,{"$f":"IFERROR(VLOOKUP(C68,Table5[[Site Name]:[Site requires restocking (if <75% survival rate) - planting sites only]],21,FALSE),\"\")","v":""},{"$f":"VLOOKUP($C68,Table5[[Site Name]:[(HIDE) Whips lost]],24,FALSE)","v":{"$error":"#N/A"}},{"$f":"VLOOKUP($C68,Table5[[Site Name]:[(HIDE) Whips lost]],12,FALSE)","v":{"$error":"#N/A"}},{"$f":"VLOOKUP($C68,Table5[[Site Name]:[(HIDE) Whips lost]],13,FALSE)","v":{"$error":"#N/A"}},null,null,null,{"$f":"IF(SUM('Part 2 - Restocking information'!$H68:$J68)=0,\"\",SUM('Part 2 - Restocking information'!$H68:$J68))","v":""},{"$f":"IFERROR(VLOOKUP(C68,Table5[[Site Name]:[(HIDE) Sum of LATF trees planted]],8,FALSE),\"\")","v":""},{"$f":"IFERROR(VLOOKUP(C68,Table5[[Site Name]:[(HIDE) SUM of LATF Trees Loss]],14,FALSE),\"\")","v":""},"",{"$f":"IFERROR(IF(VLOOKUP(C68,Table5[[Site Name]:[(HIDE) Sum of LATF trees planted]],8,FALSE)=0, \"\", VLOOKUP(C68,Table5[[Site Name]:[(HIDE) Sum of LATF trees planted]],8,FALSE)),\"\")","v":""},null,{"$f":"IFERROR(('Part 2 - Restocking information'!$K68+'Part 2 - Restocking information'!$N68)/'Part 2 - Restocking information'!$O68*100, \"\")","v":""}]
[null,null,null,{"$f":"IFERROR(VLOOKUP(C69,Table5[[Site Name]:[Site requires restocking (if <75% survival rate) - planting sites only]],21,FALSE),\"\")","v":""},{"$f":"VLOOKUP($C69,Table5[[Site Name]:[(HIDE) Whips lost]],24,FALSE)","v":{"$error":"#N/A"}},{"$f":"VLOOKUP($C69,Table5[[Site Name]:[(HIDE) Whips lost]],12,FALSE)","v":{"$error":"#N/A"}},{"$f":"VLOOKUP($C69,Table5[[Site Name]:[(HIDE) Whips lost]],13,FALSE)","v":{"$error":"#N/A"}},null,null,null,{"$f":"IF(SUM('Part 2 - Restocking information'!$H69:$J69)=0,\"\",SUM('Part 2 - Restocking information'!$H69:$J69))","v":""},{"$f":"IFERROR(VLOOKUP(C69,Table5[[Site Name]:[(HIDE) Sum of LATF trees planted]],8,FALSE),\"\")","v":""},{"$f":"IFERROR(VLOOKUP(C69,Table5[[Site Name]:[(HIDE) SUM of LATF Trees Loss]],14,FALSE),\"\")","v":""},"",{"$f":"IFERROR(IF(VLOOKUP(C69,Table5[[Site Name]:[(HIDE) Sum of LATF trees planted]],8,FALSE)=0, \"\", VLOOKUP(C69,Table5[[Site Name]:[(HIDE) Sum of LATF trees planted]],8,FALSE)),\"\")","v":""},null,{"$f":"IFERROR(('Part 2 - Restocking information'!$K69+'Part 2 - Restocking information'!$N69)/'Part 2 - Restocking information'!$O69*100, \"\")","v":""}]
[null,null,null,{"$f":"IFERROR(VLOOKUP(C70,Table5[[Site Name]:[Site requires restocking (if <75% survival rate) - planting sites only]],21,FALSE),\"\")","v":""},{"$f":"VLOOKUP($C70,Table5[[Site Name]:[(HIDE) Whips lost]],24,FALSE)","v":{"$error":"#N/A"}},{"$f":"VLOOKUP($C70,Table5[[Site Name]:[(HIDE) Whips lost]],12,FALSE)","v":{"$error":"#N/A"}},{"$f":"VLOOKUP($C70,Table5[[Site Name]:[(HIDE) Whips lost]],13,FALSE)","v":{"$error":"#N/A"}},null,null,null,{"$f":"IF(SUM('Part 2 - Restocking information'!$H70:$J70)=0,\"\",SUM('Part 2 - Restocking information'!$H70:$J70))","v":""},{"$f":"IFERROR(VLOOKUP(C70,Table5[[Site Name]:[(HIDE) Sum of LATF trees planted]],8,FALSE),\"\")","v":""},{"$f":"IFERROR(VLOOKUP(C70,Table5[[Site Name]:[(HIDE) SUM of LATF Trees Loss]],14,FALSE),\"\")","v":""},"",{"$f":"IFERROR(IF(VLOOKUP(C70,Table5[[Site Name]:[(HIDE) Sum of LATF trees planted]],8,FALSE)=0, \"\", VLOOKUP(C70,Table5[[Site Name]:[(HIDE) Sum of LATF trees planted]],8,FALSE)),\"\")","v":""},null,{"$f":"IFERROR(('Part 2 - Restocking information'!$K70+'Part 2 - Restocking information'!$N70)/'Part 2 - Restocking information'!$O70*100, \"\")","v":""}]
[null,null,null,{"$f":"IFERROR(VLOOKUP(C71,Table5[[Site Name]:[Site requires restocking (if <75% survival rate) - planting sites only]],21,FALSE),\"\")","v":""},{"$f":"VLOOKUP($C71,Table5[[Site Name]:[(HIDE) Whips lost]],24,FALSE)","v":{"$error":"#N/A"}},{"$f":"VLOOKUP($C71,Table5[[Site Name]:[(HIDE) Whips lost]],12,FALSE)","v":{"$error":"#N/A"}},{"$f":"VLOOKUP($C71,Table5[[Site Name]:[(HIDE) Whips lost]],13,FALSE)","v":{"$error":"#N/A"}},null,null,null,{"$f":"IF(SUM('Part 2 - Restocking information'!$H71:$J71)=0,\"\",SUM('Part 2 - Restocking information'!$H71:$J71))","v":""},{"$f":"IFERROR(VLOOKUP(C71,Table5[[Site Name]:[(HIDE) Sum of LATF trees planted]],8,FALSE),\"\")","v":""},{"$f":"IFERROR(VLOOKUP(C71,Table5[[Site Name]:[(HIDE) SUM of LATF Trees Loss]],14,FALSE),\"\")","v":""},"",{"$f":"IFERROR(IF(VLOOKUP(C71,Table5[[Site Name]:[(HIDE) Sum of LATF trees planted]],8,FALSE)=0, \"\", VLOOKUP(C71,Table5[[Site Name]:[(HIDE) Sum of LATF trees planted]],8,FALSE)),\"\")","v":""},null,{"$f":"IFERROR(('Part 2 - Restocking information'!$K71+'Part 2 - Restocking information'!$N71)/'Part 2 - Restocking information'!$O71*100, \"\")","v":""}]
[null,null,null,{"$f":"IFERROR(VLOOKUP(C72,Table5[[Site Name]:[Site requires restocking (if <75% survival rate) - planting sites only]],21,FALSE),\"\")","v":""},{"$f":"VLOOKUP($C72,Table5[[Site Name]:[(HIDE) Whips lost]],24,FALSE)","v":{"$error":"#N/A"}},{"$f":"VLOOKUP($C72,Table5[[Site Name]:[(HIDE) Whips lost]],12,FALSE)","v":{"$error":"#N/A"}},{"$f":"VLOOKUP($C72,Table5[[Site Name]:[(HIDE) Whips lost]],13,FALSE)","v":{"$error":"#N/A"}},null,null,null,{"$f":"IF(SUM('Part 2 - Restocking information'!$H72:$J72)=0,\"\",SUM('Part 2 - Restocking information'!$H72:$J72))","v":""},{"$f":"IFERROR(VLOOKUP(C72,Table5[[Site Name]:[(HIDE) Sum of LATF trees planted]],8,FALSE),\"\")","v":""},{"$f":"IFERROR(VLOOKUP(C72,Table5[[Site Name]:[(HIDE) SUM of LATF Trees Loss]],14,FALSE),\"\")","v":""},"",{"$f":"IFERROR(IF(VLOOKUP(C72,Table5[[Site Name]:[(HIDE) Sum of LATF trees planted]],8,FALSE)=0, \"\", VLOOKUP(C72,Table5[[Site Name]:[(HIDE) Sum of LATF trees planted]],8,FALSE)),\"\")","v":""},null,{"$f":"IFERROR(('Part 2 - Restocking information'!$K72+'Part 2 - Restocking information'!$N72)/'Part 2 - Restocking information'!$O72*100, \"\")","v":""}]
[null,null,null,{"$f":"IFERROR(VLOOKUP(C73,Table5[[Site Name]:[Site requires restocking (if <75% survival rate) - planting sites only]],21,FALSE),\"\")","v":""},{"$f":"VLOOKUP($C73,Table5[[Site Name]:[(HIDE) Whips lost]],24,FALSE)","v":{"$error":"#N/A"}},{"$f":"VLOOKUP($C73,Table5[[Site Name]:[(HIDE) Whips lost]],12,FALSE)","v":{"$error":"#N/A"}},{"$f":"VLOOKUP($C73,Table5[[Site Name]:[(HIDE) Whips lost]],13,FALSE)","v":{"$error":"#N/A"}},null,null,null,{"$f":"IF(SUM('Part 2 - Restocking information'!$H73:$J73)=0,\"\",SUM('Part 2 - Restocking information'!$H73:$J73))","v":""},{"$f":"IFERROR(VLOOKUP(C73,Table5[[Site Name]:[(HIDE) Sum of LATF trees planted]],8,FALSE),\"\")","v":""},{"$f":"IFERROR(VLOOKUP(C73,Table5[[Site Name]:[(HIDE) SUM of LATF Trees Loss]],14,FALSE),\"\")","v":""},"",{"$f":"IFERROR(IF(VLOOKUP(C73,Table5[[Site Name]:[(HIDE) Sum of LATF trees planted]],8,FALSE)=0, \"\", VLOOKUP(C73,Table5[[Site Name]:[(HIDE) Sum of LATF trees planted]],8,FALSE)),\"\")","v":""},null,{"$f":"IFERROR(('Part 2 - Restocking information'!$K73+'Part 2 - Restocking information'!$N73)/'Part 2 - Restocking information'!$O73*100, \"\")","v":""}]
[null,null,null,{"$f":"IFERROR(VLOOKUP(C74,Table5[[Site Name]:[Site requires restocking (if <75% survival rate) - planting sites only]],21,FALSE),\"\")","v":""},{"$f":"VLOOKUP($C74,Table5[[Site Name]:[(HIDE) Whips lost]],24,FALSE)","v":{"$error":"#N/A"}},{"$f":"VLOOKUP($C74,Table5[[Site Name]:[(HIDE) Whips lost]],12,FALSE)","v":{"$error":"#N/A"}},{"$f":"VLOOKUP($C74,Table5[[Site Name]:[(HIDE) Whips lost]],13,FALSE)","v":{"$error":"#N/A"}},null,null,null,{"$f":"IF(SUM('Part 2 - Restocking information'!$H74:$J74)=0,\"\",SUM('Part 2 - Restocking information'!$H74:$J74))","v":""},{"$f":"IFERROR(VLOOKUP(C74,Table5[[Site Name]:[(HIDE) Sum of LATF trees planted]],8,FALSE),\"\")","v":""},{"$f":"IFERROR(VLOOKUP(C74,Table5[[Site Name]:[(HIDE) SUM of LATF Trees Loss]],14,FALSE),\"\")","v":""},"",{"$f":"IFERROR(IF(VLOOKUP(C74,Table5[[Site Name]:[(HIDE) Sum of LATF trees planted]],8,FALSE)=0, \"\", VLOOKUP(C74,Table5[[Site Name]:[(HIDE) Sum of LATF trees planted]],8,FALSE)),\"\")","v":""},null,{"$f":"IFERROR(('Part 2 - Restocking information'!$K74+'Part 2 - Restocking information'!$N74)/'Part 2 - Restocking information'!$O74*100, \"\")","v":""}]
[null,null,null,{"$f":"IFERROR(VLOOKUP(C75,Table5[[Site Name]:[Site requires restocking (if <75% survival rate) - planting sites only]],21,FALSE),\"\")","v":""},{"$f":"VLOOKUP($C75,Table5[[Site Name]:[(HIDE) Whips lost]],24,FALSE)","v":{"$error":"#N/A"}},{"$f":"VLOOKUP($C75,Table5[[Site Name]:[(HIDE) Whips lost]],12,FALSE)","v":{"$error":"#N/A"}},{"$f":"VLOOKUP($C75,Table5[[Site Name]:[(HIDE) Whips lost]],13,FALSE)","v":{"$error":"#N/A"}},null,null,null,{"$f":"IF(SUM('Part 2 - Restocking information'!$H75:$J75)=0,\"\",SUM('Part 2 - Restocking information'!$H75:$J75))","v":""},{"$f":"IFERROR(VLOOKUP(C75,Table5[[Site Name]:[(HIDE) Sum of LATF trees planted]],8,FALSE),\"\")","v":""},{"$f":"IFERROR(VLOOKUP(C75,Table5[[Site Name]:[(HIDE) SUM of LATF Trees Loss]],14,FALSE),\"\")","v":""},"",{"$f":"IFERROR(IF(VLOOKUP(C75,Table5[[Site Name]:[(HIDE) Sum of LATF trees planted]],8,FALSE)=0, \"\", VLOOKUP(C75,Table5[[Site Name]:[(HIDE) Sum of LATF trees planted]],8,FALSE)),\"\")","v":""},null,{"$f":"IFERROR(('Part 2 - Restocking information'!$K75+'Part 2 - Restocking information'!$N75)/'Part 2 - Restocking information'!$O75*100, \"\")","v":""}]
[null,null,null,{"$f":"IFERROR(VLOOKUP(C76,Table5[[Site Name]:[Site requires restocking (if <75% survival rate) - planting sites only]],21,FALSE),\"\")","v":""},{"$f":"VLOOKUP($C76,Table5[[Site Name]:[(HIDE) Whips lost]],24,FALSE)","v":{"$error":"#N/A"}},{"$f":"VLOOKUP($C76,Table5[[Site Name]:[(HIDE) Whips lost]],12,FALSE)","v":{"$error":"#N/A"}},{"$f":"VLOOKUP($C76,Table5[[Site Name]:[(HIDE) Whips lost]],13,FALSE)","v":{"$error":"#N/A"}},null,null,null,{"$f":"IF(SUM('Part 2 - Restocking information'!$H76:$J76)=0,\"\",SUM('Part 2 - Restocking information'!$H76:$J76))","v":""},{"$f":"IFERROR(VLOOKUP(C76,Table5[[Site Name]:[(HIDE) Sum of LATF trees planted]],8,FALSE),\"\")","v":""},{"$f":"IFERROR(VLOOKUP(C76,Table5[[Site Name]:[(HIDE) SUM of LATF Trees Loss]],14,FALSE),\"\")","v":""},"",{"$f":"IFERROR(IF(VLOOKUP(C76,Table5[[Site Name]:[(HIDE) Sum of LATF trees planted]],8,FALSE)=0, \"\", VLOOKUP(C76,Table5[[Site Name]:[(HIDE) Sum of LATF trees planted]],8,FALSE)),\"\")","v":""},null,{"$f":"IFERROR(('Part 2 - Restocking information'!$K76+'Part 2 - Restocking information'!$N76)/'Part 2 - Restocking information'!$O76*100, \"\")","v":""}]
[null,null,null,{"$f":"IFERROR(VLOOKUP(C77,Table5[[Site Name]:[Site requires restocking (if <75% survival rate) - planting sites only]],21,FALSE),\"\")","v":""},{"$f":"VLOOKUP($C77,Table5[[Site Name]:[(HIDE) Whips lost]],24,FALSE)","v":{"$error":"#N/A"}},{"$f":"VLOOKUP($C77,Table5[[Site Name]:[(HIDE) Whips lost]],12,FALSE)","v":{"$error":"#N/A"}},{"$f":"VLOOKUP($C77,Table5[[Site Name]:[(HIDE) Whips lost]],13,FALSE)","v":{"$error":"#N/A"}},null,null,null,{"$f":"IF(SUM('Part 2 - Restocking information'!$H77:$J77)=0,\"\",SUM('Part 2 - Restocking information'!$H77:$J77))","v":""},{"$f":"IFERROR(VLOOKUP(C77,Table5[[Site Name]:[(HIDE) Sum of LATF trees planted]],8,FALSE),\"\")","v":""},{"$f":"IFERROR(VLOOKUP(C77,Table5[[Site Name]:[(HIDE) SUM of LATF Trees Loss]],14,FALSE),\"\")","v":""},"",{"$f":"IFERROR(IF(VLOOKUP(C77,Table5[[Site Name]:[(HIDE) Sum of LATF trees planted]],8,FALSE)=0, \"\", VLOOKUP(C77,Table5[[Site Name]:[(HIDE) Sum of LATF trees planted]],8,FALSE)),\"\")","v":""},null,{"$f":"IFERROR(('Part 2 - Restocking information'!$K77+'Part 2 - Restocking information'!$N77)/'Part 2 - Restocking information'!$O77*100, \"\")","v":""}]
[null,null,null,{"$f":"IFERROR(VLOOKUP(C78,Table5[[Site Name]:[Site requires restocking (if <75% survival rate) - planting sites only]],21,FALSE),\"\")","v":""},{"$f":"VLOOKUP($C78,Table5[[Site Name]:[(HIDE) Whips lost]],24,FALSE)","v":{"$error":"#N/A"}},{"$f":"VLOOKUP($C78,Table5[[Site Name]:[(HIDE) Whips lost]],12,FALSE)","v":{"$error":"#N/A"}},{"$f":"VLOOKUP($C78,Table5[[Site Name]:[(HIDE) Whips lost]],13,FALSE)","v":{"$error":"#N/A"}},null,null,null,{"$f":"IF(SUM('Part 2 - Restocking information'!$H78:$J78)=0,\"\",SUM('Part 2 - Restocking information'!$H78:$J78))","v":""},{"$f":"IFERROR(VLOOKUP(C78,Table5[[Site Name]:[(HIDE) Sum of LATF trees planted]],8,FALSE),\"\")","v":""},{"$f":"IFERROR(VLOOKUP(C78,Table5[[Site Name]:[(HIDE) SUM of LATF Trees Loss]],14,FALSE),\"\")","v":""},"",{"$f":"IFERROR(IF(VLOOKUP(C78,Table5[[Site Name]:[(HIDE) Sum of LATF trees planted]],8,FALSE)=0, \"\", VLOOKUP(C78,Table5[[Site Name]:[(HIDE) Sum of LATF trees planted]],8,FALSE)),\"\")","v":""},null,{"$f":"IFERROR(('Part 2 - Restocking information'!$K78+'Part 2 - Restocking information'!$N78)/'Part 2 - Restocking information'!$O78*100, \"\")","v":""}]
[null,null,null,{"$f":"IFERROR(VLOOKUP(C79,Table5[[Site Name]:[Site requires restocking (if <75% survival rate) - planting sites only]],21,FALSE),\"\")","v":""},{"$f":"VLOOKUP($C79,Table5[[Site Name]:[(HIDE) Whips lost]],24,FALSE)","v":{"$error":"#N/A"}},{"$f":"VLOOKUP($C79,Table5[[Site Name]:[(HIDE) Whips lost]],12,FALSE)","v":{"$error":"#N/A"}},{"$f":"VLOOKUP($C79,Table5[[Site Name]:[(HIDE) Whips lost]],13,FALSE)","v":{"$error":"#N/A"}},null,null,null,{"$f":"IF(SUM('Part 2 - Restocking information'!$H79:$J79)=0,\"\",SUM('Part 2 - Restocking information'!$H79:$J79))","v":""},{"$f":"IFERROR(VLOOKUP(C79,Table5[[Site Name]:[(HIDE) Sum of LATF trees planted]],8,FALSE),\"\")","v":""},{"$f":"IFERROR(VLOOKUP(C79,Table5[[Site Name]:[(HIDE) SUM of LATF Trees Loss]],14,FALSE),\"\")","v":""},"",{"$f":"IFERROR(IF(VLOOKUP(C79,Table5[[Site Name]:[(HIDE) Sum of LATF trees planted]],8,FALSE)=0, \"\", VLOOKUP(C79,Table5[[Site Name]:[(HIDE) Sum of LATF trees planted]],8,FALSE)),\"\")","v":""},null,{"$f":"IFERROR(('Part 2 - Restocking information'!$K79+'Part 2 - Restocking information'!$N79)/'Part 2 - Restocking information'!$O79*100, \"\")","v":""}]
[null,null,null,{"$f":"IFERROR(VLOOKUP(C80,Table5[[Site Name]:[Site requires restocking (if <75% survival rate) - planting sites only]],21,FALSE),\"\")","v":""},{"$f":"VLOOKUP($C80,Table5[[Site Name]:[(HIDE) Whips lost]],24,FALSE)","v":{"$error":"#N/A"}},{"$f":"VLOOKUP($C80,Table5[[Site Name]:[(HIDE) Whips lost]],12,FALSE)","v":{"$error":"#N/A"}},{"$f":"VLOOKUP($C80,Table5[[Site Name]:[(HIDE) Whips lost]],13,FALSE)","v":{"$error":"#N/A"}},null,null,null,{"$f":"IF(SUM('Part 2 - Restocking information'!$H80:$J80)=0,\"\",SUM('Part 2 - Restocking information'!$H80:$J80))","v":""},{"$f":"IFERROR(VLOOKUP(C80,Table5[[Site Name]:[(HIDE) Sum of LATF trees planted]],8,FALSE),\"\")","v":""},{"$f":"IFERROR(VLOOKUP(C80,Table5[[Site Name]:[(HIDE) SUM of LATF Trees Loss]],14,FALSE),\"\")","v":""},"",{"$f":"IFERROR(IF(VLOOKUP(C80,Table5[[Site Name]:[(HIDE) Sum of LATF trees planted]],8,FALSE)=0, \"\", VLOOKUP(C80,Table5[[Site Name]:[(HIDE) Sum of LATF trees planted]],8,FALSE)),\"\")","v":""},null,{"$f":"IFERROR(('Part 2 - Restocking information'!$K80+'Part 2 - Restocking information'!$N80)/'Part 2 - Restocking information'!$O80*100, \"\")","v":""}]
[null,null,null,{"$f":"IFERROR(VLOOKUP(C81,Table5[[Site Name]:[Site requires restocking (if <75% survival rate) - planting sites only]],21,FALSE),\"\")","v":""},{"$f":"VLOOKUP($C81,Table5[[Site Name]:[(HIDE) Whips lost]],24,FALSE)","v":{"$error":"#N/A"}},{"$f":"VLOOKUP($C81,Table5[[Site Name]:[(HIDE) Whips lost]],12,FALSE)","v":{"$error":"#N/A"}},{"$f":"VLOOKUP($C81,Table5[[Site Name]:[(HIDE) Whips lost]],13,FALSE)","v":{"$error":"#N/A"}},null,null,null,{"$f":"IF(SUM('Part 2 - Restocking information'!$H81:$J81)=0,\"\",SUM('Part 2 - Restocking information'!$H81:$J81))","v":""},{"$f":"IFERROR(VLOOKUP(C81,Table5[[Site Name]:[(HIDE) Sum of LATF trees planted]],8,FALSE),\"\")","v":""},{"$f":"IFERROR(VLOOKUP(C81,Table5[[Site Name]:[(HIDE) SUM of LATF Trees Loss]],14,FALSE),\"\")","v":""},"",{"$f":"IFERROR(IF(VLOOKUP(C81,Table5[[Site Name]:[(HIDE) Sum of LATF trees planted]],8,FALSE)=0, \"\", VLOOKUP(C81,Table5[[Site Name]:[(HIDE) Sum of LATF trees planted]],8,FALSE)),\"\")","v":""},null,{"$f":"IFERROR(('Part 2 - Restocking information'!$K81+'Part 2 - Restocking information'!$N81)/'Part 2 - Restocking information'!$O81*100, \"\")","v":""}]
[null,null,null,{"$f":"IFERROR(VLOOKUP(C82,Table5[[Site Name]:[Site requires restocking (if <75% survival rate) - planting sites only]],21,FALSE),\"\")","v":""},{"$f":"VLOOKUP($C82,Table5[[Site Name]:[(HIDE) Whips lost]],24,FALSE)","v":{"$error":"#N/A"}},{"$f":"VLOOKUP($C82,Table5[[Site Name]:[(HIDE) Whips lost]],12,FALSE)","v":{"$error":"#N/A"}},{"$f":"VLOOKUP($C82,Table5[[Site Name]:[(HIDE) Whips lost]],13,FALSE)","v":{"$error":"#N/A"}},null,null,null,{"$f":"IF(SUM('Part 2 - Restocking information'!$H82:$J82)=0,\"\",SUM('Part 2 - Restocking information'!$H82:$J82))","v":""},{"$f":"IFERROR(VLOOKUP(C82,Table5[[Site Name]:[(HIDE) Sum of LATF trees planted]],8,FALSE),\"\")","v":""},{"$f":"IFERROR(VLOOKUP(C82,Table5[[Site Name]:[(HIDE) SUM of LATF Trees Loss]],14,FALSE),\"\")","v":""},"",{"$f":"IFERROR(IF(VLOOKUP(C82,Table5[[Site Name]:[(HIDE) Sum of LATF trees planted]],8,FALSE)=0, \"\", VLOOKUP(C82,Table5[[Site Name]:[(HIDE) Sum of LATF trees planted]],8,FALSE)),\"\")","v":""},null,{"$f":"IFERROR(('Part 2 - Restocking information'!$K82+'Part 2 - Restocking information'!$N82)/'Part 2 - Restocking information'!$O82*100, \"\")","v":""}]
[null,null,null,{"$f":"IFERROR(VLOOKUP(C83,Table5[[Site Name]:[Site requires restocking (if <75% survival rate) - planting sites only]],21,FALSE),\"\")","v":""},{"$f":"VLOOKUP($C83,Table5[[Site Name]:[(HIDE) Whips lost]],24,FALSE)","v":{"$error":"#N/A"}},{"$f":"VLOOKUP($C83,Table5[[Site Name]:[(HIDE) Whips lost]],12,FALSE)","v":{"$error":"#N/A"}},{"$f":"VLOOKUP($C83,Table5[[Site Name]:[(HIDE) Whips lost]],13,FALSE)","v":{"$error":"#N/A"}},null,null,null,{"$f":"IF(SUM('Part 2 - Restocking information'!$H83:$J83)=0,\"\",SUM('Part 2 - Restocking information'!$H83:$J83))","v":""},{"$f":"IFERROR(VLOOKUP(C83,Table5[[Site Name]:[(HIDE) Sum of LATF trees planted]],8,FALSE),\"\")","v":""},{"$f":"IFERROR(VLOOKUP(C83,Table5[[Site Name]:[(HIDE) SUM of LATF Trees Loss]],14,FALSE),\"\")","v":""},"",{"$f":"IFERROR(IF(VLOOKUP(C83,Table5[[Site Name]:[(HIDE) Sum of LATF trees planted]],8,FALSE)=0, \"\", VLOOKUP(C83,Table5[[Site Name]:[(HIDE) Sum of LATF trees planted]],8,FALSE)),\"\")","v":""},null,{"$f":"IFERROR(('Part 2 - Restocking information'!$K83+'Part 2 - Restocking information'!$N83)/'Part 2 - Restocking information'!$O83*100, \"\")","v":""}]
[null,null,null,{"$f":"IFERROR(VLOOKUP(C84,Table5[[Site Name]:[Site requires restocking (if <75% survival rate) - planting sites only]],21,FALSE),\"\")","v":""},{"$f":"VLOOKUP($C84,Table5[[Site Name]:[(HIDE) Whips lost]],24,FALSE)","v":{"$error":"#N/A"}},{"$f":"VLOOKUP($C84,Table5[[Site Name]:[(HIDE) Whips lost]],12,FALSE)","v":{"$error":"#N/A"}},{"$f":"VLOOKUP($C84,Table5[[Site Name]:[(HIDE) Whips lost]],13,FALSE)","v":{"$error":"#N/A"}},null,null,null,{"$f":"IF(SUM('Part 2 - Restocking information'!$H84:$J84)=0,\"\",SUM('Part 2 - Restocking information'!$H84:$J84))","v":""},{"$f":"IFERROR(VLOOKUP(C84,Table5[[Site Name]:[(HIDE) Sum of LATF trees planted]],8,FALSE),\"\")","v":""},{"$f":"IFERROR(VLOOKUP(C84,Table5[[Site Name]:[(HIDE) SUM of LATF Trees Loss]],14,FALSE),\"\")","v":""},"",{"$f":"IFERROR(IF(VLOOKUP(C84,Table5[[Site Name]:[(HIDE) Sum of LATF trees planted]],8,FALSE)=0, \"\", VLOOKUP(C84,Table5[[Site Name]:[(HIDE) Sum of LATF trees planted]],8,FALSE)),\"\")","v":""},null,{"$f":"IFERROR(('Part 2 - Restocking information'!$K84+'Part 2 - Restocking information'!$N84)/'Part 2 - Restocking information'!$O84*100, \"\")","v":""}]
[null,null,null,{"$f":"IFERROR(VLOOKUP(C85,Table5[[Site Name]:[Site requires restocking (if <75% survival rate) - planting sites only]],21,FALSE),\"\")","v":""},{"$f":"VLOOKUP($C85,Table5[[Site Name]:[(HIDE) Whips lost]],24,FALSE)","v":{"$error":"#N/A"}},{"$f":"VLOOKUP($C85,Table5[[Site Name]:[(HIDE) Whips lost]],12,FALSE)","v":{"$error":"#N/A"}},{"$f":"VLOOKUP($C85,Table5[[Site Name]:[(HIDE) Whips lost]],13,FALSE)","v":{"$error":"#N/A"}},null,null,null,{"$f":"IF(SUM('Part 2 - Restocking information'!$H85:$J85)=0,\"\",SUM('Part 2 - Restocking information'!$H85:$J85))","v":""},{"$f":"IFERROR(VLOOKUP(C85,Table5[[Site Name]:[(HIDE) Sum of LATF trees planted]],8,FALSE),\"\")","v":""},{"$f":"IFERROR(VLOOKUP(C85,Table5[[Site Name]:[(HIDE) SUM of LATF Trees Loss]],14,FALSE),\"\")","v":""},"",{"$f":"IFERROR(IF(VLOOKUP(C85,Table5[[Site Name]:[(HIDE) Sum of LATF trees planted]],8,FALSE)=0, \"\", VLOOKUP(C85,Table5[[Site Name]:[(HIDE) Sum of LATF trees planted]],8,FALSE)),\"\")","v":""},null,{"$f":"IFERROR(('Part 2 - Restocking information'!$K85+'Part 2 - Restocking information'!$N85)/'Part 2 - Restocking information'!$O85*100, \"\")","v":""}]
[null,null,null,{"$f":"IFERROR(VLOOKUP(C86,Table5[[Site Name]:[Site requires restocking (if <75% survival rate) - planting sites only]],21,FALSE),\"\")","v":""},{"$f":"VLOOKUP($C86,Table5[[Site Name]:[(HIDE) Whips lost]],24,FALSE)","v":{"$error":"#N/A"}},{"$f":"VLOOKUP($C86,Table5[[Site Name]:[(HIDE) Whips lost]],12,FALSE)","v":{"$error":"#N/A"}},{"$f":"VLOOKUP($C86,Table5[[Site Name]:[(HIDE) Whips lost]],13,FALSE)","v":{"$error":"#N/A"}},null,null,null,{"$f":"IF(SUM('Part 2 - Restocking information'!$H86:$J86)=0,\"\",SUM('Part 2 - Restocking information'!$H86:$J86))","v":""},{"$f":"IFERROR(VLOOKUP(C86,Table5[[Site Name]:[(HIDE) Sum of LATF trees planted]],8,FALSE),\"\")","v":""},{"$f":"IFERROR(VLOOKUP(C86,Table5[[Site Name]:[(HIDE) SUM of LATF Trees Loss]],14,FALSE),\"\")","v":""},"",{"$f":"IFERROR(IF(VLOOKUP(C86,Table5[[Site Name]:[(HIDE) Sum of LATF trees planted]],8,FALSE)=0, \"\", VLOOKUP(C86,Table5[[Site Name]:[(HIDE) Sum of LATF trees planted]],8,FALSE)),\"\")","v":""},null,{"$f":"IFERROR(('Part 2 - Restocking information'!$K86+'Part 2 - Restocking information'!$N86)/'Part 2 - Restocking information'!$O86*100, \"\")","v":""}]
[null,null,null,{"$f":"IFERROR(VLOOKUP(C87,Table5[[Site Name]:[Site requires restocking (if <75% survival rate) - planting sites only]],21,FALSE),\"\")","v":""},{"$f":"VLOOKUP($C87,Table5[[Site Name]:[(HIDE) Whips lost]],24,FALSE)","v":{"$error":"#N/A"}},{"$f":"VLOOKUP($C87,Table5[[Site Name]:[(HIDE) Whips lost]],12,FALSE)","v":{"$error":"#N/A"}},{"$f":"VLOOKUP($C87,Table5[[Site Name]:[(HIDE) Whips lost]],13,FALSE)","v":{"$error":"#N/A"}},null,null,null,{"$f":"IF(SUM('Part 2 - Restocking information'!$H87:$J87)=0,\"\",SUM('Part 2 - Restocking information'!$H87:$J87))","v":""},{"$f":"IFERROR(VLOOKUP(C87,Table5[[Site Name]:[(HIDE) Sum of LATF trees planted]],8,FALSE),\"\")","v":""},{"$f":"IFERROR(VLOOKUP(C87,Table5[[Site Name]:[(HIDE) SUM of LATF Trees Loss]],14,FALSE),\"\")","v":""},"",{"$f":"IFERROR(IF(VLOOKUP(C87,Table5[[Site Name]:[(HIDE) Sum of LATF trees planted]],8,FALSE)=0, \"\", VLOOKUP(C87,Table5[[Site Name]:[(HIDE) Sum of LATF trees planted]],8,FALSE)),\"\")","v":""},null,{"$f":"IFERROR(('Part 2 - Restocking information'!$K87+'Part 2 - Restocking information'!$N87)/'Part 2 - Restocking information'!$O87*100, \"\")","v":""}]
[null,null,null,{"$f":"IFERROR(VLOOKUP(C88,Table5[[Site Name]:[Site requires restocking (if <75% survival rate) - planting sites only]],21,FALSE),\"\")","v":""},{"$f":"VLOOKUP($C88,Table5[[Site Name]:[(HIDE) Whips lost]],24,FALSE)","v":{"$error":"#N/A"}},{"$f":"VLOOKUP($C88,Table5[[Site Name]:[(HIDE) Whips lost]],12,FALSE)","v":{"$error":"#N/A"}},{"$f":"VLOOKUP($C88,Table5[[Site Name]:[(HIDE) Whips lost]],13,FALSE)","v":{"$error":"#N/A"}},null,null,null,{"$f":"IF(SUM('Part 2 - Restocking information'!$H88:$J88)=0,\"\",SUM('Part 2 - Restocking information'!$H88:$J88))","v":""},{"$f":"IFERROR(VLOOKUP(C88,Table5[[Site Name]:[(HIDE) Sum of LATF trees planted]],8,FALSE),\"\")","v":""},{"$f":"IFERROR(VLOOKUP(C88,Table5[[Site Name]:[(HIDE) SUM of LATF Trees Loss]],14,FALSE),\"\")","v":""},"",{"$f":"IFERROR(IF(VLOOKUP(C88,Table5[[Site Name]:[(HIDE) Sum of LATF trees planted]],8,FALSE)=0, \"\", VLOOKUP(C88,Table5[[Site Name]:[(HIDE) Sum of LATF trees planted]],8,FALSE)),\"\")","v":""},null,{"$f":"IFERROR(('Part 2 - Restocking information'!$K88+'Part 2 - Restocking information'!$N88)/'Part 2 - Restocking information'!$O88*100, \"\")","v":""}]
[null,null,null,{"$f":"IFERROR(VLOOKUP(C89,Table5[[Site Name]:[Site requires restocking (if <75% survival rate) - planting sites only]],21,FALSE),\"\")","v":""},{"$f":"VLOOKUP($C89,Table5[[Site Name]:[(HIDE) Whips lost]],24,FALSE)","v":{"$error":"#N/A"}},{"$f":"VLOOKUP($C89,Table5[[Site Name]:[(HIDE) Whips lost]],12,FALSE)","v":{"$error":"#N/A"}},{"$f":"VLOOKUP($C89,Table5[[Site Name]:[(HIDE) Whips lost]],13,FALSE)","v":{"$error":"#N/A"}},null,null,null,{"$f":"IF(SUM('Part 2 - Restocking information'!$H89:$J89)=0,\"\",SUM('Part 2 - Restocking information'!$H89:$J89))","v":""},{"$f":"IFERROR(VLOOKUP(C89,Table5[[Site Name]:[(HIDE) Sum of LATF trees planted]],8,FALSE),\"\")","v":""},{"$f":"IFERROR(VLOOKUP(C89,Table5[[Site Name]:[(HIDE) SUM of LATF Trees Loss]],14,FALSE),\"\")","v":""},"",{"$f":"IFERROR(IF(VLOOKUP(C89,Table5[[Site Name]:[(HIDE) Sum of LATF trees planted]],8,FALSE)=0, \"\", VLOOKUP(C89,Table5[[Site Name]:[(HIDE) Sum of LATF trees planted]],8,FALSE)),\"\")","v":""},null,{"$f":"IFERROR(('Part 2 - Restocking information'!$K89+'Part 2 - Restocking information'!$N89)/'Part 2 - Restocking information'!$O89*100, \"\")","v":""}]
[null,null,null,{"$f":"IFERROR(VLOOKUP(C90,Table5[[Site Name]:[Site requires restocking (if <75% survival rate) - planting sites only]],21,FALSE),\"\")","v":""},{"$f":"VLOOKUP($C90,Table5[[Site Name]:[(HIDE) Whips lost]],24,FALSE)","v":{"$error":"#N/A"}},{"$f":"VLOOKUP($C90,Table5[[Site Name]:[(HIDE) Whips lost]],12,FALSE)","v":{"$error":"#N/A"}},{"$f":"VLOOKUP($C90,Table5[[Site Name]:[(HIDE) Whips lost]],13,FALSE)","v":{"$error":"#N/A"}},null,null,null,{"$f":"IF(SUM('Part 2 - Restocking information'!$H90:$J90)=0,\"\",SUM('Part 2 - Restocking information'!$H90:$J90))","v":""},{"$f":"IFERROR(VLOOKUP(C90,Table5[[Site Name]:[(HIDE) Sum of LATF trees planted]],8,FALSE),\"\")","v":""},{"$f":"IFERROR(VLOOKUP(C90,Table5[[Site Name]:[(HIDE) SUM of LATF Trees Loss]],14,FALSE),\"\")","v":""},"",{"$f":"IFERROR(IF(VLOOKUP(C90,Table5[[Site Name]:[(HIDE) Sum of LATF trees planted]],8,FALSE)=0, \"\", VLOOKUP(C90,Table5[[Site Name]:[(HIDE) Sum of LATF trees planted]],8,FALSE)),\"\")","v":""},null,{"$f":"IFERROR(('Part 2 - Restocking information'!$K90+'Part 2 - Restocking information'!$N90)/'Part 2 - Restocking information'!$O90*100, \"\")","v":""}]
[null,null,null,{"$f":"IFERROR(VLOOKUP(C91,Table5[[Site Name]:[Site requires restocking (if <75% survival rate) - planting sites only]],21,FALSE),\"\")","v":""},{"$f":"VLOOKUP($C91,Table5[[Site Name]:[(HIDE) Whips lost]],24,FALSE)","v":{"$error":"#N/A"}},{"$f":"VLOOKUP($C91,Table5[[Site Name]:[(HIDE) Whips lost]],12,FALSE)","v":{"$error":"#N/A"}},{"$f":"VLOOKUP($C91,Table5[[Site Name]:[(HIDE) Whips lost]],13,FALSE)","v":{"$error":"#N/A"}},null,null,null,{"$f":"IF(SUM('Part 2 - Restocking information'!$H91:$J91)=0,\"\",SUM('Part 2 - Restocking information'!$H91:$J91))","v":""},{"$f":"IFERROR(VLOOKUP(C91,Table5[[Site Name]:[(HIDE) Sum of LATF trees planted]],8,FALSE),\"\")","v":""},{"$f":"IFERROR(VLOOKUP(C91,Table5[[Site Name]:[(HIDE) SUM of LATF Trees Loss]],14,FALSE),\"\")","v":""},"",{"$f":"IFERROR(IF(VLOOKUP(C91,Table5[[Site Name]:[(HIDE) Sum of LATF trees planted]],8,FALSE)=0, \"\", VLOOKUP(C91,Table5[[Site Name]:[(HIDE) Sum of LATF trees planted]],8,FALSE)),\"\")","v":""},null,{"$f":"IFERROR(('Part 2 - Restocking information'!$K91+'Part 2 - Restocking information'!$N91)/'Part 2 - Restocking information'!$O91*100, \"\")","v":""}]
[null,null,null,{"$f":"IFERROR(VLOOKUP(C92,Table5[[Site Name]:[Site requires restocking (if <75% survival rate) - planting sites only]],21,FALSE),\"\")","v":""},{"$f":"VLOOKUP($C92,Table5[[Site Name]:[(HIDE) Whips lost]],24,FALSE)","v":{"$error":"#N/A"}},{"$f":"VLOOKUP($C92,Table5[[Site Name]:[(HIDE) Whips lost]],12,FALSE)","v":{"$error":"#N/A"}},{"$f":"VLOOKUP($C92,Table5[[Site Name]:[(HIDE) Whips lost]],13,FALSE)","v":{"$error":"#N/A"}},null,null,null,{"$f":"IF(SUM('Part 2 - Restocking information'!$H92:$J92)=0,\"\",SUM('Part 2 - Restocking information'!$H92:$J92))","v":""},{"$f":"IFERROR(VLOOKUP(C92,Table5[[Site Name]:[(HIDE) Sum of LATF trees planted]],8,FALSE),\"\")","v":""},{"$f":"IFERROR(VLOOKUP(C92,Table5[[Site Name]:[(HIDE) SUM of LATF Trees Loss]],14,FALSE),\"\")","v":""},"",{"$f":"IFERROR(IF(VLOOKUP(C92,Table5[[Site Name]:[(HIDE) Sum of LATF trees planted]],8,FALSE)=0, \"\", VLOOKUP(C92,Table5[[Site Name]:[(HIDE) Sum of LATF trees planted]],8,FALSE)),\"\")","v":""},null,{"$f":"IFERROR(('Part 2 - Restocking information'!$K92+'Part 2 - Restocking information'!$N92)/'Part 2 - Restocking information'!$O92*100, \"\")","v":""}]
[null,null,null,{"$f":"IFERROR(VLOOKUP(C93,Table5[[Site Name]:[Site requires restocking (if <75% survival rate) - planting sites only]],21,FALSE),\"\")","v":""},{"$f":"VLOOKUP($C93,Table5[[Site Name]:[(HIDE) Whips lost]],24,FALSE)","v":{"$error":"#N/A"}},{"$f":"VLOOKUP($C93,Table5[[Site Name]:[(HIDE) Whips lost]],12,FALSE)","v":{"$error":"#N/A"}},{"$f":"VLOOKUP($C93,Table5[[Site Name]:[(HIDE) Whips lost]],13,FALSE)","v":{"$error":"#N/A"}},null,null,null,{"$f":"IF(SUM('Part 2 - Restocking information'!$H93:$J93)=0,\"\",SUM('Part 2 - Restocking information'!$H93:$J93))","v":""},{"$f":"IFERROR(VLOOKUP(C93,Table5[[Site Name]:[(HIDE) Sum of LATF trees planted]],8,FALSE),\"\")","v":""},{"$f":"IFERROR(VLOOKUP(C93,Table5[[Site Name]:[(HIDE) SUM of LATF Trees Loss]],14,FALSE),\"\")","v":""},"",{"$f":"IFERROR(IF(VLOOKUP(C93,Table5[[Site Name]:[(HIDE) Sum of LATF trees planted]],8,FALSE)=0, \"\", VLOOKUP(C93,Table5[[Site Name]:[(HIDE) Sum of LATF trees planted]],8,FALSE)),\"\")","v":""},null,{"$f":"IFERROR(('Part 2 - Restocking information'!$K93+'Part 2 - Restocking information'!$N93)/'Part 2 - Restocking information'!$O93*100, \"\")","v":""}]
[null,null,null,{"$f":"IFERROR(VLOOKUP(C94,Table5[[Site Name]:[Site requires restocking (if <75% survival rate) - planting sites only]],21,FALSE),\"\")","v":""},{"$f":"VLOOKUP($C94,Table5[[Site Name]:[(HIDE) Whips lost]],24,FALSE)","v":{"$error":"#N/A"}},{"$f":"VLOOKUP($C94,Table5[[Site Name]:[(HIDE) Whips lost]],12,FALSE)","v":{"$error":"#N/A"}},{"$f":"VLOOKUP($C94,Table5[[Site Name]:[(HIDE) Whips lost]],13,FALSE)","v":{"$error":"#N/A"}},null,null,null,{"$f":"IF(SUM('Part 2 - Restocking information'!$H94:$J94)=0,\"\",SUM('Part 2 - Restocking information'!$H94:$J94))","v":""},{"$f":"IFERROR(VLOOKUP(C94,Table5[[Site Name]:[(HIDE) Sum of LATF trees planted]],8,FALSE),\"\")","v":""},{"$f":"IFERROR(VLOOKUP(C94,Table5[[Site Name]:[(HIDE) SUM of LATF Trees Loss]],14,FALSE),\"\")","v":""},"",{"$f":"IFERROR(IF(VLOOKUP(C94,Table5[[Site Name]:[(HIDE) Sum of LATF trees planted]],8,FALSE)=0, \"\", VLOOKUP(C94,Table5[[Site Name]:[(HIDE) Sum of LATF trees planted]],8,FALSE)),\"\")","v":""},null,{"$f":"IFERROR(('Part 2 - Restocking information'!$K94+'Part 2 - Restocking information'!$N94)/'Part 2 - Restocking information'!$O94*100, \"\")","v":""}]
[null,null,null,{"$f":"IFERROR(VLOOKUP(C95,Table5[[Site Name]:[Site requires restocking (if <75% survival rate) - planting sites only]],21,FALSE),\"\")","v":""},{"$f":"VLOOKUP($C95,Table5[[Site Name]:[(HIDE) Whips lost]],24,FALSE)","v":{"$error":"#N/A"}},{"$f":"VLOOKUP($C95,Table5[[Site Name]:[(HIDE) Whips lost]],12,FALSE)","v":{"$error":"#N/A"}},{"$f":"VLOOKUP($C95,Table5[[Site Name]:[(HIDE) Whips lost]],13,FALSE)","v":{"$error":"#N/A"}},null,null,null,{"$f":"IF(SUM('Part 2 - Restocking information'!$H95:$J95)=0,\"\",SUM('Part 2 - Restocking information'!$H95:$J95))","v":""},{"$f":"IFERROR(VLOOKUP(C95,Table5[[Site Name]:[(HIDE) Sum of LATF trees planted]],8,FALSE),\"\")","v":""},{"$f":"IFERROR(VLOOKUP(C95,Table5[[Site Name]:[(HIDE) SUM of LATF Trees Loss]],14,FALSE),\"\")","v":""},"",{"$f":"IFERROR(IF(VLOOKUP(C95,Table5[[Site Name]:[(HIDE) Sum of LATF trees planted]],8,FALSE)=0, \"\", VLOOKUP(C95,Table5[[Site Name]:[(HIDE) Sum of LATF trees planted]],8,FALSE)),\"\")","v":""},null,{"$f":"IFERROR(('Part 2 - Restocking information'!$K95+'Part 2 - Restocking information'!$N95)/'Part 2 - Restocking information'!$O95*100, \"\")","v":""}]
[null,null,null,{"$f":"IFERROR(VLOOKUP(C96,Table5[[Site Name]:[Site requires restocking (if <75% survival rate) - planting sites only]],21,FALSE),\"\")","v":""},{"$f":"VLOOKUP($C96,Table5[[Site Name]:[(HIDE) Whips lost]],24,FALSE)","v":{"$error":"#N/A"}},{"$f":"VLOOKUP($C96,Table5[[Site Name]:[(HIDE) Whips lost]],12,FALSE)","v":{"$error":"#N/A"}},{"$f":"VLOOKUP($C96,Table5[[Site Name]:[(HIDE) Whips lost]],13,FALSE)","v":{"$error":"#N/A"}},null,null,null,{"$f":"IF(SUM('Part 2 - Restocking information'!$H96:$J96)=0,\"\",SUM('Part 2 - Restocking information'!$H96:$J96))","v":""},{"$f":"IFERROR(VLOOKUP(C96,Table5[[Site Name]:[(HIDE) Sum of LATF trees planted]],8,FALSE),\"\")","v":""},{"$f":"IFERROR(VLOOKUP(C96,Table5[[Site Name]:[(HIDE) SUM of LATF Trees Loss]],14,FALSE),\"\")","v":""},"",{"$f":"IFERROR(IF(VLOOKUP(C96,Table5[[Site Name]:[(HIDE) Sum of LATF trees planted]],8,FALSE)=0, \"\", VLOOKUP(C96,Table5[[Site Name]:[(HIDE) Sum of LATF trees planted]],8,FALSE)),\"\")","v":""},null,{"$f":"IFERROR(('Part 2 - Restocking information'!$K96+'Part 2 - Restocking information'!$N96)/'Part 2 - Restocking information'!$O96*100, \"\")","v":""}]
[null,null,null,{"$f":"IFERROR(VLOOKUP(C97,Table5[[Site Name]:[Site requires restocking (if <75% survival rate) - planting sites only]],21,FALSE),\"\")","v":""},{"$f":"VLOOKUP($C97,Table5[[Site Name]:[(HIDE) Whips lost]],24,FALSE)","v":{"$error":"#N/A"}},{"$f":"VLOOKUP($C97,Table5[[Site Name]:[(HIDE) Whips lost]],12,FALSE)","v":{"$error":"#N/A"}},{"$f":"VLOOKUP($C97,Table5[[Site Name]:[(HIDE) Whips lost]],13,FALSE)","v":{"$error":"#N/A"}},null,null,null,{"$f":"IF(SUM('Part 2 - Restocking information'!$H97:$J97)=0,\"\",SUM('Part 2 - Restocking information'!$H97:$J97))","v":""},{"$f":"IFERROR(VLOOKUP(C97,Table5[[Site Name]:[(HIDE) Sum of LATF trees planted]],8,FALSE),\"\")","v":""},{"$f":"IFERROR(VLOOKUP(C97,Table5[[Site Name]:[(HIDE) SUM of LATF Trees Loss]],14,FALSE),\"\")","v":""},"",{"$f":"IFERROR(IF(VLOOKUP(C97,Table5[[Site Name]:[(HIDE) Sum of LATF trees planted]],8,FALSE)=0, \"\", VLOOKUP(C97,Table5[[Site Name]:[(HIDE) Sum of LATF trees planted]],8,FALSE)),\"\")","v":""},null,{"$f":"IFERROR(('Part 2 - Restocking information'!$K97+'Part 2 - Restocking information'!$N97)/'Part 2 - Restocking information'!$O97*100, \"\")","v":""}]
[null,null,null,{"$f":"IFERROR(VLOOKUP(C98,Table5[[Site Name]:[Site requires restocking (if <75% survival rate) - planting sites only]],21,FALSE),\"\")","v":""},{"$f":"VLOOKUP($C98,Table5[[Site Name]:[(HIDE) Whips lost]],24,FALSE)","v":{"$error":"#N/A"}},{"$f":"VLOOKUP($C98,Table5[[Site Name]:[(HIDE) Whips lost]],12,FALSE)","v":{"$error":"#N/A"}},{"$f":"VLOOKUP($C98,Table5[[Site Name]:[(HIDE) Whips lost]],13,FALSE)","v":{"$error":"#N/A"}},null,null,null,{"$f":"IF(SUM('Part 2 - Restocking information'!$H98:$J98)=0,\"\",SUM('Part 2 - Restocking information'!$H98:$J98))","v":""},{"$f":"IFERROR(VLOOKUP(C98,Table5[[Site Name]:[(HIDE) Sum of LATF trees planted]],8,FALSE),\"\")","v":""},{"$f":"IFERROR(VLOOKUP(C98,Table5[[Site Name]:[(HIDE) SUM of LATF Trees Loss]],14,FALSE),\"\")","v":""},{"$f":"IFERROR(IF(L98 - M98 = 0, \"\", L98-M98),\"\")","v":""},{"$f":"IFERROR(IF(VLOOKUP(C98,Table5[[Site Name]:[(HIDE) Sum of LATF trees planted]],8,FALSE)=0, \"\", VLOOKUP(C98,Table5[[Site Name]:[(HIDE) Sum of LATF trees planted]],8,FALSE)),\"\")","v":""},null,{"$f":"IFERROR(('Part 2 - Restocking information'!$K98+'Part 2 - Restocking information'!$N98)/'Part 2 - Restocking information'!$O98*100, \"\")","v":""}]
[null,null,null,{"$f":"IFERROR(VLOOKUP(C99,Table5[[Site Name]:[Site requires restocking (if <75% survival rate) - planting sites only]],21,FALSE),\"\")","v":""},{"$f":"VLOOKUP($C99,Table5[[Site Name]:[(HIDE) Whips lost]],24,FALSE)","v":{"$error":"#N/A"}},{"$f":"VLOOKUP($C99,Table5[[Site Name]:[(HIDE) Whips lost]],12,FALSE)","v":{"$error":"#N/A"}},{"$f":"VLOOKUP($C99,Table5[[Site Name]:[(HIDE) Whips lost]],13,FALSE)","v":{"$error":"#N/A"}},null,null,null,{"$f":"IF(SUM('Part 2 - Restocking information'!$H99:$J99)=0,\"\",SUM('Part 2 - Restocking information'!$H99:$J99))","v":""},{"$f":"IFERROR(VLOOKUP(C99,Table5[[Site Name]:[(HIDE) Sum of LATF trees planted]],8,FALSE),\"\")","v":""},{"$f":"IFERROR(VLOOKUP(C99,Table5[[Site Name]:[(HIDE) SUM of LATF Trees Loss]],14,FALSE),\"\")","v":""},"",{"$f":"IFERROR(IF(VLOOKUP(C99,Table5[[Site Name]:[(HIDE) Sum of LATF trees planted]],8,FALSE)=0, \"\", VLOOKUP(C99,Table5[[Site Name]:[(HIDE) Sum of LATF trees planted]],8,FALSE)),\"\")","v":""},null,{"$f":"IFERROR(('Part 2 - Restocking information'!$K99+'Part 2 - Restocking information'!$N99)/'Part 2 - Restocking information'!$O99*100, \"\")","v":""}]
[null,null,null,{"$f":"IFERROR(VLOOKUP(C100,Table5[[Site Name]:[Site requires restocking (if <75% survival rate) - planting sites only]],21,FALSE),\"\")","v":""},{"$f":"VLOOKUP($C100,Table5[[Site Name]:[(HIDE) Whips lost]],24,FALSE)","v":{"$error":"#N/A"}},{"$f":"VLOOKUP($C100,Table5[[Site Name]:[(HIDE) Whips lost]],12,FALSE)","v":{"$error":"#N/A"}},{"$f":"VLOOKUP($C100,Table5[[Site Name]:[(HIDE) Whips lost]],13,FALSE)","v":{"$error":"#N/A"}},null,null,null,{"$f":"IF(SUM('Part 2 - Restocking information'!$H100:$J100)=0,\"\",SUM('Part 2 - Restocking information'!$H100:$J100))","v":""},{"$f":"IFERROR(VLOOKUP(C100,Table5[[Site Name]:[(HIDE) Sum of LATF trees planted]],8,FALSE),\"\")","v":""},{"$f":"IFERROR(VLOOKUP(C100,Table5[[Site Name]:[(HIDE) SUM of LATF Trees Loss]],14,FALSE),\"\")","v":""},"",{"$f":"IFERROR(IF(VLOOKUP(C100,Table5[[Site Name]:[(HIDE) Sum of LATF trees planted]],8,FALSE)=0, \"\", VLOOKUP(C100,Table5[[Site Name]:[(HIDE) Sum of LATF trees planted]],8,FALSE)),\"\")","v":""},null,{"$f":"IFERROR(('Part 2 - Restocking information'!$K100+'Part 2 - Restocking information'!$N100)/'Part 2 - Restocking information'!$O100*100, \"\")","v":""}]
[null,null,null,{"$f":"IFERROR(VLOOKUP(C101,Table5[[Site Name]:[Site requires restocking (if <75% survival rate) - planting sites only]],21,FALSE),\"\")","v":""},{"$f":"VLOOKUP($C101,Table5[[Site Name]:[(HIDE) Whips lost]],24,FALSE)","v":{"$error":"#N/A"}},{"$f":"VLOOKUP($C101,Table5[[Site Name]:[(HIDE) Whips lost]],12,FALSE)","v":{"$error":"#N/A"}},{"$f":"VLOOKUP($C101,Table5[[Site Name]:[(HIDE) Whips lost]],13,FALSE)","v":{"$error":"#N/A"}},null,null,null,{"$f":"IF(SUM('Part 2 - Restocking information'!$H101:$J101)=0,\"\",SUM('Part 2 - Restocking information'!$H101:$J101))","v":""},{"$f":"IFERROR(VLOOKUP(C101,Table5[[Site Name]:[(HIDE) Sum of LATF trees planted]],8,FALSE),\"\")","v":""},{"$f":"IFERROR(VLOOKUP(C101,Table5[[Site Name]:[(HIDE) SUM of LATF Trees Loss]],14,FALSE),\"\")","v":""},"",{"$f":"IFERROR(IF(VLOOKUP(C101,Table5[[Site Name]:[(HIDE) Sum of LATF trees planted]],8,FALSE)=0, \"\", VLOOKUP(C101,Table5[[Site Name]:[(HIDE) Sum of LATF trees planted]],8,FALSE)),\"\")","v":""},null,{"$f":"IFERROR(('Part 2 - Restocking information'!$K101+'Part 2 - Restocking information'!$N101)/'Part 2 - Restocking information'!$O101*100, \"\")","v":""}]
[null,null,null,{"$f":"IFERROR(VLOOKUP(C102,Table5[[Site Name]:[Site requires restocking (if <75% survival rate) - planting sites only]],21,FALSE),\"\")","v":""},{"$f":"VLOOKUP($C102,Table5[[Site Name]:[(HIDE) Whips lost]],24,FALSE)","v":{"$error":"#N/A"}},{"$f":"VLOOKUP($C102,Table5[[Site Name]:[(HIDE) Whips lost]],12,FALSE)","v":{"$error":"#N/A"}},{"$f":"VLOOKUP($C102,Table5[[Site Name]:[(HIDE) Whips lost]],13,FALSE)","v":{"$error":"#N/A"}},null,null,null,{"$f":"IF(SUM('Part 2 - Restocking information'!$H102:$J102)=0,\"\",SUM('Part 2 - Restocking information'!$H102:$J102))","v":""},{"$f":"IFERROR(VLOOKUP(C102,Table5[[Site Name]:[(HIDE) Sum of LATF trees planted]],8,FALSE),\"\")","v":""},{"$f":"IFERROR(VLOOKUP(C102,Table5[[Site Name]:[(HIDE) SUM of LATF Trees Loss]],14,FALSE),\"\")","v":""},"",{"$f":"IFERROR(IF(VLOOKUP(C102,Table5[[Site Name]:[(HIDE) Sum of LATF trees planted]],8,FALSE)=0, \"\", VLOOKUP(C102,Table5[[Site Name]:[(HIDE) Sum of LATF trees planted]],8,FALSE)),\"\")","v":""},null,{"$f":"IFERROR(('Part 2 - Restocking information'!$K102+'Part 2 - Restocking information'!$N102)/'Part 2 - Restocking information'!$O102*100, \"\")","v":""}]
[null,null,null,{"$f":"IFERROR(VLOOKUP(C103,Table5[[Site Name]:[Site requires restocking (if <75% survival rate) - planting sites only]],21,FALSE),\"\")","v":""},{"$f":"VLOOKUP($C103,Table5[[Site Name]:[(HIDE) Whips lost]],24,FALSE)","v":{"$error":"#N/A"}},{"$f":"VLOOKUP($C103,Table5[[Site Name]:[(HIDE) Whips lost]],12,FALSE)","v":{"$error":"#N/A"}},{"$f":"VLOOKUP($C103,Table5[[Site Name]:[(HIDE) Whips lost]],13,FALSE)","v":{"$error":"#N/A"}},null,null,null,{"$f":"IF(SUM('Part 2 - Restocking information'!$H103:$J103)=0,\"\",SUM('Part 2 - Restocking information'!$H103:$J103))","v":""},{"$f":"IFERROR(VLOOKUP(C103,Table5[[Site Name]:[(HIDE) Sum of LATF trees planted]],8,FALSE),\"\")","v":""},{"$f":"IFERROR(VLOOKUP(C103,Table5[[Site Name]:[(HIDE) SUM of LATF Trees Loss]],14,FALSE),\"\")","v":""},"",{"$f":"IFERROR(IF(VLOOKUP(C103,Table5[[Site Name]:[(HIDE) Sum of LATF trees planted]],8,FALSE)=0, \"\", VLOOKUP(C103,Table5[[Site Name]:[(HIDE) Sum of LATF trees planted]],8,FALSE)),\"\")","v":""},null,{"$f":"IFERROR(('Part 2 - Restocking information'!$K103+'Part 2 - Restocking information'!$N103)/'Part 2 - Restocking information'!$O103*100, \"\")","v":""}]
[null,null,null,{"$f":"IFERROR(VLOOKUP(C104,Table5[[Site Name]:[Site requires restocking (if <75% survival rate) - planting sites only]],21,FALSE),\"\")","v":""},{"$f":"VLOOKUP($C104,Table5[[Site Name]:[(HIDE) Whips lost]],24,FALSE)","v":{"$error":"#N/A"}},{"$f":"VLOOKUP($C104,Table5[[Site Name]:[(HIDE) Whips lost]],12,FALSE)","v":{"$error":"#N/A"}},{"$f":"VLOOKUP($C104,Table5[[Site Name]:[(HIDE) Whips lost]],13,FALSE)","v":{"$error":"#N/A"}},null,null,null,{"$f":"IF(SUM('Part 2 - Restocking information'!$H104:$J104)=0,\"\",SUM('Part 2 - Restocking information'!$H104:$J104))","v":""},{"$f":"IFERROR(VLOOKUP(C104,Table5[[Site Name]:[(HIDE) Sum of LATF trees planted]],8,FALSE),\"\")","v":""},{"$f":"IFERROR(VLOOKUP(C104,Table5[[Site Name]:[(HIDE) SUM of LATF Trees Loss]],14,FALSE),\"\")","v":""},"",{"$f":"IFERROR(IF(VLOOKUP(C104,Table5[[Site Name]:[(HIDE) Sum of LATF trees planted]],8,FALSE)=0, \"\", VLOOKUP(C104,Table5[[Site Name]:[(HIDE) Sum of LATF trees planted]],8,FALSE)),\"\")","v":""},null,{"$f":"IFERROR(('Part 2 - Restocking information'!$K104+'Part 2 - Restocking information'!$N104)/'Part 2 - Restocking information'!$O104*100, \"\")","v":""}]
[null,null,null,{"$f":"IFERROR(VLOOKUP(C105,Table5[[Site Name]:[Site requires restocking (if <75% survival rate) - planting sites only]],21,FALSE),\"\")","v":""},{"$f":"VLOOKUP($C105,Table5[[Site Name]:[(HIDE) Whips lost]],24,FALSE)","v":{"$error":"#N/A"}},{"$f":"VLOOKUP($C105,Table5[[Site Name]:[(HIDE) Whips lost]],12,FALSE)","v":{"$error":"#N/A"}},{"$f":"VLOOKUP($C105,Table5[[Site Name]:[(HIDE) Whips lost]],13,FALSE)","v":{"$error":"#N/A"}},null,null,null,{"$f":"IF(SUM('Part 2 - Restocking information'!$H105:$J105)=0,\"\",SUM('Part 2 - Restocking information'!$H105:$J105))","v":""},{"$f":"IFERROR(VLOOKUP(C105,Table5[[Site Name]:[(HIDE) Sum of LATF trees planted]],8,FALSE),\"\")","v":""},{"$f":"IFERROR(VLOOKUP(C105,Table5[[Site Name]:[(HIDE) SUM of LATF Trees Loss]],14,FALSE),\"\")","v":""},"",{"$f":"IFERROR(IF(VLOOKUP(C105,Table5[[Site Name]:[(HIDE) Sum of LATF trees planted]],8,FALSE)=0, \"\", VLOOKUP(C105,Table5[[Site Name]:[(HIDE) Sum of LATF trees planted]],8,FALSE)),\"\")","v":""},null,{"$f":"IFERROR(('Part 2 - Restocking information'!$K105+'Part 2 - Restocking information'!$N105)/'Part 2 - Restocking information'!$O105*100, \"\")","v":""}]
[null,null,null,{"$f":"IFERROR(VLOOKUP(C106,Table5[[Site Name]:[Site requires restocking (if <75% survival rate) - planting sites only]],21,FALSE),\"\")","v":""},{"$f":"VLOOKUP($C106,Table5[[Site Name]:[(HIDE) Whips lost]],24,FALSE)","v":{"$error":"#N/A"}},{"$f":"VLOOKUP($C106,Table5[[Site Name]:[(HIDE) Whips lost]],12,FALSE)","v":{"$error":"#N/A"}},{"$f":"VLOOKUP($C106,Table5[[Site Name]:[(HIDE) Whips lost]],13,FALSE)","v":{"$error":"#N/A"}},null,null,null,{"$f":"IF(SUM('Part 2 - Restocking information'!$H106:$J106)=0,\"\",SUM('Part 2 - Restocking information'!$H106:$J106))","v":""},{"$f":"IFERROR(VLOOKUP(C106,Table5[[Site Name]:[(HIDE) Sum of LATF trees planted]],8,FALSE),\"\")","v":""},{"$f":"IFERROR(VLOOKUP(C106,Table5[[Site Name]:[(HIDE) SUM of LATF Trees Loss]],14,FALSE),\"\")","v":""},"",{"$f":"IFERROR(IF(VLOOKUP(C106,Table5[[Site Name]:[(HIDE) Sum of LATF trees planted]],8,FALSE)=0, \"\", VLOOKUP(C106,Table5[[Site Name]:[(HIDE) Sum of LATF trees planted]],8,FALSE)),\"\")","v":""},null,{"$f":"IFERROR(('Part 2 - Restocking information'!$K106+'Part 2 - Restocking information'!$N106)/'Part 2 - Restocking information'!$O106*100, \"\")","v":""}]
[null,null,null,{"$f":"IFERROR(VLOOKUP(C107,Table5[[Site Name]:[Site requires restocking (if <75% survival rate) - planting sites only]],21,FALSE),\"\")","v":""},{"$f":"VLOOKUP($C107,Table5[[Site Name]:[(HIDE) Whips lost]],24,FALSE)","v":{"$error":"#N/A"}},{"$f":"VLOOKUP($C107,Table5[[Site Name]:[(HIDE) Whips lost]],12,FALSE)","v":{"$error":"#N/A"}},{"$f":"VLOOKUP($C107,Table5[[Site Name]:[(HIDE) Whips lost]],13,FALSE)","v":{"$error":"#N/A"}},null,null,null,{"$f":"IF(SUM('Part 2 - Restocking information'!$H107:$J107)=0,\"\",SUM('Part 2 - Restocking information'!$H107:$J107))","v":""},{"$f":"IFERROR(VLOOKUP(C107,Table5[[Site Name]:[(HIDE) Sum of LATF trees planted]],8,FALSE),\"\")","v":""},{"$f":"IFERROR(VLOOKUP(C107,Table5[[Site Name]:[(HIDE) SUM of LATF Trees Loss]],14,FALSE),\"\")","v":""},"",{"$f":"IFERROR(IF(VLOOKUP(C107,Table5[[Site Name]:[(HIDE) Sum of LATF trees planted]],8,FALSE)=0, \"\", VLOOKUP(C107,Table5[[Site Name]:[(HIDE) Sum of LATF trees planted]],8,FALSE)),\"\")","v":""},null,{"$f":"IFERROR(('Part 2 - Restocking information'!$K107+'Part 2 - Restocking information'!$N107)/'Part 2 - Restocking information'!$O107*100, \"\")","v":""}]
[null,null,null,{"$f":"IFERROR(VLOOKUP(C108,Table5[[Site Name]:[Site requires restocking (if <75% survival rate) - planting sites only]],21,FALSE),\"\")","v":""},{"$f":"VLOOKUP($C108,Table5[[Site Name]:[(HIDE) Whips lost]],24,FALSE)","v":{"$error":"#N/A"}},{"$f":"VLOOKUP($C108,Table5[[Site Name]:[(HIDE) Whips lost]],12,FALSE)","v":{"$error":"#N/A"}},{"$f":"VLOOKUP($C108,Table5[[Site Name]:[(HIDE) Whips lost]],13,FALSE)","v":{"$error":"#N/A"}},null,null,null,{"$f":"IF(SUM('Part 2 - Restocking information'!$H108:$J108)=0,\"\",SUM('Part 2 - Restocking information'!$H108:$J108))","v":""},{"$f":"IFERROR(VLOOKUP(C108,Table5[[Site Name]:[(HIDE) Sum of LATF trees planted]],8,FALSE),\"\")","v":""},{"$f":"IFERROR(VLOOKUP(C108,Table5[[Site Name]:[(HIDE) SUM of LATF Trees Loss]],14,FALSE),\"\")","v":""},"",{"$f":"IFERROR(IF(VLOOKUP(C108,Table5[[Site Name]:[(HIDE) Sum of LATF trees planted]],8,FALSE)=0, \"\", VLOOKUP(C108,Table5[[Site Name]:[(HIDE) Sum of LATF trees planted]],8,FALSE)),\"\")","v":""},null,{"$f":"IFERROR(('Part 2 - Restocking information'!$K108+'Part 2 - Restocking information'!$N108)/'Part 2 - Restocking information'!$O108*100, \"\")","v":""}]
[null,null,null,{"$f":"IFERROR(VLOOKUP(C109,Table5[[Site Name]:[Site requires restocking (if <75% survival rate) - planting sites only]],21,FALSE),\"\")","v":""},{"$f":"VLOOKUP($C109,Table5[[Site Name]:[(HIDE) Whips lost]],24,FALSE)","v":{"$error":"#N/A"}},{"$f":"VLOOKUP($C109,Table5[[Site Name]:[(HIDE) Whips lost]],12,FALSE)","v":{"$error":"#N/A"}},{"$f":"VLOOKUP($C109,Table5[[Site Name]:[(HIDE) Whips lost]],13,FALSE)","v":{"$error":"#N/A"}},null,null,null,{"$f":"IF(SUM('Part 2 - Restocking information'!$H109:$J109)=0,\"\",SUM('Part 2 - Restocking information'!$H109:$J109))","v":""},{"$f":"IFERROR(VLOOKUP(C109,Table5[[Site Name]:[(HIDE) Sum of LATF trees planted]],8,FALSE),\"\")","v":""},{"$f":"IFERROR(VLOOKUP(C109,Table5[[Site Name]:[(HIDE) SUM of LATF Trees Loss]],14,FALSE),\"\")","v":""},"",{"$f":"IFERROR(IF(VLOOKUP(C109,Table5[[Site Name]:[(HIDE) Sum of LATF trees planted]],8,FALSE)=0, \"\", VLOOKUP(C109,Table5[[Site Name]:[(HIDE) Sum of LATF trees planted]],8,FALSE)),\"\")","v":""},null,{"$f":"IFERROR(('Part 2 - Restocking information'!$K109+'Part 2 - Restocking information'!$N109)/'Part 2 - Restocking information'!$O109*100, \"\")","v":""}]
[null,null,null,{"$f":"IFERROR(VLOOKUP(C110,Table5[[Site Name]:[Site requires restocking (if <75% survival rate) - planting sites only]],21,FALSE),\"\")","v":""},{"$f":"VLOOKUP($C110,Table5[[Site Name]:[(HIDE) Whips lost]],24,FALSE)","v":{"$error":"#N/A"}},{"$f":"VLOOKUP($C110,Table5[[Site Name]:[(HIDE) Whips lost]],12,FALSE)","v":{"$error":"#N/A"}},{"$f":"VLOOKUP($C110,Table5[[Site Name]:[(HIDE) Whips lost]],13,FALSE)","v":{"$error":"#N/A"}},null,null,null,{"$f":"IF(SUM('Part 2 - Restocking information'!$H110:$J110)=0,\"\",SUM('Part 2 - Restocking information'!$H110:$J110))","v":""},{"$f":"IFERROR(VLOOKUP(C110,Table5[[Site Name]:[(HIDE) Sum of LATF trees planted]],8,FALSE),\"\")","v":""},{"$f":"IFERROR(VLOOKUP(C110,Table5[[Site Name]:[(HIDE) SUM of LATF Trees Loss]],14,FALSE),\"\")","v":""},"",{"$f":"IFERROR(IF(VLOOKUP(C110,Table5[[Site Name]:[(HIDE) Sum of LATF trees planted]],8,FALSE)=0, \"\", VLOOKUP(C110,Table5[[Site Name]:[(HIDE) Sum of LATF trees planted]],8,FALSE)),\"\")","v":""},null,{"$f":"IFERROR(('Part 2 - Restocking information'!$K110+'Part 2 - Restocking information'!$N110)/'Part 2 - Restocking information'!$O110*100, \"\")","v":""}]
[null,null,null,{"$f":"IFERROR(VLOOKUP(C111,Table5[[Site Name]:[Site requires restocking (if <75% survival rate) - planting sites only]],21,FALSE),\"\")","v":""},{"$f":"VLOOKUP($C111,Table5[[Site Name]:[(HIDE) Whips lost]],24,FALSE)","v":{"$error":"#N/A"}},{"$f":"VLOOKUP($C111,Table5[[Site Name]:[(HIDE) Whips lost]],12,FALSE)","v":{"$error":"#N/A"}},{"$f":"VLOOKUP($C111,Table5[[Site Name]:[(HIDE) Whips lost]],13,FALSE)","v":{"$error":"#N/A"}},null,null,null,{"$f":"IF(SUM('Part 2 - Restocking information'!$H111:$J111)=0,\"\",SUM('Part 2 - Restocking information'!$H111:$J111))","v":""},{"$f":"IFERROR(VLOOKUP(C111,Table5[[Site Name]:[(HIDE) Sum of LATF trees planted]],8,FALSE),\"\")","v":""},{"$f":"IFERROR(VLOOKUP(C111,Table5[[Site Name]:[(HIDE) SUM of LATF Trees Loss]],14,FALSE),\"\")","v":""},"",{"$f":"IFERROR(IF(VLOOKUP(C111,Table5[[Site Name]:[(HIDE) Sum of LATF trees planted]],8,FALSE)=0, \"\", VLOOKUP(C111,Table5[[Site Name]:[(HIDE) Sum of LATF trees planted]],8,FALSE)),\"\")","v":""},null,{"$f":"IFERROR(('Part 2 - Restocking information'!$K111+'Part 2 - Restocking information'!$N111)/'Part 2 - Restocking information'!$O111*100, \"\")","v":""}]
[null,null,null,{"$f":"IFERROR(VLOOKUP(C112,Table5[[Site Name]:[Site requires restocking (if <75% survival rate) - planting sites only]],21,FALSE),\"\")","v":""},{"$f":"VLOOKUP($C112,Table5[[Site Name]:[(HIDE) Whips lost]],24,FALSE)","v":{"$error":"#N/A"}},{"$f":"VLOOKUP($C112,Table5[[Site Name]:[(HIDE) Whips lost]],12,FALSE)","v":{"$error":"#N/A"}},{"$f":"VLOOKUP($C112,Table5[[Site Name]:[(HIDE) Whips lost]],13,FALSE)","v":{"$error":"#N/A"}},null,null,null,{"$f":"IF(SUM('Part 2 - Restocking information'!$H112:$J112)=0,\"\",SUM('Part 2 - Restocking information'!$H112:$J112))","v":""},{"$f":"IFERROR(VLOOKUP(C112,Table5[[Site Name]:[(HIDE) Sum of LATF trees planted]],8,FALSE),\"\")","v":""},{"$f":"IFERROR(VLOOKUP(C112,Table5[[Site Name]:[(HIDE) SUM of LATF Trees Loss]],14,FALSE),\"\")","v":""},"",{"$f":"IFERROR(IF(VLOOKUP(C112,Table5[[Site Name]:[(HIDE) Sum of LATF trees planted]],8,FALSE)=0, \"\", VLOOKUP(C112,Table5[[Site Name]:[(HIDE) Sum of LATF trees planted]],8,FALSE)),\"\")","v":""},null,{"$f":"IFERROR(('Part 2 - Restocking information'!$K112+'Part 2 - Restocking information'!$N112)/'Part 2 - Restocking information'!$O112*100, \"\")","v":""}]
[null,null,null,{"$f":"IFERROR(VLOOKUP(C113,Table5[[Site Name]:[Site requires restocking (if <75% survival rate) - planting sites only]],21,FALSE),\"\")","v":""},{"$f":"VLOOKUP($C113,Table5[[Site Name]:[(HIDE) Whips lost]],24,FALSE)","v":{"$error":"#N/A"}},{"$f":"VLOOKUP($C113,Table5[[Site Name]:[(HIDE) Whips lost]],12,FALSE)","v":{"$error":"#N/A"}},{"$f":"VLOOKUP($C113,Table5[[Site Name]:[(HIDE) Whips lost]],13,FALSE)","v":{"$error":"#N/A"}},null,null,null,{"$f":"IF(SUM('Part 2 - Restocking information'!$H113:$J113)=0,\"\",SUM('Part 2 - Restocking information'!$H113:$J113))","v":""},{"$f":"IFERROR(VLOOKUP(C113,Table5[[Site Name]:[(HIDE) Sum of LATF trees planted]],8,FALSE),\"\")","v":""},{"$f":"IFERROR(VLOOKUP(C113,Table5[[Site Name]:[(HIDE) SUM of LATF Trees Loss]],14,FALSE),\"\")","v":""},"",{"$f":"IFERROR(IF(VLOOKUP(C113,Table5[[Site Name]:[(HIDE) Sum of LATF trees planted]],8,FALSE)=0, \"\", VLOOKUP(C113,Table5[[Site Name]:[(HIDE) Sum of LATF trees planted]],8,FALSE)),\"\")","v":""},null,{"$f":"IFERROR(('Part 2 - Restocking information'!$K113+'Part 2 - Restocking information'!$N113)/'Part 2 - Restocking information'!$O113*100, \"\")","v":""}]
[null,null,null,{"$f":"IFERROR(VLOOKUP(C114,Table5[[Site Name]:[Site requires restocking (if <75% survival rate) - planting sites only]],21,FALSE),\"\")","v":""},{"$f":"VLOOKUP($C114,Table5[[Site Name]:[(HIDE) Whips lost]],24,FALSE)","v":{"$error":"#N/A"}},{"$f":"VLOOKUP($C114,Table5[[Site Name]:[(HIDE) Whips lost]],12,FALSE)","v":{"$error":"#N/A"}},{"$f":"VLOOKUP($C114,Table5[[Site Name]:[(HIDE) Whips lost]],13,FALSE)","v":{"$error":"#N/A"}},null,null,null,{"$f":"IF(SUM('Part 2 - Restocking information'!$H114:$J114)=0,\"\",SUM('Part 2 - Restocking information'!$H114:$J114))","v":""},{"$f":"IFERROR(VLOOKUP(C114,Table5[[Site Name]:[(HIDE) Sum of LATF trees planted]],8,FALSE),\"\")","v":""},{"$f":"IFERROR(VLOOKUP(C114,Table5[[Site Name]:[(HIDE) SUM of LATF Trees Loss]],14,FALSE),\"\")","v":""},"",{"$f":"IFERROR(IF(VLOOKUP(C114,Table5[[Site Name]:[(HIDE) Sum of LATF trees planted]],8,FALSE)=0, \"\", VLOOKUP(C114,Table5[[Site Name]:[(HIDE) Sum of LATF trees planted]],8,FALSE)),\"\")","v":""},null,{"$f":"IFERROR(('Part 2 - Restocking information'!$K114+'Part 2 - Restocking information'!$N114)/'Part 2 - Restocking information'!$O114*100, \"\")","v":""}]
[null,null,null,{"$f":"IFERROR(VLOOKUP(C115,Table5[[Site Name]:[Site requires restocking (if <75% survival rate) - planting sites only]],21,FALSE),\"\")","v":""},{"$f":"VLOOKUP($C115,Table5[[Site Name]:[(HIDE) Whips lost]],24,FALSE)","v":{"$error":"#N/A"}},{"$f":"VLOOKUP($C115,Table5[[Site Name]:[(HIDE) Whips lost]],12,FALSE)","v":{"$error":"#N/A"}},{"$f":"VLOOKUP($C115,Table5[[Site Name]:[(HIDE) Whips lost]],13,FALSE)","v":{"$error":"#N/A"}},null,null,null,{"$f":"IF(SUM('Part 2 - Restocking information'!$H115:$J115)=0,\"\",SUM('Part 2 - Restocking information'!$H115:$J115))","v":""},{"$f":"IFERROR(VLOOKUP(C115,Table5[[Site Name]:[(HIDE) Sum of LATF trees planted]],8,FALSE),\"\")","v":""},{"$f":"IFERROR(VLOOKUP(C115,Table5[[Site Name]:[(HIDE) SUM of LATF Trees Loss]],14,FALSE),\"\")","v":""},"",{"$f":"IFERROR(IF(VLOOKUP(C115,Table5[[Site Name]:[(HIDE) Sum of LATF trees planted]],8,FALSE)=0, \"\", VLOOKUP(C115,Table5[[Site Name]:[(HIDE) Sum of LATF trees planted]],8,FALSE)),\"\")","v":""},null,{"$f":"IFERROR(('Part 2 - Restocking information'!$K115+'Part 2 - Restocking information'!$N115)/'Part 2 - Restocking information'!$O115*100, \"\")","v":""}]
[null,null,null,{"$f":"IFERROR(VLOOKUP(C116,Table5[[Site Name]:[Site requires restocking (if <75% survival rate) - planting sites only]],21,FALSE),\"\")","v":""},{"$f":"VLOOKUP($C116,Table5[[Site Name]:[(HIDE) Whips lost]],24,FALSE)","v":{"$error":"#N/A"}},{"$f":"VLOOKUP($C116,Table5[[Site Name]:[(HIDE) Whips lost]],12,FALSE)","v":{"$error":"#N/A"}},{"$f":"VLOOKUP($C116,Table5[[Site Name]:[(HIDE) Whips lost]],13,FALSE)","v":{"$error":"#N/A"}},null,null,null,{"$f":"IF(SUM('Part 2 - Restocking information'!$H116:$J116)=0,\"\",SUM('Part 2 - Restocking information'!$H116:$J116))","v":""},{"$f":"IFERROR(VLOOKUP(C116,Table5[[Site Name]:[(HIDE) Sum of LATF trees planted]],8,FALSE),\"\")","v":""},{"$f":"IFERROR(VLOOKUP(C116,Table5[[Site Name]:[(HIDE) SUM of LATF Trees Loss]],14,FALSE),\"\")","v":""},"",{"$f":"IFERROR(IF(VLOOKUP(C116,Table5[[Site Name]:[(HIDE) Sum of LATF trees planted]],8,FALSE)=0, \"\", VLOOKUP(C116,Table5[[Site Name]:[(HIDE) Sum of LATF trees planted]],8,FALSE)),\"\")","v":""},null,{"$f":"IFERROR(('Part 2 - Restocking information'!$K116+'Part 2 - Restocking information'!$N116)/'Part 2 - Restocking information'!$O116*100, \"\")","v":""}]
[null,null,null,{"$f":"IFERROR(VLOOKUP(C117,Table5[[Site Name]:[Site requires restocking (if <75% survival rate) - planting sites only]],21,FALSE),\"\")","v":""},{"$f":"VLOOKUP($C117,Table5[[Site Name]:[(HIDE) Whips lost]],24,FALSE)","v":{"$error":"#N/A"}},{"$f":"VLOOKUP($C117,Table5[[Site Name]:[(HIDE) Whips lost]],12,FALSE)","v":{"$error":"#N/A"}},{"$f":"VLOOKUP($C117,Table5[[Site Name]:[(HIDE) Whips lost]],13,FALSE)","v":{"$error":"#N/A"}},null,null,null,{"$f":"IF(SUM('Part 2 - Restocking information'!$H117:$J117)=0,\"\",SUM('Part 2 - Restocking information'!$H117:$J117))","v":""},{"$f":"IFERROR(VLOOKUP(C117,Table5[[Site Name]:[(HIDE) Sum of LATF trees planted]],8,FALSE),\"\")","v":""},{"$f":"IFERROR(VLOOKUP(C117,Table5[[Site Name]:[(HIDE) SUM of LATF Trees Loss]],14,FALSE),\"\")","v":""},"",{"$f":"IFERROR(IF(VLOOKUP(C117,Table5[[Site Name]:[(HIDE) Sum of LATF trees planted]],8,FALSE)=0, \"\", VLOOKUP(C117,Table5[[Site Name]:[(HIDE) Sum of LATF trees planted]],8,FALSE)),\"\")","v":""},null,{"$f":"IFERROR(('Part 2 - Restocking information'!$K117+'Part 2 - Restocking information'!$N117)/'Part 2 - Restocking information'!$O117*100, \"\")","v":""}]
[null,null,null,{"$f":"IFERROR(VLOOKUP(C118,Table5[[Site Name]:[Site requires restocking (if <75% survival rate) - planting sites only]],21,FALSE),\"\")","v":""},{"$f":"VLOOKUP($C118,Table5[[Site Name]:[(HIDE) Whips lost]],24,FALSE)","v":{"$error":"#N/A"}},{"$f":"VLOOKUP($C118,Table5[[Site Name]:[(HIDE) Whips lost]],12,FALSE)","v":{"$error":"#N/A"}},{"$f":"VLOOKUP($C118,Table5[[Site Name]:[(HIDE) Whips lost]],13,FALSE)","v":{"$error":"#N/A"}},null,null,null,{"$f":"IF(SUM('Part 2 - Restocking information'!$H118:$J118)=0,\"\",SUM('Part 2 - Restocking information'!$H118:$J118))","v":""},{"$f":"IFERROR(VLOOKUP(C118,Table5[[Site Name]:[(HIDE) Sum of LATF trees planted]],8,FALSE),\"\")","v":""},{"$f":"IFERROR(VLOOKUP(C118,Table5[[Site Name]:[(HIDE) SUM of LATF Trees Loss]],14,FALSE),\"\")","v":""},"",{"$f":"IFERROR(IF(VLOOKUP(C118,Table5[[Site Name]:[(HIDE) Sum of LATF trees planted]],8,FALSE)=0, \"\", VLOOKUP(C118,Table5[[Site Name]:[(HIDE) Sum of LATF trees planted]],8,FALSE)),\"\")","v":""},null,{"$f":"IFERROR(('Part 2 - Restocking information'!$K118+'Part 2 - Restocking information'!$N118)/'Part 2 - Restocking information'!$O118*100, \"\")","v":""}]
[null,null,null,{"$f":"IFERROR(VLOOKUP(C119,Table5[[Site Name]:[Site requires restocking (if <75% survival rate) - planting sites only]],21,FALSE),\"\")","v":""},{"$f":"VLOOKUP($C119,Table5[[Site Name]:[(HIDE) Whips lost]],24,FALSE)","v":{"$error":"#N/A"}},{"$f":"VLOOKUP($C119,Table5[[Site Name]:[(HIDE) Whips lost]],12,FALSE)","v":{"$error":"#N/A"}},{"$f":"VLOOKUP($C119,Table5[[Site Name]:[(HIDE) Whips lost]],13,FALSE)","v":{"$error":"#N/A"}},null,null,null,{"$f":"IF(SUM('Part 2 - Restocking information'!$H119:$J119)=0,\"\",SUM('Part 2 - Restocking information'!$H119:$J119))","v":""},{"$f":"IFERROR(VLOOKUP(C119,Table5[[Site Name]:[(HIDE) Sum of LATF trees planted]],8,FALSE),\"\")","v":""},{"$f":"IFERROR(VLOOKUP(C119,Table5[[Site Name]:[(HIDE) SUM of LATF Trees Loss]],14,FALSE),\"\")","v":""},"",{"$f":"IFERROR(IF(VLOOKUP(C119,Table5[[Site Name]:[(HIDE) Sum of LATF trees planted]],8,FALSE)=0, \"\", VLOOKUP(C119,Table5[[Site Name]:[(HIDE) Sum of LATF trees planted]],8,FALSE)),\"\")","v":""},null,{"$f":"IFERROR(('Part 2 - Restocking information'!$K119+'Part 2 - Restocking information'!$N119)/'Part 2 - Restocking information'!$O119*100, \"\")","v":""}]
[null,null,null,{"$f":"IFERROR(VLOOKUP(C120,Table5[[Site Name]:[Site requires restocking (if <75% survival rate) - planting sites only]],21,FALSE),\"\")","v":""},{"$f":"VLOOKUP($C120,Table5[[Site Name]:[(HIDE) Whips lost]],24,FALSE)","v":{"$error":"#N/A"}},{"$f":"VLOOKUP($C120,Table5[[Site Name]:[(HIDE) Whips lost]],12,FALSE)","v":{"$error":"#N/A"}},{"$f":"VLOOKUP($C120,Table5[[Site Name]:[(HIDE) Whips lost]],13,FALSE)","v":{"$error":"#N/A"}},null,null,null,{"$f":"IF(SUM('Part 2 - Restocking information'!$H120:$J120)=0,\"\",SUM('Part 2 - Restocking information'!$H120:$J120))","v":""},{"$f":"IFERROR(VLOOKUP(C120,Table5[[Site Name]:[(HIDE) Sum of LATF trees planted]],8,FALSE),\"\")","v":""},{"$f":"IFERROR(VLOOKUP(C120,Table5[[Site Name]:[(HIDE) SUM of LATF Trees Loss]],14,FALSE),\"\")","v":""},"",{"$f":"IFERROR(IF(VLOOKUP(C120,Table5[[Site Name]:[(HIDE) Sum of LATF trees planted]],8,FALSE)=0, \"\", VLOOKUP(C120,Table5[[Site Name]:[(HIDE) Sum of LATF trees planted]],8,FALSE)),\"\")","v":""},null,{"$f":"IFERROR(('Part 2 - Restocking information'!$K120+'Part 2 - Restocking information'!$N120)/'Part 2 - Restocking information'!$O120*100, \"\")","v":""}]
[null,null,null,{"$f":"IFERROR(VLOOKUP(C121,Table5[[Site Name]:[Site requires restocking (if <75% survival rate) - planting sites only]],21,FALSE),\"\")","v":""},{"$f":"VLOOKUP($C121,Table5[[Site Name]:[(HIDE) Whips lost]],24,FALSE)","v":{"$error":"#N/A"}},{"$f":"VLOOKUP($C121,Table5[[Site Name]:[(HIDE) Whips lost]],12,FALSE)","v":{"$error":"#N/A"}},{"$f":"VLOOKUP($C121,Table5[[Site Name]:[(HIDE) Whips lost]],13,FALSE)","v":{"$error":"#N/A"}},null,null,null,{"$f":"IF(SUM('Part 2 - Restocking information'!$H121:$J121)=0,\"\",SUM('Part 2 - Restocking information'!$H121:$J121))","v":""},{"$f":"IFERROR(VLOOKUP(C121,Table5[[Site Name]:[(HIDE) Sum of LATF trees planted]],8,FALSE),\"\")","v":""},{"$f":"IFERROR(VLOOKUP(C121,Table5[[Site Name]:[(HIDE) SUM of LATF Trees Loss]],14,FALSE),\"\")","v":""},"",{"$f":"IFERROR(IF(VLOOKUP(C121,Table5[[Site Name]:[(HIDE) Sum of LATF trees planted]],8,FALSE)=0, \"\", VLOOKUP(C121,Table5[[Site Name]:[(HIDE) Sum of LATF trees planted]],8,FALSE)),\"\")","v":""},null,{"$f":"IFERROR(('Part 2 - Restocking information'!$K121+'Part 2 - Restocking information'!$N121)/'Part 2 - Restocking information'!$O121*100, \"\")","v":""}]
[null,null,null,{"$f":"IFERROR(VLOOKUP(C122,Table5[[Site Name]:[Site requires restocking (if <75% survival rate) - planting sites only]],21,FALSE),\"\")","v":""},{"$f":"VLOOKUP($C122,Table5[[Site Name]:[(HIDE) Whips lost]],24,FALSE)","v":{"$error":"#N/A"}},{"$f":"VLOOKUP($C122,Table5[[Site Name]:[(HIDE) Whips lost]],12,FALSE)","v":{"$error":"#N/A"}},{"$f":"VLOOKUP($C122,Table5[[Site Name]:[(HIDE) Whips lost]],13,FALSE)","v":{"$error":"#N/A"}},null,null,null,{"$f":"IF(SUM('Part 2 - Restocking information'!$H122:$J122)=0,\"\",SUM('Part 2 - Restocking information'!$H122:$J122))","v":""},{"$f":"IFERROR(VLOOKUP(C122,Table5[[Site Name]:[(HIDE) Sum of LATF trees planted]],8,FALSE),\"\")","v":""},{"$f":"IFERROR(VLOOKUP(C122,Table5[[Site Name]:[(HIDE) SUM of LATF Trees Loss]],14,FALSE),\"\")","v":""},"",{"$f":"IFERROR(IF(VLOOKUP(C122,Table5[[Site Name]:[(HIDE) Sum of LATF trees planted]],8,FALSE)=0, \"\", VLOOKUP(C122,Table5[[Site Name]:[(HIDE) Sum of LATF trees planted]],8,FALSE)),\"\")","v":""},null,{"$f":"IFERROR(('Part 2 - Restocking information'!$K122+'Part 2 - Restocking information'!$N122)/'Part 2 - Restocking information'!$O122*100, \"\")","v":""}]
[null,null,null,{"$f":"IFERROR(VLOOKUP(C123,Table5[[Site Name]:[Site requires restocking (if <75% survival rate) - planting sites only]],21,FALSE),\"\")","v":""},{"$f":"VLOOKUP($C123,Table5[[Site Name]:[(HIDE) Whips lost]],24,FALSE)","v":{"$error":"#N/A"}},{"$f":"VLOOKUP($C123,Table5[[Site Name]:[(HIDE) Whips lost]],12,FALSE)","v":{"$error":"#N/A"}},{"$f":"VLOOKUP($C123,Table5[[Site Name]:[(HIDE) Whips lost]],13,FALSE)","v":{"$error":"#N/A"}},null,null,null,{"$f":"IF(SUM('Part 2 - Restocking information'!$H123:$J123)=0,\"\",SUM('Part 2 - Restocking information'!$H123:$J123))","v":""},{"$f":"IFERROR(VLOOKUP(C123,Table5[[Site Name]:[(HIDE) Sum of LATF trees planted]],8,FALSE),\"\")","v":""},{"$f":"IFERROR(VLOOKUP(C123,Table5[[Site Name]:[(HIDE) SUM of LATF Trees Loss]],14,FALSE),\"\")","v":""},"",{"$f":"IFERROR(IF(VLOOKUP(C123,Table5[[Site Name]:[(HIDE) Sum of LATF trees planted]],8,FALSE)=0, \"\", VLOOKUP(C123,Table5[[Site Name]:[(HIDE) Sum of LATF trees planted]],8,FALSE)),\"\")","v":""},null,{"$f":"IFERROR(('Part 2 - Restocking information'!$K123+'Part 2 - Restocking information'!$N123)/'Part 2 - Restocking information'!$O123*100, \"\")","v":""}]
[null,null,null,{"$f":"IFERROR(VLOOKUP(C124,Table5[[Site Name]:[Site requires restocking (if <75% survival rate) - planting sites only]],21,FALSE),\"\")","v":""},{"$f":"VLOOKUP($C124,Table5[[Site Name]:[(HIDE) Whips lost]],24,FALSE)","v":{"$error":"#N/A"}},{"$f":"VLOOKUP($C124,Table5[[Site Name]:[(HIDE) Whips lost]],12,FALSE)","v":{"$error":"#N/A"}},{"$f":"VLOOKUP($C124,Table5[[Site Name]:[(HIDE) Whips lost]],13,FALSE)","v":{"$error":"#N/A"}},null,null,null,{"$f":"IF(SUM('Part 2 - Restocking information'!$H124:$J124)=0,\"\",SUM('Part 2 - Restocking information'!$H124:$J124))","v":""},{"$f":"IFERROR(VLOOKUP(C124,Table5[[Site Name]:[(HIDE) Sum of LATF trees planted]],8,FALSE),\"\")","v":""},{"$f":"IFERROR(VLOOKUP(C124,Table5[[Site Name]:[(HIDE) SUM of LATF Trees Loss]],14,FALSE),\"\")","v":""},"",{"$f":"IFERROR(IF(VLOOKUP(C124,Table5[[Site Name]:[(HIDE) Sum of LATF trees planted]],8,FALSE)=0, \"\", VLOOKUP(C124,Table5[[Site Name]:[(HIDE) Sum of LATF trees planted]],8,FALSE)),\"\")","v":""},null,{"$f":"IFERROR(('Part 2 - Restocking information'!$K124+'Part 2 - Restocking information'!$N124)/'Part 2 - Restocking information'!$O124*100, \"\")","v":""}]
[null,null,null,{"$f":"IFERROR(VLOOKUP(C125,Table5[[Site Name]:[Site requires restocking (if <75% survival rate) - planting sites only]],21,FALSE),\"\")","v":""},{"$f":"VLOOKUP($C125,Table5[[Site Name]:[(HIDE) Whips lost]],24,FALSE)","v":{"$error":"#N/A"}},{"$f":"VLOOKUP($C125,Table5[[Site Name]:[(HIDE) Whips lost]],12,FALSE)","v":{"$error":"#N/A"}},{"$f":"VLOOKUP($C125,Table5[[Site Name]:[(HIDE) Whips lost]],13,FALSE)","v":{"$error":"#N/A"}},null,null,null,{"$f":"IF(SUM('Part 2 - Restocking information'!$H125:$J125)=0,\"\",SUM('Part 2 - Restocking information'!$H125:$J125))","v":""},{"$f":"IFERROR(VLOOKUP(C125,Table5[[Site Name]:[(HIDE) Sum of LATF trees planted]],8,FALSE),\"\")","v":""},{"$f":"IFERROR(VLOOKUP(C125,Table5[[Site Name]:[(HIDE) SUM of LATF Trees Loss]],14,FALSE),\"\")","v":""},"",{"$f":"IFERROR(IF(VLOOKUP(C125,Table5[[Site Name]:[(HIDE) Sum of LATF trees planted]],8,FALSE)=0, \"\", VLOOKUP(C125,Table5[[Site Name]:[(HIDE) Sum of LATF trees planted]],8,FALSE)),\"\")","v":""},null,{"$f":"IFERROR(('Part 2 - Restocking information'!$K125+'Part 2 - Restocking information'!$N125)/'Part 2 - Restocking information'!$O125*100, \"\")","v":""}]
[null,null,null,{"$f":"IFERROR(VLOOKUP(C126,Table5[[Site Name]:[Site requires restocking (if <75% survival rate) - planting sites only]],21,FALSE),\"\")","v":""},{"$f":"VLOOKUP($C126,Table5[[Site Name]:[(HIDE) Whips lost]],24,FALSE)","v":{"$error":"#N/A"}},{"$f":"VLOOKUP($C126,Table5[[Site Name]:[(HIDE) Whips lost]],12,FALSE)","v":{"$error":"#N/A"}},{"$f":"VLOOKUP($C126,Table5[[Site Name]:[(HIDE) Whips lost]],13,FALSE)","v":{"$error":"#N/A"}},null,null,null,{"$f":"IF(SUM('Part 2 - Restocking information'!$H126:$J126)=0,\"\",SUM('Part 2 - Restocking information'!$H126:$J126))","v":""},{"$f":"IFERROR(VLOOKUP(C126,Table5[[Site Name]:[(HIDE) Sum of LATF trees planted]],8,FALSE),\"\")","v":""},{"$f":"IFERROR(VLOOKUP(C126,Table5[[Site Name]:[(HIDE) SUM of LATF Trees Loss]],14,FALSE),\"\")","v":""},"",{"$f":"IFERROR(IF(VLOOKUP(C126,Table5[[Site Name]:[(HIDE) Sum of LATF trees planted]],8,FALSE)=0, \"\", VLOOKUP(C126,Table5[[Site Name]:[(HIDE) Sum of LATF trees planted]],8,FALSE)),\"\")","v":""},null,{"$f":"IFERROR(('Part 2 - Restocking information'!$K126+'Part 2 - Restocking information'!$N126)/'Part 2 - Restocking information'!$O126*100, \"\")","v":""}]
[null,null,null,{"$f":"IFERROR(VLOOKUP(C127,Table5[[Site Name]:[Site requires restocking (if <75% survival rate) - planting sites only]],21,FALSE),\"\")","v":""},{"$f":"VLOOKUP($C127,Table5[[Site Name]:[(HIDE) Whips lost]],24,FALSE)","v":{"$error":"#N/A"}},{"$f":"VLOOKUP($C127,Table5[[Site Name]:[(HIDE) Whips lost]],12,FALSE)","v":{"$error":"#N/A"}},{"$f":"VLOOKUP($C127,Table5[[Site Name]:[(HIDE) Whips lost]],13,FALSE)","v":{"$error":"#N/A"}},null,null,null,{"$f":"IF(SUM('Part 2 - Restocking information'!$H127:$J127)=0,\"\",SUM('Part 2 - Restocking information'!$H127:$J127))","v":""},{"$f":"IFERROR(VLOOKUP(C127,Table5[[Site Name]:[(HIDE) Sum of LATF trees planted]],8,FALSE),\"\")","v":""},{"$f":"IFERROR(VLOOKUP(C127,Table5[[Site Name]:[(HIDE) SUM of LATF Trees Loss]],14,FALSE),\"\")","v":""},"",{"$f":"IFERROR(IF(VLOOKUP(C127,Table5[[Site Name]:[(HIDE) Sum of LATF trees planted]],8,FALSE)=0, \"\", VLOOKUP(C127,Table5[[Site Name]:[(HIDE) Sum of LATF trees planted]],8,FALSE)),\"\")","v":""},null,{"$f":"IFERROR(('Part 2 - Restocking information'!$K127+'Part 2 - Restocking information'!$N127)/'Part 2 - Restocking information'!$O127*100, \"\")","v":""}]
[null,null,null,{"$f":"IFERROR(VLOOKUP(C128,Table5[[Site Name]:[Site requires restocking (if <75% survival rate) - planting sites only]],21,FALSE),\"\")","v":""},{"$f":"VLOOKUP($C128,Table5[[Site Name]:[(HIDE) Whips lost]],24,FALSE)","v":{"$error":"#N/A"}},{"$f":"VLOOKUP($C128,Table5[[Site Name]:[(HIDE) Whips lost]],12,FALSE)","v":{"$error":"#N/A"}},{"$f":"VLOOKUP($C128,Table5[[Site Name]:[(HIDE) Whips lost]],13,FALSE)","v":{"$error":"#N/A"}},null,null,null,{"$f":"IF(SUM('Part 2 - Restocking information'!$H128:$J128)=0,\"\",SUM('Part 2 - Restocking information'!$H128:$J128))","v":""},{"$f":"IFERROR(VLOOKUP(C128,Table5[[Site Name]:[(HIDE) Sum of LATF trees planted]],8,FALSE),\"\")","v":""},{"$f":"IFERROR(VLOOKUP(C128,Table5[[Site Name]:[(HIDE) SUM of LATF Trees Loss]],14,FALSE),\"\")","v":""},"",{"$f":"IFERROR(IF(VLOOKUP(C128,Table5[[Site Name]:[(HIDE) Sum of LATF trees planted]],8,FALSE)=0, \"\", VLOOKUP(C128,Table5[[Site Name]:[(HIDE) Sum of LATF trees planted]],8,FALSE)),\"\")","v":""},null,{"$f":"IFERROR(('Part 2 - Restocking information'!$K128+'Part 2 - Restocking information'!$N128)/'Part 2 - Restocking information'!$O128*100, \"\")","v":""}]
[null,null,null,{"$f":"IFERROR(VLOOKUP(C129,Table5[[Site Name]:[Site requires restocking (if <75% survival rate) - planting sites only]],21,FALSE),\"\")","v":""},{"$f":"VLOOKUP($C129,Table5[[Site Name]:[(HIDE) Whips lost]],24,FALSE)","v":{"$error":"#N/A"}},{"$f":"VLOOKUP($C129,Table5[[Site Name]:[(HIDE) Whips lost]],12,FALSE)","v":{"$error":"#N/A"}},{"$f":"VLOOKUP($C129,Table5[[Site Name]:[(HIDE) Whips lost]],13,FALSE)","v":{"$error":"#N/A"}},null,null,null,{"$f":"IF(SUM('Part 2 - Restocking information'!$H129:$J129)=0,\"\",SUM('Part 2 - Restocking information'!$H129:$J129))","v":""},{"$f":"IFERROR(VLOOKUP(C129,Table5[[Site Name]:[(HIDE) Sum of LATF trees planted]],8,FALSE),\"\")","v":""},{"$f":"IFERROR(VLOOKUP(C129,Table5[[Site Name]:[(HIDE) SUM of LATF Trees Loss]],14,FALSE),\"\")","v":""},"",{"$f":"IFERROR(IF(VLOOKUP(C129,Table5[[Site Name]:[(HIDE) Sum of LATF trees planted]],8,FALSE)=0, \"\", VLOOKUP(C129,Table5[[Site Name]:[(HIDE) Sum of LATF trees planted]],8,FALSE)),\"\")","v":""},null,{"$f":"IFERROR(('Part 2 - Restocking information'!$K129+'Part 2 - Restocking information'!$N129)/'Part 2 - Restocking information'!$O129*100, \"\")","v":""}]
[null,null,null,{"$f":"IFERROR(VLOOKUP(C130,Table5[[Site Name]:[Site requires restocking (if <75% survival rate) - planting sites only]],21,FALSE),\"\")","v":""},{"$f":"VLOOKUP($C130,Table5[[Site Name]:[(HIDE) Whips lost]],24,FALSE)","v":{"$error":"#N/A"}},{"$f":"VLOOKUP($C130,Table5[[Site Name]:[(HIDE) Whips lost]],12,FALSE)","v":{"$error":"#N/A"}},{"$f":"VLOOKUP($C130,Table5[[Site Name]:[(HIDE) Whips lost]],13,FALSE)","v":{"$error":"#N/A"}},null,null,null,{"$f":"IF(SUM('Part 2 - Restocking information'!$H130:$J130)=0,\"\",SUM('Part 2 - Restocking information'!$H130:$J130))","v":""},{"$f":"IFERROR(VLOOKUP(C130,Table5[[Site Name]:[(HIDE) Sum of LATF trees planted]],8,FALSE),\"\")","v":""},{"$f":"IFERROR(VLOOKUP(C130,Table5[[Site Name]:[(HIDE) SUM of LATF Trees Loss]],14,FALSE),\"\")","v":""},"",{"$f":"IFERROR(IF(VLOOKUP(C130,Table5[[Site Name]:[(HIDE) Sum of LATF trees planted]],8,FALSE)=0, \"\", VLOOKUP(C130,Table5[[Site Name]:[(HIDE) Sum of LATF trees planted]],8,FALSE)),\"\")","v":""},null,{"$f":"IFERROR(('Part 2 - Restocking information'!$K130+'Part 2 - Restocking information'!$N130)/'Part 2 - Restocking information'!$O130*100, \"\")","v":""}]
[null,null,null,{"$f":"IFERROR(VLOOKUP(C131,Table5[[Site Name]:[Site requires restocking (if <75% survival rate) - planting sites only]],21,FALSE),\"\")","v":""},{"$f":"VLOOKUP($C131,Table5[[Site Name]:[(HIDE) Whips lost]],24,FALSE)","v":{"$error":"#N/A"}},{"$f":"VLOOKUP($C131,Table5[[Site Name]:[(HIDE) Whips lost]],12,FALSE)","v":{"$error":"#N/A"}},{"$f":"VLOOKUP($C131,Table5[[Site Name]:[(HIDE) Whips lost]],13,FALSE)","v":{"$error":"#N/A"}},null,null,null,{"$f":"IF(SUM('Part 2 - Restocking information'!$H131:$J131)=0,\"\",SUM('Part 2 - Restocking information'!$H131:$J131))","v":""},{"$f":"IFERROR(VLOOKUP(C131,Table5[[Site Name]:[(HIDE) Sum of LATF trees planted]],8,FALSE),\"\")","v":""},{"$f":"IFERROR(VLOOKUP(C131,Table5[[Site Name]:[(HIDE) SUM of LATF Trees Loss]],14,FALSE),\"\")","v":""},"",{"$f":"IFERROR(IF(VLOOKUP(C131,Table5[[Site Name]:[(HIDE) Sum of LATF trees planted]],8,FALSE)=0, \"\", VLOOKUP(C131,Table5[[Site Name]:[(HIDE) Sum of LATF trees planted]],8,FALSE)),\"\")","v":""},null,{"$f":"IFERROR(('Part 2 - Restocking information'!$K131+'Part 2 - Restocking information'!$N131)/'Part 2 - Restocking information'!$O131*100, \"\")","v":""}]
[null,null,null,{"$f":"IFERROR(VLOOKUP(C132,Table5[[Site Name]:[Site requires restocking (if <75% survival rate) - planting sites only]],21,FALSE),\"\")","v":""},{"$f":"VLOOKUP($C132,Table5[[Site Name]:[(HIDE) Whips lost]],24,FALSE)","v":{"$error":"#N/A"}},{"$f":"VLOOKUP($C132,Table5[[Site Name]:[(HIDE) Whips lost]],12,FALSE)","v":{"$error":"#N/A"}},{"$f":"VLOOKUP($C132,Table5[[Site Name]:[(HIDE) Whips lost]],13,FALSE)","v":{"$error":"#N/A"}},null,null,null,{"$f":"IF(SUM('Part 2 - Restocking information'!$H132:$J132)=0,\"\",SUM('Part 2 - Restocking information'!$H132:$J132))","v":""},{"$f":"IFERROR(VLOOKUP(C132,Table5[[Site Name]:[(HIDE) Sum of LATF trees planted]],8,FALSE),\"\")","v":""},{"$f":"IFERROR(VLOOKUP(C132,Table5[[Site Name]:[(HIDE) SUM of LATF Trees Loss]],14,FALSE),\"\")","v":""},"",{"$f":"IFERROR(IF(VLOOKUP(C132,Table5[[Site Name]:[(HIDE) Sum of LATF trees planted]],8,FALSE)=0, \"\", VLOOKUP(C132,Table5[[Site Name]:[(HIDE) Sum of LATF trees planted]],8,FALSE)),\"\")","v":""},null,{"$f":"IFERROR(('Part 2 - Restocking information'!$K132+'Part 2 - Restocking information'!$N132)/'Part 2 - Restocking information'!$O132*100, \"\")","v":""}]
[null,null,null,{"$f":"IFERROR(VLOOKUP(C133,Table5[[Site Name]:[Site requires restocking (if <75% survival rate) - planting sites only]],21,FALSE),\"\")","v":""},{"$f":"VLOOKUP($C133,Table5[[Site Name]:[(HIDE) Whips lost]],24,FALSE)","v":{"$error":"#N/A"}},{"$f":"VLOOKUP($C133,Table5[[Site Name]:[(HIDE) Whips lost]],12,FALSE)","v":{"$error":"#N/A"}},{"$f":"VLOOKUP($C133,Table5[[Site Name]:[(HIDE) Whips lost]],13,FALSE)","v":{"$error":"#N/A"}},null,null,null,{"$f":"IF(SUM('Part 2 - Restocking information'!$H133:$J133)=0,\"\",SUM('Part 2 - Restocking information'!$H133:$J133))","v":""},{"$f":"IFERROR(VLOOKUP(C133,Table5[[Site Name]:[(HIDE) Sum of LATF trees planted]],8,FALSE),\"\")","v":""},{"$f":"IFERROR(VLOOKUP(C133,Table5[[Site Name]:[(HIDE) SUM of LATF Trees Loss]],14,FALSE),\"\")","v":""},"",{"$f":"IFERROR(IF(VLOOKUP(C133,Table5[[Site Name]:[(HIDE) Sum of LATF trees planted]],8,FALSE)=0, \"\", VLOOKUP(C133,Table5[[Site Name]:[(HIDE) Sum of LATF trees planted]],8,FALSE)),\"\")","v":""},null,{"$f":"IFERROR(('Part 2 - Restocking information'!$K133+'Part 2 - Restocking information'!$N133)/'Part 2 - Restocking information'!$O133*100, \"\")","v":""}]
[null,null,null,{"$f":"IFERROR(VLOOKUP(C134,Table5[[Site Name]:[Site requires restocking (if <75% survival rate) - planting sites only]],21,FALSE),\"\")","v":""},{"$f":"VLOOKUP($C134,Table5[[Site Name]:[(HIDE) Whips lost]],24,FALSE)","v":{"$error":"#N/A"}},{"$f":"VLOOKUP($C134,Table5[[Site Name]:[(HIDE) Whips lost]],12,FALSE)","v":{"$error":"#N/A"}},{"$f":"VLOOKUP($C134,Table5[[Site Name]:[(HIDE) Whips lost]],13,FALSE)","v":{"$error":"#N/A"}},null,null,null,{"$f":"IF(SUM('Part 2 - Restocking information'!$H134:$J134)=0,\"\",SUM('Part 2 - Restocking information'!$H134:$J134))","v":""},{"$f":"IFERROR(VLOOKUP(C134,Table5[[Site Name]:[(HIDE) Sum of LATF trees planted]],8,FALSE),\"\")","v":""},{"$f":"IFERROR(VLOOKUP(C134,Table5[[Site Name]:[(HIDE) SUM of LATF Trees Loss]],14,FALSE),\"\")","v":""},"",{"$f":"IFERROR(IF(VLOOKUP(C134,Table5[[Site Name]:[(HIDE) Sum of LATF trees planted]],8,FALSE)=0, \"\", VLOOKUP(C134,Table5[[Site Name]:[(HIDE) Sum of LATF trees planted]],8,FALSE)),\"\")","v":""},null,{"$f":"IFERROR(('Part 2 - Restocking information'!$K134+'Part 2 - Restocking information'!$N134)/'Part 2 - Restocking information'!$O134*100, \"\")","v":""}]
[null,null,null,{"$f":"IFERROR(VLOOKUP(C135,Table5[[Site Name]:[Site requires restocking (if <75% survival rate) - planting sites only]],21,FALSE),\"\")","v":""},{"$f":"VLOOKUP($C135,Table5[[Site Name]:[(HIDE) Whips lost]],24,FALSE)","v":{"$error":"#N/A"}},{"$f":"VLOOKUP($C135,Table5[[Site Name]:[(HIDE) Whips lost]],12,FALSE)","v":{"$error":"#N/A"}},{"$f":"VLOOKUP($C135,Table5[[Site Name]:[(HIDE) Whips lost]],13,FALSE)","v":{"$error":"#N/A"}},null,null,null,{"$f":"IF(SUM('Part 2 - Restocking information'!$H135:$J135)=0,\"\",SUM('Part 2 - Restocking information'!$H135:$J135))","v":""},{"$f":"IFERROR(VLOOKUP(C135,Table5[[Site Name]:[(HIDE) Sum of LATF trees planted]],8,FALSE),\"\")","v":""},{"$f":"IFERROR(VLOOKUP(C135,Table5[[Site Name]:[(HIDE) SUM of LATF Trees Loss]],14,FALSE),\"\")","v":""},"",{"$f":"IFERROR(IF(VLOOKUP(C135,Table5[[Site Name]:[(HIDE) Sum of LATF trees planted]],8,FALSE)=0, \"\", VLOOKUP(C135,Table5[[Site Name]:[(HIDE) Sum of LATF trees planted]],8,FALSE)),\"\")","v":""},null,{"$f":"IFERROR(('Part 2 - Restocking information'!$K135+'Part 2 - Restocking information'!$N135)/'Part 2 - Restocking information'!$O135*100, \"\")","v":""}]
[null,null,null,{"$f":"IFERROR(VLOOKUP(C136,Table5[[Site Name]:[Site requires restocking (if <75% survival rate) - planting sites only]],21,FALSE),\"\")","v":""},{"$f":"VLOOKUP($C136,Table5[[Site Name]:[(HIDE) Whips lost]],24,FALSE)","v":{"$error":"#N/A"}},{"$f":"VLOOKUP($C136,Table5[[Site Name]:[(HIDE) Whips lost]],12,FALSE)","v":{"$error":"#N/A"}},{"$f":"VLOOKUP($C136,Table5[[Site Name]:[(HIDE) Whips lost]],13,FALSE)","v":{"$error":"#N/A"}},null,null,null,{"$f":"IF(SUM('Part 2 - Restocking information'!$H136:$J136)=0,\"\",SUM('Part 2 - Restocking information'!$H136:$J136))","v":""},{"$f":"IFERROR(VLOOKUP(C136,Table5[[Site Name]:[(HIDE) Sum of LATF trees planted]],8,FALSE),\"\")","v":""},{"$f":"IFERROR(VLOOKUP(C136,Table5[[Site Name]:[(HIDE) SUM of LATF Trees Loss]],14,FALSE),\"\")","v":""},"",{"$f":"IFERROR(IF(VLOOKUP(C136,Table5[[Site Name]:[(HIDE) Sum of LATF trees planted]],8,FALSE)=0, \"\", VLOOKUP(C136,Table5[[Site Name]:[(HIDE) Sum of LATF trees planted]],8,FALSE)),\"\")","v":""},null,{"$f":"IFERROR(('Part 2 - Restocking information'!$K136+'Part 2 - Restocking information'!$N136)/'Part 2 - Restocking information'!$O136*100, \"\")","v":""}]
[null,null,null,{"$f":"IFERROR(VLOOKUP(C137,Table5[[Site Name]:[Site requires restocking (if <75% survival rate) - planting sites only]],21,FALSE),\"\")","v":""},{"$f":"VLOOKUP($C137,Table5[[Site Name]:[(HIDE) Whips lost]],24,FALSE)","v":{"$error":"#N/A"}},{"$f":"VLOOKUP($C137,Table5[[Site Name]:[(HIDE) Whips lost]],12,FALSE)","v":{"$error":"#N/A"}},{"$f":"VLOOKUP($C137,Table5[[Site Name]:[(HIDE) Whips lost]],13,FALSE)","v":{"$error":"#N/A"}},null,null,null,{"$f":"IF(SUM('Part 2 - Restocking information'!$H137:$J137)=0,\"\",SUM('Part 2 - Restocking information'!$H137:$J137))","v":""},{"$f":"IFERROR(VLOOKUP(C137,Table5[[Site Name]:[(HIDE) Sum of LATF trees planted]],8,FALSE),\"\")","v":""},{"$f":"IFERROR(VLOOKUP(C137,Table5[[Site Name]:[(HIDE) SUM of LATF Trees Loss]],14,FALSE),\"\")","v":""},"",{"$f":"IFERROR(IF(VLOOKUP(C137,Table5[[Site Name]:[(HIDE) Sum of LATF trees planted]],8,FALSE)=0, \"\", VLOOKUP(C137,Table5[[Site Name]:[(HIDE) Sum of LATF trees planted]],8,FALSE)),\"\")","v":""},null,{"$f":"IFERROR(('Part 2 - Restocking information'!$K137+'Part 2 - Restocking information'!$N137)/'Part 2 - Restocking information'!$O137*100, \"\")","v":""}]
[null,null,null,{"$f":"IFERROR(VLOOKUP(C138,Table5[[Site Name]:[Site requires restocking (if <75% survival rate) - planting sites only]],21,FALSE),\"\")","v":""},{"$f":"VLOOKUP($C138,Table5[[Site Name]:[(HIDE) Whips lost]],24,FALSE)","v":{"$error":"#N/A"}},{"$f":"VLOOKUP($C138,Table5[[Site Name]:[(HIDE) Whips lost]],12,FALSE)","v":{"$error":"#N/A"}},{"$f":"VLOOKUP($C138,Table5[[Site Name]:[(HIDE) Whips lost]],13,FALSE)","v":{"$error":"#N/A"}},null,null,null,{"$f":"IF(SUM('Part 2 - Restocking information'!$H138:$J138)=0,\"\",SUM('Part 2 - Restocking information'!$H138:$J138))","v":""},{"$f":"IFERROR(VLOOKUP(C138,Table5[[Site Name]:[(HIDE) Sum of LATF trees planted]],8,FALSE),\"\")","v":""},{"$f":"IFERROR(VLOOKUP(C138,Table5[[Site Name]:[(HIDE) SUM of LATF Trees Loss]],14,FALSE),\"\")","v":""},"",{"$f":"IFERROR(IF(VLOOKUP(C138,Table5[[Site Name]:[(HIDE) Sum of LATF trees planted]],8,FALSE)=0, \"\", VLOOKUP(C138,Table5[[Site Name]:[(HIDE) Sum of LATF trees planted]],8,FALSE)),\"\")","v":""},null,{"$f":"IFERROR(('Part 2 - Restocking information'!$K138+'Part 2 - Restocking information'!$N138)/'Part 2 - Restocking information'!$O138*100, \"\")","v":""}]
[null,null,null,{"$f":"IFERROR(VLOOKUP(C139,Table5[[Site Name]:[Site requires restocking (if <75% survival rate) - planting sites only]],21,FALSE),\"\")","v":""},{"$f":"VLOOKUP($C139,Table5[[Site Name]:[(HIDE) Whips lost]],24,FALSE)","v":{"$error":"#N/A"}},{"$f":"VLOOKUP($C139,Table5[[Site Name]:[(HIDE) Whips lost]],12,FALSE)","v":{"$error":"#N/A"}},{"$f":"VLOOKUP($C139,Table5[[Site Name]:[(HIDE) Whips lost]],13,FALSE)","v":{"$error":"#N/A"}},null,null,null,{"$f":"IF(SUM('Part 2 - Restocking information'!$H139:$J139)=0,\"\",SUM('Part 2 - Restocking information'!$H139:$J139))","v":""},{"$f":"IFERROR(VLOOKUP(C139,Table5[[Site Name]:[(HIDE) Sum of LATF trees planted]],8,FALSE),\"\")","v":""},{"$f":"IFERROR(VLOOKUP(C139,Table5[[Site Name]:[(HIDE) SUM of LATF Trees Loss]],14,FALSE),\"\")","v":""},"",{"$f":"IFERROR(IF(VLOOKUP(C139,Table5[[Site Name]:[(HIDE) Sum of LATF trees planted]],8,FALSE)=0, \"\", VLOOKUP(C139,Table5[[Site Name]:[(HIDE) Sum of LATF trees planted]],8,FALSE)),\"\")","v":""},null,{"$f":"IFERROR(('Part 2 - Restocking information'!$K139+'Part 2 - Restocking information'!$N139)/'Part 2 - Restocking information'!$O139*100, \"\")","v":""}]
[null,null,null,{"$f":"IFERROR(VLOOKUP(C140,Table5[[Site Name]:[Site requires restocking (if <75% survival rate) - planting sites only]],21,FALSE),\"\")","v":""},{"$f":"VLOOKUP($C140,Table5[[Site Name]:[(HIDE) Whips lost]],24,FALSE)","v":{"$error":"#N/A"}},{"$f":"VLOOKUP($C140,Table5[[Site Name]:[(HIDE) Whips lost]],12,FALSE)","v":{"$error":"#N/A"}},{"$f":"VLOOKUP($C140,Table5[[Site Name]:[(HIDE) Whips lost]],13,FALSE)","v":{"$error":"#N/A"}},null,null,null,{"$f":"IF(SUM('Part 2 - Restocking information'!$H140:$J140)=0,\"\",SUM('Part 2 - Restocking information'!$H140:$J140))","v":""},{"$f":"IFERROR(VLOOKUP(C140,Table5[[Site Name]:[(HIDE) Sum of LATF trees planted]],8,FALSE),\"\")","v":""},{"$f":"IFERROR(VLOOKUP(C140,Table5[[Site Name]:[(HIDE) SUM of LATF Trees Loss]],14,FALSE),\"\")","v":""},"",{"$f":"IFERROR(IF(VLOOKUP(C140,Table5[[Site Name]:[(HIDE) Sum of LATF trees planted]],8,FALSE)=0, \"\", VLOOKUP(C140,Table5[[Site Name]:[(HIDE) Sum of LATF trees planted]],8,FALSE)),\"\")","v":""},null,{"$f":"IFERROR(('Part 2 - Restocking information'!$K140+'Part 2 - Restocking information'!$N140)/'Part 2 - Restocking information'!$O140*100, \"\")","v":""}]
[null,null,null,{"$f":"IFERROR(VLOOKUP(C141,Table5[[Site Name]:[Site requires restocking (if <75% survival rate) - planting sites only]],21,FALSE),\"\")","v":""},{"$f":"VLOOKUP($C141,Table5[[Site Name]:[(HIDE) Whips lost]],24,FALSE)","v":{"$error":"#N/A"}},{"$f":"VLOOKUP($C141,Table5[[Site Name]:[(HIDE) Whips lost]],12,FALSE)","v":{"$error":"#N/A"}},{"$f":"VLOOKUP($C141,Table5[[Site Name]:[(HIDE) Whips lost]],13,FALSE)","v":{"$error":"#N/A"}},null,null,null,{"$f":"IF(SUM('Part 2 - Restocking information'!$H141:$J141)=0,\"\",SUM('Part 2 - Restocking information'!$H141:$J141))","v":""},{"$f":"IFERROR(VLOOKUP(C141,Table5[[Site Name]:[(HIDE) Sum of LATF trees planted]],8,FALSE),\"\")","v":""},{"$f":"IFERROR(VLOOKUP(C141,Table5[[Site Name]:[(HIDE) SUM of LATF Trees Loss]],14,FALSE),\"\")","v":""},"",{"$f":"IFERROR(IF(VLOOKUP(C141,Table5[[Site Name]:[(HIDE) Sum of LATF trees planted]],8,FALSE)=0, \"\", VLOOKUP(C141,Table5[[Site Name]:[(HIDE) Sum of LATF trees planted]],8,FALSE)),\"\")","v":""},null,{"$f":"IFERROR(('Part 2 - Restocking information'!$K141+'Part 2 - Restocking information'!$N141)/'Part 2 - Restocking information'!$O141*100, \"\")","v":""}]
[null,null,null,{"$f":"IFERROR(VLOOKUP(C142,Table5[[Site Name]:[Site requires restocking (if <75% survival rate) - planting sites only]],21,FALSE),\"\")","v":""},{"$f":"VLOOKUP($C142,Table5[[Site Name]:[(HIDE) Whips lost]],24,FALSE)","v":{"$error":"#N/A"}},{"$f":"VLOOKUP($C142,Table5[[Site Name]:[(HIDE) Whips lost]],12,FALSE)","v":{"$error":"#N/A"}},{"$f":"VLOOKUP($C142,Table5[[Site Name]:[(HIDE) Whips lost]],13,FALSE)","v":{"$error":"#N/A"}},null,null,null,{"$f":"IF(SUM('Part 2 - Restocking information'!$H142:$J142)=0,\"\",SUM('Part 2 - Restocking information'!$H142:$J142))","v":""},{"$f":"IFERROR(VLOOKUP(C142,Table5[[Site Name]:[(HIDE) Sum of LATF trees planted]],8,FALSE),\"\")","v":""},{"$f":"IFERROR(VLOOKUP(C142,Table5[[Site Name]:[(HIDE) SUM of LATF Trees Loss]],14,FALSE),\"\")","v":""},"",{"$f":"IFERROR(IF(VLOOKUP(C142,Table5[[Site Name]:[(HIDE) Sum of LATF trees planted]],8,FALSE)=0, \"\", VLOOKUP(C142,Table5[[Site Name]:[(HIDE) Sum of LATF trees planted]],8,FALSE)),\"\")","v":""},null,{"$f":"IFERROR(('Part 2 - Restocking information'!$K142+'Part 2 - Restocking information'!$N142)/'Part 2 - Restocking information'!$O142*100, \"\")","v":""}]
[null,null,null,{"$f":"IFERROR(VLOOKUP(C143,Table5[[Site Name]:[Site requires restocking (if <75% survival rate) - planting sites only]],21,FALSE),\"\")","v":""},{"$f":"VLOOKUP($C143,Table5[[Site Name]:[(HIDE) Whips lost]],24,FALSE)","v":{"$error":"#N/A"}},{"$f":"VLOOKUP($C143,Table5[[Site Name]:[(HIDE) Whips lost]],12,FALSE)","v":{"$error":"#N/A"}},{"$f":"VLOOKUP($C143,Table5[[Site Name]:[(HIDE) Whips lost]],13,FALSE)","v":{"$error":"#N/A"}},null,null,null,{"$f":"IF(SUM('Part 2 - Restocking information'!$H143:$J143)=0,\"\",SUM('Part 2 - Restocking information'!$H143:$J143))","v":""},{"$f":"IFERROR(VLOOKUP(C143,Table5[[Site Name]:[(HIDE) Sum of LATF trees planted]],8,FALSE),\"\")","v":""},{"$f":"IFERROR(VLOOKUP(C143,Table5[[Site Name]:[(HIDE) SUM of LATF Trees Loss]],14,FALSE),\"\")","v":""},"",{"$f":"IFERROR(IF(VLOOKUP(C143,Table5[[Site Name]:[(HIDE) Sum of LATF trees planted]],8,FALSE)=0, \"\", VLOOKUP(C143,Table5[[Site Name]:[(HIDE) Sum of LATF trees planted]],8,FALSE)),\"\")","v":""},null,{"$f":"IFERROR(('Part 2 - Restocking information'!$K143+'Part 2 - Restocking information'!$N143)/'Part 2 - Restocking information'!$O143*100, \"\")","v":""}]
[null,null,null,{"$f":"IFERROR(VLOOKUP(C144,Table5[[Site Name]:[Site requires restocking (if <75% survival rate) - planting sites only]],21,FALSE),\"\")","v":""},{"$f":"VLOOKUP($C144,Table5[[Site Name]:[(HIDE) Whips lost]],24,FALSE)","v":{"$error":"#N/A"}},{"$f":"VLOOKUP($C144,Table5[[Site Name]:[(HIDE) Whips lost]],12,FALSE)","v":{"$error":"#N/A"}},{"$f":"VLOOKUP($C144,Table5[[Site Name]:[(HIDE) Whips lost]],13,FALSE)","v":{"$error":"#N/A"}},null,null,null,{"$f":"IF(SUM('Part 2 - Restocking information'!$H144:$J144)=0,\"\",SUM('Part 2 - Restocking information'!$H144:$J144))","v":""},{"$f":"IFERROR(VLOOKUP(C144,Table5[[Site Name]:[(HIDE) Sum of LATF trees planted]],8,FALSE),\"\")","v":""},{"$f":"IFERROR(VLOOKUP(C144,Table5[[Site Name]:[(HIDE) SUM of LATF Trees Loss]],14,FALSE),\"\")","v":""},"",{"$f":"IFERROR(IF(VLOOKUP(C144,Table5[[Site Name]:[(HIDE) Sum of LATF trees planted]],8,FALSE)=0, \"\", VLOOKUP(C144,Table5[[Site Name]:[(HIDE) Sum of LATF trees planted]],8,FALSE)),\"\")","v":""},null,{"$f":"IFERROR(('Part 2 - Restocking information'!$K144+'Part 2 - Restocking information'!$N144)/'Part 2 - Restocking information'!$O144*100, \"\")","v":""}]
[null,null,null,{"$f":"IFERROR(VLOOKUP(C145,Table5[[Site Name]:[Site requires restocking (if <75% survival rate) - planting sites only]],21,FALSE),\"\")","v":""},{"$f":"VLOOKUP($C145,Table5[[Site Name]:[(HIDE) Whips lost]],24,FALSE)","v":{"$error":"#N/A"}},{"$f":"VLOOKUP($C145,Table5[[Site Name]:[(HIDE) Whips lost]],12,FALSE)","v":{"$error":"#N/A"}},{"$f":"VLOOKUP($C145,Table5[[Site Name]:[(HIDE) Whips lost]],13,FALSE)","v":{"$error":"#N/A"}},null,null,null,{"$f":"IF(SUM('Part 2 - Restocking information'!$H145:$J145)=0,\"\",SUM('Part 2 - Restocking information'!$H145:$J145))","v":""},{"$f":"IFERROR(VLOOKUP(C145,Table5[[Site Name]:[(HIDE) Sum of LATF trees planted]],8,FALSE),\"\")","v":""},{"$f":"IFERROR(VLOOKUP(C145,Table5[[Site Name]:[(HIDE) SUM of LATF Trees Loss]],14,FALSE),\"\")","v":""},"",{"$f":"IFERROR(IF(VLOOKUP(C145,Table5[[Site Name]:[(HIDE) Sum of LATF trees planted]],8,FALSE)=0, \"\", VLOOKUP(C145,Table5[[Site Name]:[(HIDE) Sum of LATF trees planted]],8,FALSE)),\"\")","v":""},null,{"$f":"IFERROR(('Part 2 - Restocking information'!$K145+'Part 2 - Restocking information'!$N145)/'Part 2 - Restocking information'!$O145*100, \"\")","v":""}]
[null,null,null,{"$f":"IFERROR(VLOOKUP(C146,Table5[[Site Name]:[Site requires restocking (if <75% survival rate) - planting sites only]],21,FALSE),\"\")","v":""},{"$f":"VLOOKUP($C146,Table5[[Site Name]:[(HIDE) Whips lost]],24,FALSE)","v":{"$error":"#N/A"}},{"$f":"VLOOKUP($C146,Table5[[Site Name]:[(HIDE) Whips lost]],12,FALSE)","v":{"$error":"#N/A"}},{"$f":"VLOOKUP($C146,Table5[[Site Name]:[(HIDE) Whips lost]],13,FALSE)","v":{"$error":"#N/A"}},null,null,null,{"$f":"IF(SUM('Part 2 - Restocking information'!$H146:$J146)=0,\"\",SUM('Part 2 - Restocking information'!$H146:$J146))","v":""},{"$f":"IFERROR(VLOOKUP(C146,Table5[[Site Name]:[(HIDE) Sum of LATF trees planted]],8,FALSE),\"\")","v":""},{"$f":"IFERROR(VLOOKUP(C146,Table5[[Site Name]:[(HIDE) SUM of LATF Trees Loss]],14,FALSE),\"\")","v":""},"",{"$f":"IFERROR(IF(VLOOKUP(C146,Table5[[Site Name]:[(HIDE) Sum of LATF trees planted]],8,FALSE)=0, \"\", VLOOKUP(C146,Table5[[Site Name]:[(HIDE) Sum of LATF trees planted]],8,FALSE)),\"\")","v":""},null,{"$f":"IFERROR(('Part 2 - Restocking information'!$K146+'Part 2 - Restocking information'!$N146)/'Part 2 - Restocking information'!$O146*100, \"\")","v":""}]
[null,null,null,{"$f":"IFERROR(VLOOKUP(C147,Table5[[Site Name]:[Site requires restocking (if <75% survival rate) - planting sites only]],21,FALSE),\"\")","v":""},{"$f":"VLOOKUP($C147,Table5[[Site Name]:[(HIDE) Whips lost]],24,FALSE)","v":{"$error":"#N/A"}},{"$f":"VLOOKUP($C147,Table5[[Site Name]:[(HIDE) Whips lost]],12,FALSE)","v":{"$error":"#N/A"}},{"$f":"VLOOKUP($C147,Table5[[Site Name]:[(HIDE) Whips lost]],13,FALSE)","v":{"$error":"#N/A"}},null,null,null,{"$f":"IF(SUM('Part 2 - Restocking information'!$H147:$J147)=0,\"\",SUM('Part 2 - Restocking information'!$H147:$J147))","v":""},{"$f":"IFERROR(VLOOKUP(C147,Table5[[Site Name]:[(HIDE) Sum of LATF trees planted]],8,FALSE),\"\")","v":""},{"$f":"IFERROR(VLOOKUP(C147,Table5[[Site Name]:[(HIDE) SUM of LATF Trees Loss]],14,FALSE),\"\")","v":""},"",{"$f":"IFERROR(IF(VLOOKUP(C147,Table5[[Site Name]:[(HIDE) Sum of LATF trees planted]],8,FALSE)=0, \"\", VLOOKUP(C147,Table5[[Site Name]:[(HIDE) Sum of LATF trees planted]],8,FALSE)),\"\")","v":""},null,{"$f":"IFERROR(('Part 2 - Restocking information'!$K147+'Part 2 - Restocking information'!$N147)/'Part 2 - Restocking information'!$O147*100, \"\")","v":""}]
[null,null,null,{"$f":"IFERROR(VLOOKUP(C148,Table5[[Site Name]:[Site requires restocking (if <75% survival rate) - planting sites only]],21,FALSE),\"\")","v":""},{"$f":"VLOOKUP($C148,Table5[[Site Name]:[(HIDE) Whips lost]],24,FALSE)","v":{"$error":"#N/A"}},{"$f":"VLOOKUP($C148,Table5[[Site Name]:[(HIDE) Whips lost]],12,FALSE)","v":{"$error":"#N/A"}},{"$f":"VLOOKUP($C148,Table5[[Site Name]:[(HIDE) Whips lost]],13,FALSE)","v":{"$error":"#N/A"}},null,null,null,{"$f":"IF(SUM('Part 2 - Restocking information'!$H148:$J148)=0,\"\",SUM('Part 2 - Restocking information'!$H148:$J148))","v":""},{"$f":"IFERROR(VLOOKUP(C148,Table5[[Site Name]:[(HIDE) Sum of LATF trees planted]],8,FALSE),\"\")","v":""},{"$f":"IFERROR(VLOOKUP(C148,Table5[[Site Name]:[(HIDE) SUM of LATF Trees Loss]],14,FALSE),\"\")","v":""},"",{"$f":"IFERROR(IF(VLOOKUP(C148,Table5[[Site Name]:[(HIDE) Sum of LATF trees planted]],8,FALSE)=0, \"\", VLOOKUP(C148,Table5[[Site Name]:[(HIDE) Sum of LATF trees planted]],8,FALSE)),\"\")","v":""},null,{"$f":"IFERROR(('Part 2 - Restocking information'!$K148+'Part 2 - Restocking information'!$N148)/'Part 2 - Restocking information'!$O148*100, \"\")","v":""}]
[null,null,null,{"$f":"IFERROR(VLOOKUP(C149,Table5[[Site Name]:[Site requires restocking (if <75% survival rate) - planting sites only]],21,FALSE),\"\")","v":""},{"$f":"VLOOKUP($C149,Table5[[Site Name]:[(HIDE) Whips lost]],24,FALSE)","v":{"$error":"#N/A"}},{"$f":"VLOOKUP($C149,Table5[[Site Name]:[(HIDE) Whips lost]],12,FALSE)","v":{"$error":"#N/A"}},{"$f":"VLOOKUP($C149,Table5[[Site Name]:[(HIDE) Whips lost]],13,FALSE)","v":{"$error":"#N/A"}},null,null,null,{"$f":"IF(SUM('Part 2 - Restocking information'!$H149:$J149)=0,\"\",SUM('Part 2 - Restocking information'!$H149:$J149))","v":""},{"$f":"IFERROR(VLOOKUP(C149,Table5[[Site Name]:[(HIDE) Sum of LATF trees planted]],8,FALSE),\"\")","v":""},{"$f":"IFERROR(VLOOKUP(C149,Table5[[Site Name]:[(HIDE) SUM of LATF Trees Loss]],14,FALSE),\"\")","v":""},"",{"$f":"IFERROR(IF(VLOOKUP(C149,Table5[[Site Name]:[(HIDE) Sum of LATF trees planted]],8,FALSE)=0, \"\", VLOOKUP(C149,Table5[[Site Name]:[(HIDE) Sum of LATF trees planted]],8,FALSE)),\"\")","v":""},null,{"$f":"IFERROR(('Part 2 - Restocking information'!$K149+'Part 2 - Restocking information'!$N149)/'Part 2 - Restocking information'!$O149*100, \"\")","v":""}]
[null,null,null,{"$f":"IFERROR(VLOOKUP(C150,Table5[[Site Name]:[Site requires restocking (if <75% survival rate) - planting sites only]],21,FALSE),\"\")","v":""},{"$f":"VLOOKUP($C150,Table5[[Site Name]:[(HIDE) Whips lost]],24,FALSE)","v":{"$error":"#N/A"}},{"$f":"VLOOKUP($C150,Table5[[Site Name]:[(HIDE) Whips lost]],12,FALSE)","v":{"$error":"#N/A"}},{"$f":"VLOOKUP($C150,Table5[[Site Name]:[(HIDE) Whips lost]],13,FALSE)","v":{"$error":"#N/A"}},null,null,null,{"$f":"IF(SUM('Part 2 - Restocking information'!$H150:$J150)=0,\"\",SUM('Part 2 - Restocking information'!$H150:$J150))","v":""},{"$f":"IFERROR(VLOOKUP(C150,Table5[[Site Name]:[(HIDE) Sum of LATF trees planted]],8,FALSE),\"\")","v":""},{"$f":"IFERROR(VLOOKUP(C150,Table5[[Site Name]:[(HIDE) SUM of LATF Trees Loss]],14,FALSE),\"\")","v":""},"",{"$f":"IFERROR(IF(VLOOKUP(C150,Table5[[Site Name]:[(HIDE) Sum of LATF trees planted]],8,FALSE)=0, \"\", VLOOKUP(C150,Table5[[Site Name]:[(HIDE) Sum of LATF trees planted]],8,FALSE)),\"\")","v":""},null,{"$f":"IFERROR(('Part 2 - Restocking information'!$K150+'Part 2 - Restocking information'!$N150)/'Part 2 - Restocking information'!$O150*100, \"\")","v":""}]
[null,null,null,{"$f":"IFERROR(VLOOKUP(C151,Table5[[Site Name]:[Site requires restocking (if <75% survival rate) - planting sites only]],21,FALSE),\"\")","v":""},{"$f":"VLOOKUP($C151,Table5[[Site Name]:[(HIDE) Whips lost]],24,FALSE)","v":{"$error":"#N/A"}},{"$f":"VLOOKUP($C151,Table5[[Site Name]:[(HIDE) Whips lost]],12,FALSE)","v":{"$error":"#N/A"}},{"$f":"VLOOKUP($C151,Table5[[Site Name]:[(HIDE) Whips lost]],13,FALSE)","v":{"$error":"#N/A"}},null,null,null,{"$f":"IF(SUM('Part 2 - Restocking information'!$H151:$J151)=0,\"\",SUM('Part 2 - Restocking information'!$H151:$J151))","v":""},{"$f":"IFERROR(VLOOKUP(C151,Table5[[Site Name]:[(HIDE) Sum of LATF trees planted]],8,FALSE),\"\")","v":""},{"$f":"IFERROR(VLOOKUP(C151,Table5[[Site Name]:[(HIDE) SUM of LATF Trees Loss]],14,FALSE),\"\")","v":""},"",{"$f":"IFERROR(IF(VLOOKUP(C151,Table5[[Site Name]:[(HIDE) Sum of LATF trees planted]],8,FALSE)=0, \"\", VLOOKUP(C151,Table5[[Site Name]:[(HIDE) Sum of LATF trees planted]],8,FALSE)),\"\")","v":""},null,{"$f":"IFERROR(('Part 2 - Restocking information'!$K151+'Part 2 - Restocking information'!$N151)/'Part 2 - Restocking information'!$O151*100, \"\")","v":""}]
[null,null,null,{"$f":"IFERROR(VLOOKUP(C152,Table5[[Site Name]:[Site requires restocking (if <75% survival rate) - planting sites only]],21,FALSE),\"\")","v":""},{"$f":"VLOOKUP($C152,Table5[[Site Name]:[(HIDE) Whips lost]],24,FALSE)","v":{"$error":"#N/A"}},{"$f":"VLOOKUP($C152,Table5[[Site Name]:[(HIDE) Whips lost]],12,FALSE)","v":{"$error":"#N/A"}},{"$f":"VLOOKUP($C152,Table5[[Site Name]:[(HIDE) Whips lost]],13,FALSE)","v":{"$error":"#N/A"}},null,null,null,{"$f":"IF(SUM('Part 2 - Restocking information'!$H152:$J152)=0,\"\",SUM('Part 2 - Restocking information'!$H152:$J152))","v":""},{"$f":"IFERROR(VLOOKUP(C152,Table5[[Site Name]:[(HIDE) Sum of LATF trees planted]],8,FALSE),\"\")","v":""},{"$f":"IFERROR(VLOOKUP(C152,Table5[[Site Name]:[(HIDE) SUM of LATF Trees Loss]],14,FALSE),\"\")","v":""},"",{"$f":"IFERROR(IF(VLOOKUP(C152,Table5[[Site Name]:[(HIDE) Sum of LATF trees planted]],8,FALSE)=0, \"\", VLOOKUP(C152,Table5[[Site Name]:[(HIDE) Sum of LATF trees planted]],8,FALSE)),\"\")","v":""},null,{"$f":"IFERROR(('Part 2 - Restocking information'!$K152+'Part 2 - Restocking information'!$N152)/'Part 2 - Restocking information'!$O152*100, \"\")","v":""}]
[null,null,null,{"$f":"IFERROR(VLOOKUP(C153,Table5[[Site Name]:[Site requires restocking (if <75% survival rate) - planting sites only]],21,FALSE),\"\")","v":""},{"$f":"VLOOKUP($C153,Table5[[Site Name]:[(HIDE) Whips lost]],24,FALSE)","v":{"$error":"#N/A"}},{"$f":"VLOOKUP($C153,Table5[[Site Name]:[(HIDE) Whips lost]],12,FALSE)","v":{"$error":"#N/A"}},{"$f":"VLOOKUP($C153,Table5[[Site Name]:[(HIDE) Whips lost]],13,FALSE)","v":{"$error":"#N/A"}},null,null,null,{"$f":"IF(SUM('Part 2 - Restocking information'!$H153:$J153)=0,\"\",SUM('Part 2 - Restocking information'!$H153:$J153))","v":""},{"$f":"IFERROR(VLOOKUP(C153,Table5[[Site Name]:[(HIDE) Sum of LATF trees planted]],8,FALSE),\"\")","v":""},{"$f":"IFERROR(VLOOKUP(C153,Table5[[Site Name]:[(HIDE) SUM of LATF Trees Loss]],14,FALSE),\"\")","v":""},"",{"$f":"IFERROR(IF(VLOOKUP(C153,Table5[[Site Name]:[(HIDE) Sum of LATF trees planted]],8,FALSE)=0, \"\", VLOOKUP(C153,Table5[[Site Name]:[(HIDE) Sum of LATF trees planted]],8,FALSE)),\"\")","v":""},null,{"$f":"IFERROR(('Part 2 - Restocking information'!$K153+'Part 2 - Restocking information'!$N153)/'Part 2 - Restocking information'!$O153*100, \"\")","v":""}]
[null,null,null,{"$f":"IFERROR(VLOOKUP(C154,Table5[[Site Name]:[Site requires restocking (if <75% survival rate) - planting sites only]],21,FALSE),\"\")","v":""},{"$f":"VLOOKUP($C154,Table5[[Site Name]:[(HIDE) Whips lost]],24,FALSE)","v":{"$error":"#N/A"}},{"$f":"VLOOKUP($C154,Table5[[Site Name]:[(HIDE) Whips lost]],12,FALSE)","v":{"$error":"#N/A"}},{"$f":"VLOOKUP($C154,Table5[[Site Name]:[(HIDE) Whips lost]],13,FALSE)","v":{"$error":"#N/A"}},null,null,null,{"$f":"IF(SUM('Part 2 - Restocking information'!$H154:$J154)=0,\"\",SUM('Part 2 - Restocking information'!$H154:$J154))","v":""},{"$f":"IFERROR(VLOOKUP(C154,Table5[[Site Name]:[(HIDE) Sum of LATF trees planted]],8,FALSE),\"\")","v":""},{"$f":"IFERROR(VLOOKUP(C154,Table5[[Site Name]:[(HIDE) SUM of LATF Trees Loss]],14,FALSE),\"\")","v":""},"",{"$f":"IFERROR(IF(VLOOKUP(C154,Table5[[Site Name]:[(HIDE) Sum of LATF trees planted]],8,FALSE)=0, \"\", VLOOKUP(C154,Table5[[Site Name]:[(HIDE) Sum of LATF trees planted]],8,FALSE)),\"\")","v":""},null,{"$f":"IFERROR(('Part 2 - Restocking information'!$K154+'Part 2 - Restocking information'!$N154)/'Part 2 - Restocking information'!$O154*100, \"\")","v":""}]
[null,null,null,{"$f":"IFERROR(VLOOKUP(C155,Table5[[Site Name]:[Site requires restocking (if <75% survival rate) - planting sites only]],21,FALSE),\"\")","v":""},{"$f":"VLOOKUP($C155,Table5[[Site Name]:[(HIDE) Whips lost]],24,FALSE)","v":{"$error":"#N/A"}},{"$f":"VLOOKUP($C155,Table5[[Site Name]:[(HIDE) Whips lost]],12,FALSE)","v":{"$error":"#N/A"}},{"$f":"VLOOKUP($C155,Table5[[Site Name]:[(HIDE) Whips lost]],13,FALSE)","v":{"$error":"#N/A"}},null,null,null,{"$f":"IF(SUM('Part 2 - Restocking information'!$H155:$J155)=0,\"\",SUM('Part 2 - Restocking information'!$H155:$J155))","v":""},{"$f":"IFERROR(VLOOKUP(C155,Table5[[Site Name]:[(HIDE) Sum of LATF trees planted]],8,FALSE),\"\")","v":""},{"$f":"IFERROR(VLOOKUP(C155,Table5[[Site Name]:[(HIDE) SUM of LATF Trees Loss]],14,FALSE),\"\")","v":""},"",{"$f":"IFERROR(IF(VLOOKUP(C155,Table5[[Site Name]:[(HIDE) Sum of LATF trees planted]],8,FALSE)=0, \"\", VLOOKUP(C155,Table5[[Site Name]:[(HIDE) Sum of LATF trees planted]],8,FALSE)),\"\")","v":""},null,{"$f":"IFERROR(('Part 2 - Restocking information'!$K155+'Part 2 - Restocking information'!$N155)/'Part 2 - Restocking information'!$O155*100, \"\")","v":""}]
[null,null,null,{"$f":"IFERROR(VLOOKUP(C156,Table5[[Site Name]:[Site requires restocking (if <75% survival rate) - planting sites only]],21,FALSE),\"\")","v":""},{"$f":"VLOOKUP($C156,Table5[[Site Name]:[(HIDE) Whips lost]],24,FALSE)","v":{"$error":"#N/A"}},{"$f":"VLOOKUP($C156,Table5[[Site Name]:[(HIDE) Whips lost]],12,FALSE)","v":{"$error":"#N/A"}},{"$f":"VLOOKUP($C156,Table5[[Site Name]:[(HIDE) Whips lost]],13,FALSE)","v":{"$error":"#N/A"}},null,null,null,{"$f":"IF(SUM('Part 2 - Restocking information'!$H156:$J156)=0,\"\",SUM('Part 2 - Restocking information'!$H156:$J156))","v":""},{"$f":"IFERROR(VLOOKUP(C156,Table5[[Site Name]:[(HIDE) Sum of LATF trees planted]],8,FALSE),\"\")","v":""},{"$f":"IFERROR(VLOOKUP(C156,Table5[[Site Name]:[(HIDE) SUM of LATF Trees Loss]],14,FALSE),\"\")","v":""},"",{"$f":"IFERROR(IF(VLOOKUP(C156,Table5[[Site Name]:[(HIDE) Sum of LATF trees planted]],8,FALSE)=0, \"\", VLOOKUP(C156,Table5[[Site Name]:[(HIDE) Sum of LATF trees planted]],8,FALSE)),\"\")","v":""},null,{"$f":"IFERROR(('Part 2 - Restocking information'!$K156+'Part 2 - Restocking information'!$N156)/'Part 2 - Restocking information'!$O156*100, \"\")","v":""}]
[null,null,null,{"$f":"IFERROR(VLOOKUP(C157,Table5[[Site Name]:[Site requires restocking (if <75% survival rate) - planting sites only]],21,FALSE),\"\")","v":""},{"$f":"VLOOKUP($C157,Table5[[Site Name]:[(HIDE) Whips lost]],24,FALSE)","v":{"$error":"#N/A"}},{"$f":"VLOOKUP($C157,Table5[[Site Name]:[(HIDE) Whips lost]],12,FALSE)","v":{"$error":"#N/A"}},{"$f":"VLOOKUP($C157,Table5[[Site Name]:[(HIDE) Whips lost]],13,FALSE)","v":{"$error":"#N/A"}},null,null,null,{"$f":"IF(SUM('Part 2 - Restocking information'!$H157:$J157)=0,\"\",SUM('Part 2 - Restocking information'!$H157:$J157))","v":""},{"$f":"IFERROR(VLOOKUP(C157,Table5[[Site Name]:[(HIDE) Sum of LATF trees planted]],8,FALSE),\"\")","v":""},{"$f":"IFERROR(VLOOKUP(C157,Table5[[Site Name]:[(HIDE) SUM of LATF Trees Loss]],14,FALSE),\"\")","v":""},"",{"$f":"IFERROR(IF(VLOOKUP(C157,Table5[[Site Name]:[(HIDE) Sum of LATF trees planted]],8,FALSE)=0, \"\", VLOOKUP(C157,Table5[[Site Name]:[(HIDE) Sum of LATF trees planted]],8,FALSE)),\"\")","v":""},null,{"$f":"IFERROR(('Part 2 - Restocking information'!$K157+'Part 2 - Restocking information'!$N157)/'Part 2 - Restocking information'!$O157*100, \"\")","v":""}]
[null,null,null,{"$f":"IFERROR(VLOOKUP(C158,Table5[[Site Name]:[Site requires restocking (if <75% survival rate) - planting sites only]],21,FALSE),\"\")","v":""},{"$f":"VLOOKUP($C158,Table5[[Site Name]:[(HIDE) Whips lost]],24,FALSE)","v":{"$error":"#N/A"}},{"$f":"VLOOKUP($C158,Table5[[Site Name]:[(HIDE) Whips lost]],12,FALSE)","v":{"$error":"#N/A"}},{"$f":"VLOOKUP($C158,Table5[[Site Name]:[(HIDE) Whips lost]],13,FALSE)","v":{"$error":"#N/A"}},null,null,null,{"$f":"IF(SUM('Part 2 - Restocking information'!$H158:$J158)=0,\"\",SUM('Part 2 - Restocking information'!$H158:$J158))","v":""},{"$f":"IFERROR(VLOOKUP(C158,Table5[[Site Name]:[(HIDE) Sum of LATF trees planted]],8,FALSE),\"\")","v":""},{"$f":"IFERROR(VLOOKUP(C158,Table5[[Site Name]:[(HIDE) SUM of LATF Trees Loss]],14,FALSE),\"\")","v":""},"",{"$f":"IFERROR(IF(VLOOKUP(C158,Table5[[Site Name]:[(HIDE) Sum of LATF trees planted]],8,FALSE)=0, \"\", VLOOKUP(C158,Table5[[Site Name]:[(HIDE) Sum of LATF trees planted]],8,FALSE)),\"\")","v":""},null,{"$f":"IFERROR(('Part 2 - Restocking information'!$K158+'Part 2 - Restocking information'!$N158)/'Part 2 - Restocking information'!$O158*100, \"\")","v":""}]
[null,null,null,{"$f":"IFERROR(VLOOKUP(C159,Table5[[Site Name]:[Site requires restocking (if <75% survival rate) - planting sites only]],21,FALSE),\"\")","v":""},{"$f":"VLOOKUP($C159,Table5[[Site Name]:[(HIDE) Whips lost]],24,FALSE)","v":{"$error":"#N/A"}},{"$f":"VLOOKUP($C159,Table5[[Site Name]:[(HIDE) Whips lost]],12,FALSE)","v":{"$error":"#N/A"}},{"$f":"VLOOKUP($C159,Table5[[Site Name]:[(HIDE) Whips lost]],13,FALSE)","v":{"$error":"#N/A"}},null,null,null,{"$f":"IF(SUM('Part 2 - Restocking information'!$H159:$J159)=0,\"\",SUM('Part 2 - Restocking information'!$H159:$J159))","v":""},{"$f":"IFERROR(VLOOKUP(C159,Table5[[Site Name]:[(HIDE) Sum of LATF trees planted]],8,FALSE),\"\")","v":""},{"$f":"IFERROR(VLOOKUP(C159,Table5[[Site Name]:[(HIDE) SUM of LATF Trees Loss]],14,FALSE),\"\")","v":""},"",{"$f":"IFERROR(IF(VLOOKUP(C159,Table5[[Site Name]:[(HIDE) Sum of LATF trees planted]],8,FALSE)=0, \"\", VLOOKUP(C159,Table5[[Site Name]:[(HIDE) Sum of LATF trees planted]],8,FALSE)),\"\")","v":""},null,{"$f":"IFERROR(('Part 2 - Restocking information'!$K159+'Part 2 - Restocking information'!$N159)/'Part 2 - Restocking information'!$O159*100, \"\")","v":""}]
[null,null,null,{"$f":"IFERROR(VLOOKUP(C160,Table5[[Site Name]:[Site requires restocking (if <75% survival rate) - planting sites only]],21,FALSE),\"\")","v":""},{"$f":"VLOOKUP($C160,Table5[[Site Name]:[(HIDE) Whips lost]],24,FALSE)","v":{"$error":"#N/A"}},{"$f":"VLOOKUP($C160,Table5[[Site Name]:[(HIDE) Whips lost]],12,FALSE)","v":{"$error":"#N/A"}},{"$f":"VLOOKUP($C160,Table5[[Site Name]:[(HIDE) Whips lost]],13,FALSE)","v":{"$error":"#N/A"}},null,null,null,{"$f":"IF(SUM('Part 2 - Restocking information'!$H160:$J160)=0,\"\",SUM('Part 2 - Restocking information'!$H160:$J160))","v":""},{"$f":"IFERROR(VLOOKUP(C160,Table5[[Site Name]:[(HIDE) Sum of LATF trees planted]],8,FALSE),\"\")","v":""},{"$f":"IFERROR(VLOOKUP(C160,Table5[[Site Name]:[(HIDE) SUM of LATF Trees Loss]],14,FALSE),\"\")","v":""},"",{"$f":"IFERROR(IF(VLOOKUP(C160,Table5[[Site Name]:[(HIDE) Sum of LATF trees planted]],8,FALSE)=0, \"\", VLOOKUP(C160,Table5[[Site Name]:[(HIDE) Sum of LATF trees planted]],8,FALSE)),\"\")","v":""},null,{"$f":"IFERROR(('Part 2 - Restocking information'!$K160+'Part 2 - Restocking information'!$N160)/'Part 2 - Restocking information'!$O160*100, \"\")","v":""}]
[null,null,null,{"$f":"IFERROR(VLOOKUP(C161,Table5[[Site Name]:[Site requires restocking (if <75% survival rate) - planting sites only]],21,FALSE),\"\")","v":""},{"$f":"VLOOKUP($C161,Table5[[Site Name]:[(HIDE) Whips lost]],24,FALSE)","v":{"$error":"#N/A"}},{"$f":"VLOOKUP($C161,Table5[[Site Name]:[(HIDE) Whips lost]],12,FALSE)","v":{"$error":"#N/A"}},{"$f":"VLOOKUP($C161,Table5[[Site Name]:[(HIDE) Whips lost]],13,FALSE)","v":{"$error":"#N/A"}},null,null,null,{"$f":"IF(SUM('Part 2 - Restocking information'!$H161:$J161)=0,\"\",SUM('Part 2 - Restocking information'!$H161:$J161))","v":""},{"$f":"IFERROR(VLOOKUP(C161,Table5[[Site Name]:[(HIDE) Sum of LATF trees planted]],8,FALSE),\"\")","v":""},{"$f":"IFERROR(VLOOKUP(C161,Table5[[Site Name]:[(HIDE) SUM of LATF Trees Loss]],14,FALSE),\"\")","v":""},"",{"$f":"IFERROR(IF(VLOOKUP(C161,Table5[[Site Name]:[(HIDE) Sum of LATF trees planted]],8,FALSE)=0, \"\", VLOOKUP(C161,Table5[[Site Name]:[(HIDE) Sum of LATF trees planted]],8,FALSE)),\"\")","v":""},null,{"$f":"IFERROR(('Part 2 - Restocking information'!$K161+'Part 2 - Restocking information'!$N161)/'Part 2 - Restocking information'!$O161*100, \"\")","v":""}]
[null,null,null,{"$f":"IFERROR(VLOOKUP(C162,Table5[[Site Name]:[Site requires restocking (if <75% survival rate) - planting sites only]],21,FALSE),\"\")","v":""},{"$f":"VLOOKUP($C162,Table5[[Site Name]:[(HIDE) Whips lost]],24,FALSE)","v":{"$error":"#N/A"}},{"$f":"VLOOKUP($C162,Table5[[Site Name]:[(HIDE) Whips lost]],12,FALSE)","v":{"$error":"#N/A"}},{"$f":"VLOOKUP($C162,Table5[[Site Name]:[(HIDE) Whips lost]],13,FALSE)","v":{"$error":"#N/A"}},null,null,null,{"$f":"IF(SUM('Part 2 - Restocking information'!$H162:$J162)=0,\"\",SUM('Part 2 - Restocking information'!$H162:$J162))","v":""},{"$f":"IFERROR(VLOOKUP(C162,Table5[[Site Name]:[(HIDE) Sum of LATF trees planted]],8,FALSE),\"\")","v":""},{"$f":"IFERROR(VLOOKUP(C162,Table5[[Site Name]:[(HIDE) SUM of LATF Trees Loss]],14,FALSE),\"\")","v":""},{"$f":"IFERROR(IF(L162 - M162 = 0, \"\", L162-M162),\"\")","v":""},{"$f":"IFERROR(IF(VLOOKUP(C162,Table5[[Site Name]:[(HIDE) Sum of LATF trees planted]],8,FALSE)=0, \"\", VLOOKUP(C162,Table5[[Site Name]:[(HIDE) Sum of LATF trees planted]],8,FALSE)),\"\")","v":""},null,{"$f":"IFERROR(('Part 2 - Restocking information'!$K162+'Part 2 - Restocking information'!$N162)/'Part 2 - Restocking information'!$O162*100, \"\")","v":""}]
[null,null,null,{"$f":"IFERROR(VLOOKUP(C163,Table5[[Site Name]:[Site requires restocking (if <75% survival rate) - planting sites only]],21,FALSE),\"\")","v":""},{"$f":"VLOOKUP($C163,Table5[[Site Name]:[(HIDE) Whips lost]],24,FALSE)","v":{"$error":"#N/A"}},{"$f":"VLOOKUP($C163,Table5[[Site Name]:[(HIDE) Whips lost]],12,FALSE)","v":{"$error":"#N/A"}},{"$f":"VLOOKUP($C163,Table5[[Site Name]:[(HIDE) Whips lost]],13,FALSE)","v":{"$error":"#N/A"}},null,null,null,{"$f":"IF(SUM('Part 2 - Restocking information'!$H163:$J163)=0,\"\",SUM('Part 2 - Restocking information'!$H163:$J163))","v":""},{"$f":"IFERROR(VLOOKUP(C163,Table5[[Site Name]:[(HIDE) Sum of LATF trees planted]],8,FALSE),\"\")","v":""},{"$f":"IFERROR(VLOOKUP(C163,Table5[[Site Name]:[(HIDE) SUM of LATF Trees Loss]],14,FALSE),\"\")","v":""},"",{"$f":"IFERROR(IF(VLOOKUP(C163,Table5[[Site Name]:[(HIDE) Sum of LATF trees planted]],8,FALSE)=0, \"\", VLOOKUP(C163,Table5[[Site Name]:[(HIDE) Sum of LATF trees planted]],8,FALSE)),\"\")","v":""},null,{"$f":"IFERROR(('Part 2 - Restocking information'!$K163+'Part 2 - Restocking information'!$N163)/'Part 2 - Restocking information'!$O163*100, \"\")","v":""}]
[null,null,null,{"$f":"IFERROR(VLOOKUP(C164,Table5[[Site Name]:[Site requires restocking (if <75% survival rate) - planting sites only]],21,FALSE),\"\")","v":""},{"$f":"VLOOKUP($C164,Table5[[Site Name]:[(HIDE) Whips lost]],24,FALSE)","v":{"$error":"#N/A"}},{"$f":"VLOOKUP($C164,Table5[[Site Name]:[(HIDE) Whips lost]],12,FALSE)","v":{"$error":"#N/A"}},{"$f":"VLOOKUP($C164,Table5[[Site Name]:[(HIDE) Whips lost]],13,FALSE)","v":{"$error":"#N/A"}},null,null,null,{"$f":"IF(SUM('Part 2 - Restocking information'!$H164:$J164)=0,\"\",SUM('Part 2 - Restocking information'!$H164:$J164))","v":""},{"$f":"IFERROR(VLOOKUP(C164,Table5[[Site Name]:[(HIDE) Sum of LATF trees planted]],8,FALSE),\"\")","v":""},{"$f":"IFERROR(VLOOKUP(C164,Table5[[Site Name]:[(HIDE) SUM of LATF Trees Loss]],14,FALSE),\"\")","v":""},"",{"$f":"IFERROR(IF(VLOOKUP(C164,Table5[[Site Name]:[(HIDE) Sum of LATF trees planted]],8,FALSE)=0, \"\", VLOOKUP(C164,Table5[[Site Name]:[(HIDE) Sum of LATF trees planted]],8,FALSE)),\"\")","v":""},null,{"$f":"IFERROR(('Part 2 - Restocking information'!$K164+'Part 2 - Restocking information'!$N164)/'Part 2 - Restocking information'!$O164*100, \"\")","v":""}]
[null,null,null,{"$f":"IFERROR(VLOOKUP(C165,Table5[[Site Name]:[Site requires restocking (if <75% survival rate) - planting sites only]],21,FALSE),\"\")","v":""},{"$f":"VLOOKUP($C165,Table5[[Site Name]:[(HIDE) Whips lost]],24,FALSE)","v":{"$error":"#N/A"}},{"$f":"VLOOKUP($C165,Table5[[Site Name]:[(HIDE) Whips lost]],12,FALSE)","v":{"$error":"#N/A"}},{"$f":"VLOOKUP($C165,Table5[[Site Name]:[(HIDE) Whips lost]],13,FALSE)","v":{"$error":"#N/A"}},null,null,null,{"$f":"IF(SUM('Part 2 - Restocking information'!$H165:$J165)=0,\"\",SUM('Part 2 - Restocking information'!$H165:$J165))","v":""},{"$f":"IFERROR(VLOOKUP(C165,Table5[[Site Name]:[(HIDE) Sum of LATF trees planted]],8,FALSE),\"\")","v":""},{"$f":"IFERROR(VLOOKUP(C165,Table5[[Site Name]:[(HIDE) SUM of LATF Trees Loss]],14,FALSE),\"\")","v":""},"",{"$f":"IFERROR(IF(VLOOKUP(C165,Table5[[Site Name]:[(HIDE) Sum of LATF trees planted]],8,FALSE)=0, \"\", VLOOKUP(C165,Table5[[Site Name]:[(HIDE) Sum of LATF trees planted]],8,FALSE)),\"\")","v":""},null,{"$f":"IFERROR(('Part 2 - Restocking information'!$K165+'Part 2 - Restocking information'!$N165)/'Part 2 - Restocking information'!$O165*100, \"\")","v":""}]
[null,null,null,{"$f":"IFERROR(VLOOKUP(C166,Table5[[Site Name]:[Site requires restocking (if <75% survival rate) - planting sites only]],21,FALSE),\"\")","v":""},{"$f":"VLOOKUP($C166,Table5[[Site Name]:[(HIDE) Whips lost]],24,FALSE)","v":{"$error":"#N/A"}},{"$f":"VLOOKUP($C166,Table5[[Site Name]:[(HIDE) Whips lost]],12,FALSE)","v":{"$error":"#N/A"}},{"$f":"VLOOKUP($C166,Table5[[Site Name]:[(HIDE) Whips lost]],13,FALSE)","v":{"$error":"#N/A"}},null,null,null,{"$f":"IF(SUM('Part 2 - Restocking information'!$H166:$J166)=0,\"\",SUM('Part 2 - Restocking information'!$H166:$J166))","v":""},{"$f":"IFERROR(VLOOKUP(C166,Table5[[Site Name]:[(HIDE) Sum of LATF trees planted]],8,FALSE),\"\")","v":""},{"$f":"IFERROR(VLOOKUP(C166,Table5[[Site Name]:[(HIDE) SUM of LATF Trees Loss]],14,FALSE),\"\")","v":""},"",{"$f":"IFERROR(IF(VLOOKUP(C166,Table5[[Site Name]:[(HIDE) Sum of LATF trees planted]],8,FALSE)=0, \"\", VLOOKUP(C166,Table5[[Site Name]:[(HIDE) Sum of LATF trees planted]],8,FALSE)),\"\")","v":""},null,{"$f":"IFERROR(('Part 2 - Restocking information'!$K166+'Part 2 - Restocking information'!$N166)/'Part 2 - Restocking information'!$O166*100, \"\")","v":""}]
[null,null,null,{"$f":"IFERROR(VLOOKUP(C167,Table5[[Site Name]:[Site requires restocking (if <75% survival rate) - planting sites only]],21,FALSE),\"\")","v":""},{"$f":"VLOOKUP($C167,Table5[[Site Name]:[(HIDE) Whips lost]],24,FALSE)","v":{"$error":"#N/A"}},{"$f":"VLOOKUP($C167,Table5[[Site Name]:[(HIDE) Whips lost]],12,FALSE)","v":{"$error":"#N/A"}},{"$f":"VLOOKUP($C167,Table5[[Site Name]:[(HIDE) Whips lost]],13,FALSE)","v":{"$error":"#N/A"}},null,null,null,{"$f":"IF(SUM('Part 2 - Restocking information'!$H167:$J167)=0,\"\",SUM('Part 2 - Restocking information'!$H167:$J167))","v":""},{"$f":"IFERROR(VLOOKUP(C167,Table5[[Site Name]:[(HIDE) Sum of LATF trees planted]],8,FALSE),\"\")","v":""},{"$f":"IFERROR(VLOOKUP(C167,Table5[[Site Name]:[(HIDE) SUM of LATF Trees Loss]],14,FALSE),\"\")","v":""},"",{"$f":"IFERROR(IF(VLOOKUP(C167,Table5[[Site Name]:[(HIDE) Sum of LATF trees planted]],8,FALSE)=0, \"\", VLOOKUP(C167,Table5[[Site Name]:[(HIDE) Sum of LATF trees planted]],8,FALSE)),\"\")","v":""},null,{"$f":"IFERROR(('Part 2 - Restocking information'!$K167+'Part 2 - Restocking information'!$N167)/'Part 2 - Restocking information'!$O167*100, \"\")","v":""}]
[null,null,null,{"$f":"IFERROR(VLOOKUP(C168,Table5[[Site Name]:[Site requires restocking (if <75% survival rate) - planting sites only]],21,FALSE),\"\")","v":""},{"$f":"VLOOKUP($C168,Table5[[Site Name]:[(HIDE) Whips lost]],24,FALSE)","v":{"$error":"#N/A"}},{"$f":"VLOOKUP($C168,Table5[[Site Name]:[(HIDE) Whips lost]],12,FALSE)","v":{"$error":"#N/A"}},{"$f":"VLOOKUP($C168,Table5[[Site Name]:[(HIDE) Whips lost]],13,FALSE)","v":{"$error":"#N/A"}},null,null,null,{"$f":"IF(SUM('Part 2 - Restocking information'!$H168:$J168)=0,\"\",SUM('Part 2 - Restocking information'!$H168:$J168))","v":""},{"$f":"IFERROR(VLOOKUP(C168,Table5[[Site Name]:[(HIDE) Sum of LATF trees planted]],8,FALSE),\"\")","v":""},{"$f":"IFERROR(VLOOKUP(C168,Table5[[Site Name]:[(HIDE) SUM of LATF Trees Loss]],14,FALSE),\"\")","v":""},"",{"$f":"IFERROR(IF(VLOOKUP(C168,Table5[[Site Name]:[(HIDE) Sum of LATF trees planted]],8,FALSE)=0, \"\", VLOOKUP(C168,Table5[[Site Name]:[(HIDE) Sum of LATF trees planted]],8,FALSE)),\"\")","v":""},null,{"$f":"IFERROR(('Part 2 - Restocking information'!$K168+'Part 2 - Restocking information'!$N168)/'Part 2 - Restocking information'!$O168*100, \"\")","v":""}]
[null,null,null,{"$f":"IFERROR(VLOOKUP(C169,Table5[[Site Name]:[Site requires restocking (if <75% survival rate) - planting sites only]],21,FALSE),\"\")","v":""},{"$f":"VLOOKUP($C169,Table5[[Site Name]:[(HIDE) Whips lost]],24,FALSE)","v":{"$error":"#N/A"}},{"$f":"VLOOKUP($C169,Table5[[Site Name]:[(HIDE) Whips lost]],12,FALSE)","v":{"$error":"#N/A"}},{"$f":"VLOOKUP($C169,Table5[[Site Name]:[(HIDE) Whips lost]],13,FALSE)","v":{"$error":"#N/A"}},null,null,null,{"$f":"IF(SUM('Part 2 - Restocking information'!$H169:$J169)=0,\"\",SUM('Part 2 - Restocking information'!$H169:$J169))","v":""},{"$f":"IFERROR(VLOOKUP(C169,Table5[[Site Name]:[(HIDE) Sum of LATF trees planted]],8,FALSE),\"\")","v":""},{"$f":"IFERROR(VLOOKUP(C169,Table5[[Site Name]:[(HIDE) SUM of LATF Trees Loss]],14,FALSE),\"\")","v":""},"",{"$f":"IFERROR(IF(VLOOKUP(C169,Table5[[Site Name]:[(HIDE) Sum of LATF trees planted]],8,FALSE)=0, \"\", VLOOKUP(C169,Table5[[Site Name]:[(HIDE) Sum of LATF trees planted]],8,FALSE)),\"\")","v":""},null,{"$f":"IFERROR(('Part 2 - Restocking information'!$K169+'Part 2 - Restocking information'!$N169)/'Part 2 - Restocking information'!$O169*100, \"\")","v":""}]
[null,null,null,{"$f":"IFERROR(VLOOKUP(C170,Table5[[Site Name]:[Site requires restocking (if <75% survival rate) - planting sites only]],21,FALSE),\"\")","v":""},{"$f":"VLOOKUP($C170,Table5[[Site Name]:[(HIDE) Whips lost]],24,FALSE)","v":{"$error":"#N/A"}},{"$f":"VLOOKUP($C170,Table5[[Site Name]:[(HIDE) Whips lost]],12,FALSE)","v":{"$error":"#N/A"}},{"$f":"VLOOKUP($C170,Table5[[Site Name]:[(HIDE) Whips lost]],13,FALSE)","v":{"$error":"#N/A"}},null,null,null,{"$f":"IF(SUM('Part 2 - Restocking information'!$H170:$J170)=0,\"\",SUM('Part 2 - Restocking information'!$H170:$J170))","v":""},{"$f":"IFERROR(VLOOKUP(C170,Table5[[Site Name]:[(HIDE) Sum of LATF trees planted]],8,FALSE),\"\")","v":""},{"$f":"IFERROR(VLOOKUP(C170,Table5[[Site Name]:[(HIDE) SUM of LATF Trees Loss]],14,FALSE),\"\")","v":""},"",{"$f":"IFERROR(IF(VLOOKUP(C170,Table5[[Site Name]:[(HIDE) Sum of LATF trees planted]],8,FALSE)=0, \"\", VLOOKUP(C170,Table5[[Site Name]:[(HIDE) Sum of LATF trees planted]],8,FALSE)),\"\")","v":""},null,{"$f":"IFERROR(('Part 2 - Restocking information'!$K170+'Part 2 - Restocking information'!$N170)/'Part 2 - Restocking information'!$O170*100, \"\")","v":""}]
[null,null,null,{"$f":"IFERROR(VLOOKUP(C171,Table5[[Site Name]:[Site requires restocking (if <75% survival rate) - planting sites only]],21,FALSE),\"\")","v":""},{"$f":"VLOOKUP($C171,Table5[[Site Name]:[(HIDE) Whips lost]],24,FALSE)","v":{"$error":"#N/A"}},{"$f":"VLOOKUP($C171,Table5[[Site Name]:[(HIDE) Whips lost]],12,FALSE)","v":{"$error":"#N/A"}},{"$f":"VLOOKUP($C171,Table5[[Site Name]:[(HIDE) Whips lost]],13,FALSE)","v":{"$error":"#N/A"}},null,null,null,{"$f":"IF(SUM('Part 2 - Restocking information'!$H171:$J171)=0,\"\",SUM('Part 2 - Restocking information'!$H171:$J171))","v":""},{"$f":"IFERROR(VLOOKUP(C171,Table5[[Site Name]:[(HIDE) Sum of LATF trees planted]],8,FALSE),\"\")","v":""},{"$f":"IFERROR(VLOOKUP(C171,Table5[[Site Name]:[(HIDE) SUM of LATF Trees Loss]],14,FALSE),\"\")","v":""},"",{"$f":"IFERROR(IF(VLOOKUP(C171,Table5[[Site Name]:[(HIDE) Sum of LATF trees planted]],8,FALSE)=0, \"\", VLOOKUP(C171,Table5[[Site Name]:[(HIDE) Sum of LATF trees planted]],8,FALSE)),\"\")","v":""},null,{"$f":"IFERROR(('Part 2 - Restocking information'!$K171+'Part 2 - Restocking information'!$N171)/'Part 2 - Restocking information'!$O171*100, \"\")","v":""}]
[null,null,null,{"$f":"IFERROR(VLOOKUP(C172,Table5[[Site Name]:[Site requires restocking (if <75% survival rate) - planting sites only]],21,FALSE),\"\")","v":""},{"$f":"VLOOKUP($C172,Table5[[Site Name]:[(HIDE) Whips lost]],24,FALSE)","v":{"$error":"#N/A"}},{"$f":"VLOOKUP($C172,Table5[[Site Name]:[(HIDE) Whips lost]],12,FALSE)","v":{"$error":"#N/A"}},{"$f":"VLOOKUP($C172,Table5[[Site Name]:[(HIDE) Whips lost]],13,FALSE)","v":{"$error":"#N/A"}},null,null,null,{"$f":"IF(SUM('Part 2 - Restocking information'!$H172:$J172)=0,\"\",SUM('Part 2 - Restocking information'!$H172:$J172))","v":""},{"$f":"IFERROR(VLOOKUP(C172,Table5[[Site Name]:[(HIDE) Sum of LATF trees planted]],8,FALSE),\"\")","v":""},{"$f":"IFERROR(VLOOKUP(C172,Table5[[Site Name]:[(HIDE) SUM of LATF Trees Loss]],14,FALSE),\"\")","v":""},"",{"$f":"IFERROR(IF(VLOOKUP(C172,Table5[[Site Name]:[(HIDE) Sum of LATF trees planted]],8,FALSE)=0, \"\", VLOOKUP(C172,Table5[[Site Name]:[(HIDE) Sum of LATF trees planted]],8,FALSE)),\"\")","v":""},null,{"$f":"IFERROR(('Part 2 - Restocking information'!$K172+'Part 2 - Restocking information'!$N172)/'Part 2 - Restocking information'!$O172*100, \"\")","v":""}]
[null,null,null,{"$f":"IFERROR(VLOOKUP(C173,Table5[[Site Name]:[Site requires restocking (if <75% survival rate) - planting sites only]],21,FALSE),\"\")","v":""},{"$f":"VLOOKUP($C173,Table5[[Site Name]:[(HIDE) Whips lost]],24,FALSE)","v":{"$error":"#N/A"}},{"$f":"VLOOKUP($C173,Table5[[Site Name]:[(HIDE) Whips lost]],12,FALSE)","v":{"$error":"#N/A"}},{"$f":"VLOOKUP($C173,Table5[[Site Name]:[(HIDE) Whips lost]],13,FALSE)","v":{"$error":"#N/A"}},null,null,null,{"$f":"IF(SUM('Part 2 - Restocking information'!$H173:$J173)=0,\"\",SUM('Part 2 - Restocking information'!$H173:$J173))","v":""},{"$f":"IFERROR(VLOOKUP(C173,Table5[[Site Name]:[(HIDE) Sum of LATF trees planted]],8,FALSE),\"\")","v":""},{"$f":"IFERROR(VLOOKUP(C173,Table5[[Site Name]:[(HIDE) SUM of LATF Trees Loss]],14,FALSE),\"\")","v":""},"",{"$f":"IFERROR(IF(VLOOKUP(C173,Table5[[Site Name]:[(HIDE) Sum of LATF trees planted]],8,FALSE)=0, \"\", VLOOKUP(C173,Table5[[Site Name]:[(HIDE) Sum of LATF trees planted]],8,FALSE)),\"\")","v":""},null,{"$f":"IFERROR(('Part 2 - Restocking information'!$K173+'Part 2 - Restocking information'!$N173)/'Part 2 - Restocking information'!$O173*100, \"\")","v":""}]
[null,null,null,{"$f":"IFERROR(VLOOKUP(C174,Table5[[Site Name]:[Site requires restocking (if <75% survival rate) - planting sites only]],21,FALSE),\"\")","v":""},{"$f":"VLOOKUP($C174,Table5[[Site Name]:[(HIDE) Whips lost]],24,FALSE)","v":{"$error":"#N/A"}},{"$f":"VLOOKUP($C174,Table5[[Site Name]:[(HIDE) Whips lost]],12,FALSE)","v":{"$error":"#N/A"}},{"$f":"VLOOKUP($C174,Table5[[Site Name]:[(HIDE) Whips lost]],13,FALSE)","v":{"$error":"#N/A"}},null,null,null,{"$f":"IF(SUM('Part 2 - Restocking information'!$H174:$J174)=0,\"\",SUM('Part 2 - Restocking information'!$H174:$J174))","v":""},{"$f":"IFERROR(VLOOKUP(C174,Table5[[Site Name]:[(HIDE) Sum of LATF trees planted]],8,FALSE),\"\")","v":""},{"$f":"IFERROR(VLOOKUP(C174,Table5[[Site Name]:[(HIDE) SUM of LATF Trees Loss]],14,FALSE),\"\")","v":""},"",{"$f":"IFERROR(IF(VLOOKUP(C174,Table5[[Site Name]:[(HIDE) Sum of LATF trees planted]],8,FALSE)=0, \"\", VLOOKUP(C174,Table5[[Site Name]:[(HIDE) Sum of LATF trees planted]],8,FALSE)),\"\")","v":""},null,{"$f":"IFERROR(('Part 2 - Restocking information'!$K174+'Part 2 - Restocking information'!$N174)/'Part 2 - Restocking information'!$O174*100, \"\")","v":""}]
[null,null,null,{"$f":"IFERROR(VLOOKUP(C175,Table5[[Site Name]:[Site requires restocking (if <75% survival rate) - planting sites only]],21,FALSE),\"\")","v":""},{"$f":"VLOOKUP($C175,Table5[[Site Name]:[(HIDE) Whips lost]],24,FALSE)","v":{"$error":"#N/A"}},{"$f":"VLOOKUP($C175,Table5[[Site Name]:[(HIDE) Whips lost]],12,FALSE)","v":{"$error":"#N/A"}},{"$f":"VLOOKUP($C175,Table5[[Site Name]:[(HIDE) Whips lost]],13,FALSE)","v":{"$error":"#N/A"}},null,null,null,{"$f":"IF(SUM('Part 2 - Restocking information'!$H175:$J175)=0,\"\",SUM('Part 2 - Restocking information'!$H175:$J175))","v":""},{"$f":"IFERROR(VLOOKUP(C175,Table5[[Site Name]:[(HIDE) Sum of LATF trees planted]],8,FALSE),\"\")","v":""},{"$f":"IFERROR(VLOOKUP(C175,Table5[[Site Name]:[(HIDE) SUM of LATF Trees Loss]],14,FALSE),\"\")","v":""},"",{"$f":"IFERROR(IF(VLOOKUP(C175,Table5[[Site Name]:[(HIDE) Sum of LATF trees planted]],8,FALSE)=0, \"\", VLOOKUP(C175,Table5[[Site Name]:[(HIDE) Sum of LATF trees planted]],8,FALSE)),\"\")","v":""},null,{"$f":"IFERROR(('Part 2 - Restocking information'!$K175+'Part 2 - Restocking information'!$N175)/'Part 2 - Restocking information'!$O175*100, \"\")","v":""}]
[null,null,null,{"$f":"IFERROR(VLOOKUP(C176,Table5[[Site Name]:[Site requires restocking (if <75% survival rate) - planting sites only]],21,FALSE),\"\")","v":""},{"$f":"VLOOKUP($C176,Table5[[Site Name]:[(HIDE) Whips lost]],24,FALSE)","v":{"$error":"#N/A"}},{"$f":"VLOOKUP($C176,Table5[[Site Name]:[(HIDE) Whips lost]],12,FALSE)","v":{"$error":"#N/A"}},{"$f":"VLOOKUP($C176,Table5[[Site Name]:[(HIDE) Whips lost]],13,FALSE)","v":{"$error":"#N/A"}},null,null,null,{"$f":"IF(SUM('Part 2 - Restocking information'!$H176:$J176)=0,\"\",SUM('Part 2 - Restocking information'!$H176:$J176))","v":""},{"$f":"IFERROR(VLOOKUP(C176,Table5[[Site Name]:[(HIDE) Sum of LATF trees planted]],8,FALSE),\"\")","v":""},{"$f":"IFERROR(VLOOKUP(C176,Table5[[Site Name]:[(HIDE) SUM of LATF Trees Loss]],14,FALSE),\"\")","v":""},"",{"$f":"IFERROR(IF(VLOOKUP(C176,Table5[[Site Name]:[(HIDE) Sum of LATF trees planted]],8,FALSE)=0, \"\", VLOOKUP(C176,Table5[[Site Name]:[(HIDE) Sum of LATF trees planted]],8,FALSE)),\"\")","v":""},null,{"$f":"IFERROR(('Part 2 - Restocking information'!$K176+'Part 2 - Restocking information'!$N176)/'Part 2 - Restocking information'!$O176*100, \"\")","v":""}]
[null,null,null,{"$f":"IFERROR(VLOOKUP(C177,Table5[[Site Name]:[Site requires restocking (if <75% survival rate) - planting sites only]],21,FALSE),\"\")","v":""},{"$f":"VLOOKUP($C177,Table5[[Site Name]:[(HIDE) Whips lost]],24,FALSE)","v":{"$error":"#N/A"}},{"$f":"VLOOKUP($C177,Table5[[Site Name]:[(HIDE) Whips lost]],12,FALSE)","v":{"$error":"#N/A"}},{"$f":"VLOOKUP($C177,Table5[[Site Name]:[(HIDE) Whips lost]],13,FALSE)","v":{"$error":"#N/A"}},null,null,null,{"$f":"IF(SUM('Part 2 - Restocking information'!$H177:$J177)=0,\"\",SUM('Part 2 - Restocking information'!$H177:$J177))","v":""},{"$f":"IFERROR(VLOOKUP(C177,Table5[[Site Name]:[(HIDE) Sum of LATF trees planted]],8,FALSE),\"\")","v":""},{"$f":"IFERROR(VLOOKUP(C177,Table5[[Site Name]:[(HIDE) SUM of LATF Trees Loss]],14,FALSE),\"\")","v":""},"",{"$f":"IFERROR(IF(VLOOKUP(C177,Table5[[Site Name]:[(HIDE) Sum of LATF trees planted]],8,FALSE)=0, \"\", VLOOKUP(C177,Table5[[Site Name]:[(HIDE) Sum of LATF trees planted]],8,FALSE)),\"\")","v":""},null,{"$f":"IFERROR(('Part 2 - Restocking information'!$K177+'Part 2 - Restocking information'!$N177)/'Part 2 - Restocking information'!$O177*100, \"\")","v":""}]
[null,null,null,{"$f":"IFERROR(VLOOKUP(C178,Table5[[Site Name]:[Site requires restocking (if <75% survival rate) - planting sites only]],21,FALSE),\"\")","v":""},{"$f":"VLOOKUP($C178,Table5[[Site Name]:[(HIDE) Whips lost]],24,FALSE)","v":{"$error":"#N/A"}},{"$f":"VLOOKUP($C178,Table5[[Site Name]:[(HIDE) Whips lost]],12,FALSE)","v":{"$error":"#N/A"}},{"$f":"VLOOKUP($C178,Table5[[Site Name]:[(HIDE) Whips lost]],13,FALSE)","v":{"$error":"#N/A"}},null,null,null,{"$f":"IF(SUM('Part 2 - Restocking information'!$H178:$J178)=0,\"\",SUM('Part 2 - Restocking information'!$H178:$J178))","v":""},{"$f":"IFERROR(VLOOKUP(C178,Table5[[Site Name]:[(HIDE) Sum of LATF trees planted]],8,FALSE),\"\")","v":""},{"$f":"IFERROR(VLOOKUP(C178,Table5[[Site Name]:[(HIDE) SUM of LATF Trees Loss]],14,FALSE),\"\")","v":""},"",{"$f":"IFERROR(IF(VLOOKUP(C178,Table5[[Site Name]:[(HIDE) Sum of LATF trees planted]],8,FALSE)=0, \"\", VLOOKUP(C178,Table5[[Site Name]:[(HIDE) Sum of LATF trees planted]],8,FALSE)),\"\")","v":""},null,{"$f":"IFERROR(('Part 2 - Restocking information'!$K178+'Part 2 - Restocking information'!$N178)/'Part 2 - Restocking information'!$O178*100, \"\")","v":""}]
[null,null,null,{"$f":"IFERROR(VLOOKUP(C179,Table5[[Site Name]:[Site requires restocking (if <75% survival rate) - planting sites only]],21,FALSE),\"\")","v":""},{"$f":"VLOOKUP($C179,Table5[[Site Name]:[(HIDE) Whips lost]],24,FALSE)","v":{"$error":"#N/A"}},{"$f":"VLOOKUP($C179,Table5[[Site Name]:[(HIDE) Whips lost]],12,FALSE)","v":{"$error":"#N/A"}},{"$f":"VLOOKUP($C179,Table5[[Site Name]:[(HIDE) Whips lost]],13,FALSE)","v":{"$error":"#N/A"}},null,null,null,{"$f":"IF(SUM('Part 2 - Restocking information'!$H179:$J179)=0,\"\",SUM('Part 2 - Restocking information'!$H179:$J179))","v":""},{"$f":"IFERROR(VLOOKUP(C179,Table5[[Site Name]:[(HIDE) Sum of LATF trees planted]],8,FALSE),\"\")","v":""},{"$f":"IFERROR(VLOOKUP(C179,Table5[[Site Name]:[(HIDE) SUM of LATF Trees Loss]],14,FALSE),\"\")","v":""},"",{"$f":"IFERROR(IF(VLOOKUP(C179,Table5[[Site Name]:[(HIDE) Sum of LATF trees planted]],8,FALSE)=0, \"\", VLOOKUP(C179,Table5[[Site Name]:[(HIDE) Sum of LATF trees planted]],8,FALSE)),\"\")","v":""},null,{"$f":"IFERROR(('Part 2 - Restocking information'!$K179+'Part 2 - Restocking information'!$N179)/'Part 2 - Restocking information'!$O179*100, \"\")","v":""}]
[null,null,null,{"$f":"IFERROR(VLOOKUP(C180,Table5[[Site Name]:[Site requires restocking (if <75% survival rate) - planting sites only]],21,FALSE),\"\")","v":""},{"$f":"VLOOKUP($C180,Table5[[Site Name]:[(HIDE) Whips lost]],24,FALSE)","v":{"$error":"#N/A"}},{"$f":"VLOOKUP($C180,Table5[[Site Name]:[(HIDE) Whips lost]],12,FALSE)","v":{"$error":"#N/A"}},{"$f":"VLOOKUP($C180,Table5[[Site Name]:[(HIDE) Whips lost]],13,FALSE)","v":{"$error":"#N/A"}},null,null,null,{"$f":"IF(SUM('Part 2 - Restocking information'!$H180:$J180)=0,\"\",SUM('Part 2 - Restocking information'!$H180:$J180))","v":""},{"$f":"IFERROR(VLOOKUP(C180,Table5[[Site Name]:[(HIDE) Sum of LATF trees planted]],8,FALSE),\"\")","v":""},{"$f":"IFERROR(VLOOKUP(C180,Table5[[Site Name]:[(HIDE) SUM of LATF Trees Loss]],14,FALSE),\"\")","v":""},"",{"$f":"IFERROR(IF(VLOOKUP(C180,Table5[[Site Name]:[(HIDE) Sum of LATF trees planted]],8,FALSE)=0, \"\", VLOOKUP(C180,Table5[[Site Name]:[(HIDE) Sum of LATF trees planted]],8,FALSE)),\"\")","v":""},null,{"$f":"IFERROR(('Part 2 - Restocking information'!$K180+'Part 2 - Restocking information'!$N180)/'Part 2 - Restocking information'!$O180*100, \"\")","v":""}]
[null,null,null,{"$f":"IFERROR(VLOOKUP(C181,Table5[[Site Name]:[Site requires restocking (if <75% survival rate) - planting sites only]],21,FALSE),\"\")","v":""},{"$f":"VLOOKUP($C181,Table5[[Site Name]:[(HIDE) Whips lost]],24,FALSE)","v":{"$error":"#N/A"}},{"$f":"VLOOKUP($C181,Table5[[Site Name]:[(HIDE) Whips lost]],12,FALSE)","v":{"$error":"#N/A"}},{"$f":"VLOOKUP($C181,Table5[[Site Name]:[(HIDE) Whips lost]],13,FALSE)","v":{"$error":"#N/A"}},null,null,null,{"$f":"IF(SUM('Part 2 - Restocking information'!$H181:$J181)=0,\"\",SUM('Part 2 - Restocking information'!$H181:$J181))","v":""},{"$f":"IFERROR(VLOOKUP(C181,Table5[[Site Name]:[(HIDE) Sum of LATF trees planted]],8,FALSE),\"\")","v":""},{"$f":"IFERROR(VLOOKUP(C181,Table5[[Site Name]:[(HIDE) SUM of LATF Trees Loss]],14,FALSE),\"\")","v":""},"",{"$f":"IFERROR(IF(VLOOKUP(C181,Table5[[Site Name]:[(HIDE) Sum of LATF trees planted]],8,FALSE)=0, \"\", VLOOKUP(C181,Table5[[Site Name]:[(HIDE) Sum of LATF trees planted]],8,FALSE)),\"\")","v":""},null,{"$f":"IFERROR(('Part 2 - Restocking information'!$K181+'Part 2 - Restocking information'!$N181)/'Part 2 - Restocking information'!$O181*100, \"\")","v":""}]
[null,null,null,{"$f":"IFERROR(VLOOKUP(C182,Table5[[Site Name]:[Site requires restocking (if <75% survival rate) - planting sites only]],21,FALSE),\"\")","v":""},{"$f":"VLOOKUP($C182,Table5[[Site Name]:[(HIDE) Whips lost]],24,FALSE)","v":{"$error":"#N/A"}},{"$f":"VLOOKUP($C182,Table5[[Site Name]:[(HIDE) Whips lost]],12,FALSE)","v":{"$error":"#N/A"}},{"$f":"VLOOKUP($C182,Table5[[Site Name]:[(HIDE) Whips lost]],13,FALSE)","v":{"$error":"#N/A"}},null,null,null,{"$f":"IF(SUM('Part 2 - Restocking information'!$H182:$J182)=0,\"\",SUM('Part 2 - Restocking information'!$H182:$J182))","v":""},{"$f":"IFERROR(VLOOKUP(C182,Table5[[Site Name]:[(HIDE) Sum of LATF trees planted]],8,FALSE),\"\")","v":""},{"$f":"IFERROR(VLOOKUP(C182,Table5[[Site Name]:[(HIDE) SUM of LATF Trees Loss]],14,FALSE),\"\")","v":""},"",{"$f":"IFERROR(IF(VLOOKUP(C182,Table5[[Site Name]:[(HIDE) Sum of LATF trees planted]],8,FALSE)=0, \"\", VLOOKUP(C182,Table5[[Site Name]:[(HIDE) Sum of LATF trees planted]],8,FALSE)),\"\")","v":""},null,{"$f":"IFERROR(('Part 2 - Restocking information'!$K182+'Part 2 - Restocking information'!$N182)/'Part 2 - Restocking information'!$O182*100, \"\")","v":""}]
[null,null,null,{"$f":"IFERROR(VLOOKUP(C183,Table5[[Site Name]:[Site requires restocking (if <75% survival rate) - planting sites only]],21,FALSE),\"\")","v":""},{"$f":"VLOOKUP($C183,Table5[[Site Name]:[(HIDE) Whips lost]],24,FALSE)","v":{"$error":"#N/A"}},{"$f":"VLOOKUP($C183,Table5[[Site Name]:[(HIDE) Whips lost]],12,FALSE)","v":{"$error":"#N/A"}},{"$f":"VLOOKUP($C183,Table5[[Site Name]:[(HIDE) Whips lost]],13,FALSE)","v":{"$error":"#N/A"}},null,null,null,{"$f":"IF(SUM('Part 2 - Restocking information'!$H183:$J183)=0,\"\",SUM('Part 2 - Restocking information'!$H183:$J183))","v":""},{"$f":"IFERROR(VLOOKUP(C183,Table5[[Site Name]:[(HIDE) Sum of LATF trees planted]],8,FALSE),\"\")","v":""},{"$f":"IFERROR(VLOOKUP(C183,Table5[[Site Name]:[(HIDE) SUM of LATF Trees Loss]],14,FALSE),\"\")","v":""},"",{"$f":"IFERROR(IF(VLOOKUP(C183,Table5[[Site Name]:[(HIDE) Sum of LATF trees planted]],8,FALSE)=0, \"\", VLOOKUP(C183,Table5[[Site Name]:[(HIDE) Sum of LATF trees planted]],8,FALSE)),\"\")","v":""},null,{"$f":"IFERROR(('Part 2 - Restocking information'!$K183+'Part 2 - Restocking information'!$N183)/'Part 2 - Restocking information'!$O183*100, \"\")","v":""}]
[null,null,null,{"$f":"IFERROR(VLOOKUP(C184,Table5[[Site Name]:[Site requires restocking (if <75% survival rate) - planting sites only]],21,FALSE),\"\")","v":""},{"$f":"VLOOKUP($C184,Table5[[Site Name]:[(HIDE) Whips lost]],24,FALSE)","v":{"$error":"#N/A"}},{"$f":"VLOOKUP($C184,Table5[[Site Name]:[(HIDE) Whips lost]],12,FALSE)","v":{"$error":"#N/A"}},{"$f":"VLOOKUP($C184,Table5[[Site Name]:[(HIDE) Whips lost]],13,FALSE)","v":{"$error":"#N/A"}},null,null,null,{"$f":"IF(SUM('Part 2 - Restocking information'!$H184:$J184)=0,\"\",SUM('Part 2 - Restocking information'!$H184:$J184))","v":""},{"$f":"IFERROR(VLOOKUP(C184,Table5[[Site Name]:[(HIDE) Sum of LATF trees planted]],8,FALSE),\"\")","v":""},{"$f":"IFERROR(VLOOKUP(C184,Table5[[Site Name]:[(HIDE) SUM of LATF Trees Loss]],14,FALSE),\"\")","v":""},"",{"$f":"IFERROR(IF(VLOOKUP(C184,Table5[[Site Name]:[(HIDE) Sum of LATF trees planted]],8,FALSE)=0, \"\", VLOOKUP(C184,Table5[[Site Name]:[(HIDE) Sum of LATF trees planted]],8,FALSE)),\"\")","v":""},null,{"$f":"IFERROR(('Part 2 - Restocking information'!$K184+'Part 2 - Restocking information'!$N184)/'Part 2 - Restocking information'!$O184*100, \"\")","v":""}]
[null,null,null,{"$f":"IFERROR(VLOOKUP(C185,Table5[[Site Name]:[Site requires restocking (if <75% survival rate) - planting sites only]],21,FALSE),\"\")","v":""},{"$f":"VLOOKUP($C185,Table5[[Site Name]:[(HIDE) Whips lost]],24,FALSE)","v":{"$error":"#N/A"}},{"$f":"VLOOKUP($C185,Table5[[Site Name]:[(HIDE) Whips lost]],12,FALSE)","v":{"$error":"#N/A"}},{"$f":"VLOOKUP($C185,Table5[[Site Name]:[(HIDE) Whips lost]],13,FALSE)","v":{"$error":"#N/A"}},null,null,null,{"$f":"IF(SUM('Part 2 - Restocking information'!$H185:$J185)=0,\"\",SUM('Part 2 - Restocking information'!$H185:$J185))","v":""},{"$f":"IFERROR(VLOOKUP(C185,Table5[[Site Name]:[(HIDE) Sum of LATF trees planted]],8,FALSE),\"\")","v":""},{"$f":"IFERROR(VLOOKUP(C185,Table5[[Site Name]:[(HIDE) SUM of LATF Trees Loss]],14,FALSE),\"\")","v":""},"",{"$f":"IFERROR(IF(VLOOKUP(C185,Table5[[Site Name]:[(HIDE) Sum of LATF trees planted]],8,FALSE)=0, \"\", VLOOKUP(C185,Table5[[Site Name]:[(HIDE) Sum of LATF trees planted]],8,FALSE)),\"\")","v":""},null,{"$f":"IFERROR(('Part 2 - Restocking information'!$K185+'Part 2 - Restocking information'!$N185)/'Part 2 - Restocking information'!$O185*100, \"\")","v":""}]
[null,null,null,{"$f":"IFERROR(VLOOKUP(C186,Table5[[Site Name]:[Site requires restocking (if <75% survival rate) - planting sites only]],21,FALSE),\"\")","v":""},{"$f":"VLOOKUP($C186,Table5[[Site Name]:[(HIDE) Whips lost]],24,FALSE)","v":{"$error":"#N/A"}},{"$f":"VLOOKUP($C186,Table5[[Site Name]:[(HIDE) Whips lost]],12,FALSE)","v":{"$error":"#N/A"}},{"$f":"VLOOKUP($C186,Table5[[Site Name]:[(HIDE) Whips lost]],13,FALSE)","v":{"$error":"#N/A"}},null,null,null,{"$f":"IF(SUM('Part 2 - Restocking information'!$H186:$J186)=0,\"\",SUM('Part 2 - Restocking information'!$H186:$J186))","v":""},{"$f":"IFERROR(VLOOKUP(C186,Table5[[Site Name]:[(HIDE) Sum of LATF trees planted]],8,FALSE),\"\")","v":""},{"$f":"IFERROR(VLOOKUP(C186,Table5[[Site Name]:[(HIDE) SUM of LATF Trees Loss]],14,FALSE),\"\")","v":""},"",{"$f":"IFERROR(IF(VLOOKUP(C186,Table5[[Site Name]:[(HIDE) Sum of LATF trees planted]],8,FALSE)=0, \"\", VLOOKUP(C186,Table5[[Site Name]:[(HIDE) Sum of LATF trees planted]],8,FALSE)),\"\")","v":""},null,{"$f":"IFERROR(('Part 2 - Restocking information'!$K186+'Part 2 - Restocking information'!$N186)/'Part 2 - Restocking information'!$O186*100, \"\")","v":""}]
[null,null,null,{"$f":"IFERROR(VLOOKUP(C187,Table5[[Site Name]:[Site requires restocking (if <75% survival rate) - planting sites only]],21,FALSE),\"\")","v":""},{"$f":"VLOOKUP($C187,Table5[[Site Name]:[(HIDE) Whips lost]],24,FALSE)","v":{"$error":"#N/A"}},{"$f":"VLOOKUP($C187,Table5[[Site Name]:[(HIDE) Whips lost]],12,FALSE)","v":{"$error":"#N/A"}},{"$f":"VLOOKUP($C187,Table5[[Site Name]:[(HIDE) Whips lost]],13,FALSE)","v":{"$error":"#N/A"}},null,null,null,{"$f":"IF(SUM('Part 2 - Restocking information'!$H187:$J187)=0,\"\",SUM('Part 2 - Restocking information'!$H187:$J187))","v":""},{"$f":"IFERROR(VLOOKUP(C187,Table5[[Site Name]:[(HIDE) Sum of LATF trees planted]],8,FALSE),\"\")","v":""},{"$f":"IFERROR(VLOOKUP(C187,Table5[[Site Name]:[(HIDE) SUM of LATF Trees Loss]],14,FALSE),\"\")","v":""},"",{"$f":"IFERROR(IF(VLOOKUP(C187,Table5[[Site Name]:[(HIDE) Sum of LATF trees planted]],8,FALSE)=0, \"\", VLOOKUP(C187,Table5[[Site Name]:[(HIDE) Sum of LATF trees planted]],8,FALSE)),\"\")","v":""},null,{"$f":"IFERROR(('Part 2 - Restocking information'!$K187+'Part 2 - Restocking information'!$N187)/'Part 2 - Restocking information'!$O187*100, \"\")","v":""}]
[null,null,null,{"$f":"IFERROR(VLOOKUP(C188,Table5[[Site Name]:[Site requires restocking (if <75% survival rate) - planting sites only]],21,FALSE),\"\")","v":""},{"$f":"VLOOKUP($C188,Table5[[Site Name]:[(HIDE) Whips lost]],24,FALSE)","v":{"$error":"#N/A"}},{"$f":"VLOOKUP($C188,Table5[[Site Name]:[(HIDE) Whips lost]],12,FALSE)","v":{"$error":"#N/A"}},{"$f":"VLOOKUP($C188,Table5[[Site Name]:[(HIDE) Whips lost]],13,FALSE)","v":{"$error":"#N/A"}},null,null,null,{"$f":"IF(SUM('Part 2 - Restocking information'!$H188:$J188)=0,\"\",SUM('Part 2 - Restocking information'!$H188:$J188))","v":""},{"$f":"IFERROR(VLOOKUP(C188,Table5[[Site Name]:[(HIDE) Sum of LATF trees planted]],8,FALSE),\"\")","v":""},{"$f":"IFERROR(VLOOKUP(C188,Table5[[Site Name]:[(HIDE) SUM of LATF Trees Loss]],14,FALSE),\"\")","v":""},"",{"$f":"IFERROR(IF(VLOOKUP(C188,Table5[[Site Name]:[(HIDE) Sum of LATF trees planted]],8,FALSE)=0, \"\", VLOOKUP(C188,Table5[[Site Name]:[(HIDE) Sum of LATF trees planted]],8,FALSE)),\"\")","v":""},null,{"$f":"IFERROR(('Part 2 - Restocking information'!$K188+'Part 2 - Restocking information'!$N188)/'Part 2 - Restocking information'!$O188*100, \"\")","v":""}]
[null,null,null,{"$f":"IFERROR(VLOOKUP(C189,Table5[[Site Name]:[Site requires restocking (if <75% survival rate) - planting sites only]],21,FALSE),\"\")","v":""},{"$f":"VLOOKUP($C189,Table5[[Site Name]:[(HIDE) Whips lost]],24,FALSE)","v":{"$error":"#N/A"}},{"$f":"VLOOKUP($C189,Table5[[Site Name]:[(HIDE) Whips lost]],12,FALSE)","v":{"$error":"#N/A"}},{"$f":"VLOOKUP($C189,Table5[[Site Name]:[(HIDE) Whips lost]],13,FALSE)","v":{"$error":"#N/A"}},null,null,null,{"$f":"IF(SUM('Part 2 - Restocking information'!$H189:$J189)=0,\"\",SUM('Part 2 - Restocking information'!$H189:$J189))","v":""},{"$f":"IFERROR(VLOOKUP(C189,Table5[[Site Name]:[(HIDE) Sum of LATF trees planted]],8,FALSE),\"\")","v":""},{"$f":"IFERROR(VLOOKUP(C189,Table5[[Site Name]:[(HIDE) SUM of LATF Trees Loss]],14,FALSE),\"\")","v":""},"",{"$f":"IFERROR(IF(VLOOKUP(C189,Table5[[Site Name]:[(HIDE) Sum of LATF trees planted]],8,FALSE)=0, \"\", VLOOKUP(C189,Table5[[Site Name]:[(HIDE) Sum of LATF trees planted]],8,FALSE)),\"\")","v":""},null,{"$f":"IFERROR(('Part 2 - Restocking information'!$K189+'Part 2 - Restocking information'!$N189)/'Part 2 - Restocking information'!$O189*100, \"\")","v":""}]
[null,null,null,{"$f":"IFERROR(VLOOKUP(C190,Table5[[Site Name]:[Site requires restocking (if <75% survival rate) - planting sites only]],21,FALSE),\"\")","v":""},{"$f":"VLOOKUP($C190,Table5[[Site Name]:[(HIDE) Whips lost]],24,FALSE)","v":{"$error":"#N/A"}},{"$f":"VLOOKUP($C190,Table5[[Site Name]:[(HIDE) Whips lost]],12,FALSE)","v":{"$error":"#N/A"}},{"$f":"VLOOKUP($C190,Table5[[Site Name]:[(HIDE) Whips lost]],13,FALSE)","v":{"$error":"#N/A"}},null,null,null,{"$f":"IF(SUM('Part 2 - Restocking information'!$H190:$J190)=0,\"\",SUM('Part 2 - Restocking information'!$H190:$J190))","v":""},{"$f":"IFERROR(VLOOKUP(C190,Table5[[Site Name]:[(HIDE) Sum of LATF trees planted]],8,FALSE),\"\")","v":""},{"$f":"IFERROR(VLOOKUP(C190,Table5[[Site Name]:[(HIDE) SUM of LATF Trees Loss]],14,FALSE),\"\")","v":""},"",{"$f":"IFERROR(IF(VLOOKUP(C190,Table5[[Site Name]:[(HIDE) Sum of LATF trees planted]],8,FALSE)=0, \"\", VLOOKUP(C190,Table5[[Site Name]:[(HIDE) Sum of LATF trees planted]],8,FALSE)),\"\")","v":""},null,{"$f":"IFERROR(('Part 2 - Restocking information'!$K190+'Part 2 - Restocking information'!$N190)/'Part 2 - Restocking information'!$O190*100, \"\")","v":""}]
[null,null,null,{"$f":"IFERROR(VLOOKUP(C191,Table5[[Site Name]:[Site requires restocking (if <75% survival rate) - planting sites only]],21,FALSE),\"\")","v":""},{"$f":"VLOOKUP($C191,Table5[[Site Name]:[(HIDE) Whips lost]],24,FALSE)","v":{"$error":"#N/A"}},{"$f":"VLOOKUP($C191,Table5[[Site Name]:[(HIDE) Whips lost]],12,FALSE)","v":{"$error":"#N/A"}},{"$f":"VLOOKUP($C191,Table5[[Site Name]:[(HIDE) Whips lost]],13,FALSE)","v":{"$error":"#N/A"}},null,null,null,{"$f":"IF(SUM('Part 2 - Restocking information'!$H191:$J191)=0,\"\",SUM('Part 2 - Restocking information'!$H191:$J191))","v":""},{"$f":"IFERROR(VLOOKUP(C191,Table5[[Site Name]:[(HIDE) Sum of LATF trees planted]],8,FALSE),\"\")","v":""},{"$f":"IFERROR(VLOOKUP(C191,Table5[[Site Name]:[(HIDE) SUM of LATF Trees Loss]],14,FALSE),\"\")","v":""},"",{"$f":"IFERROR(IF(VLOOKUP(C191,Table5[[Site Name]:[(HIDE) Sum of LATF trees planted]],8,FALSE)=0, \"\", VLOOKUP(C191,Table5[[Site Name]:[(HIDE) Sum of LATF trees planted]],8,FALSE)),\"\")","v":""},null,{"$f":"IFERROR(('Part 2 - Restocking information'!$K191+'Part 2 - Restocking information'!$N191)/'Part 2 - Restocking information'!$O191*100, \"\")","v":""}]
[null,null,null,{"$f":"IFERROR(VLOOKUP(C192,Table5[[Site Name]:[Site requires restocking (if <75% survival rate) - planting sites only]],21,FALSE),\"\")","v":""},{"$f":"VLOOKUP($C192,Table5[[Site Name]:[(HIDE) Whips lost]],24,FALSE)","v":{"$error":"#N/A"}},{"$f":"VLOOKUP($C192,Table5[[Site Name]:[(HIDE) Whips lost]],12,FALSE)","v":{"$error":"#N/A"}},{"$f":"VLOOKUP($C192,Table5[[Site Name]:[(HIDE) Whips lost]],13,FALSE)","v":{"$error":"#N/A"}},null,null,null,{"$f":"IF(SUM('Part 2 - Restocking information'!$H192:$J192)=0,\"\",SUM('Part 2 - Restocking information'!$H192:$J192))","v":""},{"$f":"IFERROR(VLOOKUP(C192,Table5[[Site Name]:[(HIDE) Sum of LATF trees planted]],8,FALSE),\"\")","v":""},{"$f":"IFERROR(VLOOKUP(C192,Table5[[Site Name]:[(HIDE) SUM of LATF Trees Loss]],14,FALSE),\"\")","v":""},"",{"$f":"IFERROR(IF(VLOOKUP(C192,Table5[[Site Name]:[(HIDE) Sum of LATF trees planted]],8,FALSE)=0, \"\", VLOOKUP(C192,Table5[[Site Name]:[(HIDE) Sum of LATF trees planted]],8,FALSE)),\"\")","v":""},null,{"$f":"IFERROR(('Part 2 - Restocking information'!$K192+'Part 2 - Restocking information'!$N192)/'Part 2 - Restocking information'!$O192*100, \"\")","v":""}]
[null,null,null,{"$f":"IFERROR(VLOOKUP(C193,Table5[[Site Name]:[Site requires restocking (if <75% survival rate) - planting sites only]],21,FALSE),\"\")","v":""},{"$f":"VLOOKUP($C193,Table5[[Site Name]:[(HIDE) Whips lost]],24,FALSE)","v":{"$error":"#N/A"}},{"$f":"VLOOKUP($C193,Table5[[Site Name]:[(HIDE) Whips lost]],12,FALSE)","v":{"$error":"#N/A"}},{"$f":"VLOOKUP($C193,Table5[[Site Name]:[(HIDE) Whips lost]],13,FALSE)","v":{"$error":"#N/A"}},null,null,null,{"$f":"IF(SUM('Part 2 - Restocking information'!$H193:$J193)=0,\"\",SUM('Part 2 - Restocking information'!$H193:$J193))","v":""},{"$f":"IFERROR(VLOOKUP(C193,Table5[[Site Name]:[(HIDE) Sum of LATF trees planted]],8,FALSE),\"\")","v":""},{"$f":"IFERROR(VLOOKUP(C193,Table5[[Site Name]:[(HIDE) SUM of LATF Trees Loss]],14,FALSE),\"\")","v":""},"",{"$f":"IFERROR(IF(VLOOKUP(C193,Table5[[Site Name]:[(HIDE) Sum of LATF trees planted]],8,FALSE)=0, \"\", VLOOKUP(C193,Table5[[Site Name]:[(HIDE) Sum of LATF trees planted]],8,FALSE)),\"\")","v":""},null,{"$f":"IFERROR(('Part 2 - Restocking information'!$K193+'Part 2 - Restocking information'!$N193)/'Part 2 - Restocking information'!$O193*100, \"\")","v":""}]
[null,null,null,{"$f":"IFERROR(VLOOKUP(C194,Table5[[Site Name]:[Site requires restocking (if <75% survival rate) - planting sites only]],21,FALSE),\"\")","v":""},{"$f":"VLOOKUP($C194,Table5[[Site Name]:[(HIDE) Whips lost]],24,FALSE)","v":{"$error":"#N/A"}},{"$f":"VLOOKUP($C194,Table5[[Site Name]:[(HIDE) Whips lost]],12,FALSE)","v":{"$error":"#N/A"}},{"$f":"VLOOKUP($C194,Table5[[Site Name]:[(HIDE) Whips lost]],13,FALSE)","v":{"$error":"#N/A"}},null,null,null,{"$f":"IF(SUM('Part 2 - Restocking information'!$H194:$J194)=0,\"\",SUM('Part 2 - Restocking information'!$H194:$J194))","v":""},{"$f":"IFERROR(VLOOKUP(C194,Table5[[Site Name]:[(HIDE) Sum of LATF trees planted]],8,FALSE),\"\")","v":""},{"$f":"IFERROR(VLOOKUP(C194,Table5[[Site Name]:[(HIDE) SUM of LATF Trees Loss]],14,FALSE),\"\")","v":""},"",{"$f":"IFERROR(IF(VLOOKUP(C194,Table5[[Site Name]:[(HIDE) Sum of LATF trees planted]],8,FALSE)=0, \"\", VLOOKUP(C194,Table5[[Site Name]:[(HIDE) Sum of LATF trees planted]],8,FALSE)),\"\")","v":""},null,{"$f":"IFERROR(('Part 2 - Restocking information'!$K194+'Part 2 - Restocking information'!$N194)/'Part 2 - Restocking information'!$O194*100, \"\")","v":""}]
[null,null,null,{"$f":"IFERROR(VLOOKUP(C195,Table5[[Site Name]:[Site requires restocking (if <75% survival rate) - planting sites only]],21,FALSE),\"\")","v":""},{"$f":"VLOOKUP($C195,Table5[[Site Name]:[(HIDE) Whips lost]],24,FALSE)","v":{"$error":"#N/A"}},{"$f":"VLOOKUP($C195,Table5[[Site Name]:[(HIDE) Whips lost]],12,FALSE)","v":{"$error":"#N/A"}},{"$f":"VLOOKUP($C195,Table5[[Site Name]:[(HIDE) Whips lost]],13,FALSE)","v":{"$error":"#N/A"}},null,null,null,{"$f":"IF(SUM('Part 2 - Restocking information'!$H195:$J195)=0,\"\",SUM('Part 2 - Restocking information'!$H195:$J195))","v":""},{"$f":"IFERROR(VLOOKUP(C195,Table5[[Site Name]:[(HIDE) Sum of LATF trees planted]],8,FALSE),\"\")","v":""},{"$f":"IFERROR(VLOOKUP(C195,Table5[[Site Name]:[(HIDE) SUM of LATF Trees Loss]],14,FALSE),\"\")","v":""},"",{"$f":"IFERROR(IF(VLOOKUP(C195,Table5[[Site Name]:[(HIDE) Sum of LATF trees planted]],8,FALSE)=0, \"\", VLOOKUP(C195,Table5[[Site Name]:[(HIDE) Sum of LATF trees planted]],8,FALSE)),\"\")","v":""},null,{"$f":"IFERROR(('Part 2 - Restocking information'!$K195+'Part 2 - Restocking information'!$N195)/'Part 2 - Restocking information'!$O195*100, \"\")","v":""}]
[null,null,null,{"$f":"IFERROR(VLOOKUP(C196,Table5[[Site Name]:[Site requires restocking (if <75% survival rate) - planting sites only]],21,FALSE),\"\")","v":""},{"$f":"VLOOKUP($C196,Table5[[Site Name]:[(HIDE) Whips lost]],24,FALSE)","v":{"$error":"#N/A"}},{"$f":"VLOOKUP($C196,Table5[[Site Name]:[(HIDE) Whips lost]],12,FALSE)","v":{"$error":"#N/A"}},{"$f":"VLOOKUP($C196,Table5[[Site Name]:[(HIDE) Whips lost]],13,FALSE)","v":{"$error":"#N/A"}},null,null,null,{"$f":"IF(SUM('Part 2 - Restocking information'!$H196:$J196)=0,\"\",SUM('Part 2 - Restocking information'!$H196:$J196))","v":""},{"$f":"IFERROR(VLOOKUP(C196,Table5[[Site Name]:[(HIDE) Sum of LATF trees planted]],8,FALSE),\"\")","v":""},{"$f":"IFERROR(VLOOKUP(C196,Table5[[Site Name]:[(HIDE) SUM of LATF Trees Loss]],14,FALSE),\"\")","v":""},"",{"$f":"IFERROR(IF(VLOOKUP(C196,Table5[[Site Name]:[(HIDE) Sum of LATF trees planted]],8,FALSE)=0, \"\", VLOOKUP(C196,Table5[[Site Name]:[(HIDE) Sum of LATF trees planted]],8,FALSE)),\"\")","v":""},null,{"$f":"IFERROR(('Part 2 - Restocking information'!$K196+'Part 2 - Restocking information'!$N196)/'Part 2 - Restocking information'!$O196*100, \"\")","v":""}]
[null,null,null,{"$f":"IFERROR(VLOOKUP(C197,Table5[[Site Name]:[Site requires restocking (if <75% survival rate) - planting sites only]],21,FALSE),\"\")","v":""},{"$f":"VLOOKUP($C197,Table5[[Site Name]:[(HIDE) Whips lost]],24,FALSE)","v":{"$error":"#N/A"}},{"$f":"VLOOKUP($C197,Table5[[Site Name]:[(HIDE) Whips lost]],12,FALSE)","v":{"$error":"#N/A"}},{"$f":"VLOOKUP($C197,Table5[[Site Name]:[(HIDE) Whips lost]],13,FALSE)","v":{"$error":"#N/A"}},null,null,null,{"$f":"IF(SUM('Part 2 - Restocking information'!$H197:$J197)=0,\"\",SUM('Part 2 - Restocking information'!$H197:$J197))","v":""},{"$f":"IFERROR(VLOOKUP(C197,Table5[[Site Name]:[(HIDE) Sum of LATF trees planted]],8,FALSE),\"\")","v":""},{"$f":"IFERROR(VLOOKUP(C197,Table5[[Site Name]:[(HIDE) SUM of LATF Trees Loss]],14,FALSE),\"\")","v":""},"",{"$f":"IFERROR(IF(VLOOKUP(C197,Table5[[Site Name]:[(HIDE) Sum of LATF trees planted]],8,FALSE)=0, \"\", VLOOKUP(C197,Table5[[Site Name]:[(HIDE) Sum of LATF trees planted]],8,FALSE)),\"\")","v":""},null,{"$f":"IFERROR(('Part 2 - Restocking information'!$K197+'Part 2 - Restocking information'!$N197)/'Part 2 - Restocking information'!$O197*100, \"\")","v":""}]
[null,null,null,{"$f":"IFERROR(VLOOKUP(C198,Table5[[Site Name]:[Site requires restocking (if <75% survival rate) - planting sites only]],21,FALSE),\"\")","v":""},{"$f":"VLOOKUP($C198,Table5[[Site Name]:[(HIDE) Whips lost]],24,FALSE)","v":{"$error":"#N/A"}},{"$f":"VLOOKUP($C198,Table5[[Site Name]:[(HIDE) Whips lost]],12,FALSE)","v":{"$error":"#N/A"}},{"$f":"VLOOKUP($C198,Table5[[Site Name]:[(HIDE) Whips lost]],13,FALSE)","v":{"$error":"#N/A"}},null,null,null,{"$f":"IF(SUM('Part 2 - Restocking information'!$H198:$J198)=0,\"\",SUM('Part 2 - Restocking information'!$H198:$J198))","v":""},{"$f":"IFERROR(VLOOKUP(C198,Table5[[Site Name]:[(HIDE) Sum of LATF trees planted]],8,FALSE),\"\")","v":""},{"$f":"IFERROR(VLOOKUP(C198,Table5[[Site Name]:[(HIDE) SUM of LATF Trees Loss]],14,FALSE),\"\")","v":""},"",{"$f":"IFERROR(IF(VLOOKUP(C198,Table5[[Site Name]:[(HIDE) Sum of LATF trees planted]],8,FALSE)=0, \"\", VLOOKUP(C198,Table5[[Site Name]:[(HIDE) Sum of LATF trees planted]],8,FALSE)),\"\")","v":""},null,{"$f":"IFERROR(('Part 2 - Restocking information'!$K198+'Part 2 - Restocking information'!$N198)/'Part 2 - Restocking information'!$O198*100, \"\")","v":""}]
[null,null,null,{"$f":"IFERROR(VLOOKUP(C199,Table5[[Site Name]:[Site requires restocking (if <75% survival rate) - planting sites only]],21,FALSE),\"\")","v":""},{"$f":"VLOOKUP($C199,Table5[[Site Name]:[(HIDE) Whips lost]],24,FALSE)","v":{"$error":"#N/A"}},{"$f":"VLOOKUP($C199,Table5[[Site Name]:[(HIDE) Whips lost]],12,FALSE)","v":{"$error":"#N/A"}},{"$f":"VLOOKUP($C199,Table5[[Site Name]:[(HIDE) Whips lost]],13,FALSE)","v":{"$error":"#N/A"}},null,null,null,{"$f":"IF(SUM('Part 2 - Restocking information'!$H199:$J199)=0,\"\",SUM('Part 2 - Restocking information'!$H199:$J199))","v":""},{"$f":"IFERROR(VLOOKUP(C199,Table5[[Site Name]:[(HIDE) Sum of LATF trees planted]],8,FALSE),\"\")","v":""},{"$f":"IFERROR(VLOOKUP(C199,Table5[[Site Name]:[(HIDE) SUM of LATF Trees Loss]],14,FALSE),\"\")","v":""},"",{"$f":"IFERROR(IF(VLOOKUP(C199,Table5[[Site Name]:[(HIDE) Sum of LATF trees planted]],8,FALSE)=0, \"\", VLOOKUP(C199,Table5[[Site Name]:[(HIDE) Sum of LATF trees planted]],8,FALSE)),\"\")","v":""},null,{"$f":"IFERROR(('Part 2 - Restocking information'!$K199+'Part 2 - Restocking information'!$N199)/'Part 2 - Restocking information'!$O199*100, \"\")","v":""}]
[null,null,null,{"$f":"IFERROR(VLOOKUP(C200,Table5[[Site Name]:[Site requires restocking (if <75% survival rate) - planting sites only]],21,FALSE),\"\")","v":""},{"$f":"VLOOKUP($C200,Table5[[Site Name]:[(HIDE) Whips lost]],24,FALSE)","v":{"$error":"#N/A"}},{"$f":"VLOOKUP($C200,Table5[[Site Name]:[(HIDE) Whips lost]],12,FALSE)","v":{"$error":"#N/A"}},{"$f":"VLOOKUP($C200,Table5[[Site Name]:[(HIDE) Whips lost]],13,FALSE)","v":{"$error":"#N/A"}},null,null,null,{"$f":"IF(SUM('Part 2 - Restocking information'!$H200:$J200)=0,\"\",SUM('Part 2 - Restocking information'!$H200:$J200))","v":""},{"$f":"IFERROR(VLOOKUP(C200,Table5[[Site Name]:[(HIDE) Sum of LATF trees planted]],8,FALSE),\"\")","v":""},{"$f":"IFERROR(VLOOKUP(C200,Table5[[Site Name]:[(HIDE) SUM of LATF Trees Loss]],14,FALSE),\"\")","v":""},"",{"$f":"IFERROR(IF(VLOOKUP(C200,Table5[[Site Name]:[(HIDE) Sum of LATF trees planted]],8,FALSE)=0, \"\", VLOOKUP(C200,Table5[[Site Name]:[(HIDE) Sum of LATF trees planted]],8,FALSE)),\"\")","v":""},null,{"$f":"IFERROR(('Part 2 - Restocking information'!$K200+'Part 2 - Restocking information'!$N200)/'Part 2 - Restocking information'!$O200*100, \"\")","v":""}]

{"sheet":"Part 3 - NC intervention","index":2,"n_rows":11,"n_cols":23,"rows_kept":11,"cut":false,"hidden":false,"merged":[[2,0,2,5],[3,2,3,5],[4,1,4,5],[5,2,5,3],[7,1,7,5]]}
[]
[]
[null,null,null,null,null,null,null,null,null,null,null,null,null,null,null,null,null,null,null,null,null,null,"Y"]
[]
[]
[null,"FY in which remedial NC work will take place (must align with when your final maintenance payment is due for either Year 1 or Year 2 trees/NC)"]
[]
[null,"Complete by 1st October"]
[null,"Local Authority Name","Site Name","Reason for NC failure","Remedial work required to enable NC","Remedial work completed"]
[null,{"$f":"_xlfn.CHOOSECOLS(_xlfn._xlws.FILTER(Table5[], Table5[Site requires inspection to determine remedial work to allow NC] ='Part 3 - NC intervention'!W3,\"\"),1,2)","v":"e.g  Welwyn Hatfield Borough Council\t"},"e.g NC site 1 - Brook Farm ","Deer fencing damaged","Replace/fix 10m section of deer fencing","Y"]
[null,0,0]

{"sheet":"Part 4 - Declaration","index":3,"n_rows":0,"n_cols":0,"rows_kept":0,"cut":false,"hidden":false,"merged":[]}